Body,Body Name,Date Paid,Transaction Number,Amount,Supplier Name,Supplier ID,Supplier post code (first 4 digits),Directorate,Service Area,General Ledger code Description,BVACOP class,Revenue/ Capital Spend
http://statistics.data.gov.uk/id/local-authority/00HY,Wiltshire Council,12/04/2012,1900811989,1235.74,1st Choice Cabs ,101285,SP4 ,Neighbourhood & Planning,DCS CTPLD U65,Transport Contracts,Third Party Payments,REVENUE
http://statistics.data.gov.uk/id/local-authority/00HY,Wiltshire Council,12/04/2012,1900811994,1012.00,1st Choice Cabs ,101285,SP4 ,Neighbourhood & Planning,DCS CTPLD U65,Transport Contracts,Third Party Payments,REVENUE
http://statistics.data.gov.uk/id/local-authority/00HY,Wiltshire Council,12/04/2012,1900811998,4173.00,1st Choice Cabs ,101285,SP4 ,Neighbourhood & Planning,SEN Primary,Transport Contracts,Third Party Payments,REVENUE
http://statistics.data.gov.uk/id/local-authority/00HY,Wiltshire Council,12/04/2012,1900812001,704.00,1st Choice Cabs ,101285,SP4 ,Neighbourhood & Planning,Mainstream Primary,Transport Contracts,Third Party Payments,REVENUE
http://statistics.data.gov.uk/id/local-authority/00HY,Wiltshire Council,12/04/2012,1900812002,630.00,1st Choice Cabs ,101285,SP4 ,Neighbourhood & Planning,Mainstream Primary,Transport Contracts,Third Party Payments,REVENUE
http://statistics.data.gov.uk/id/local-authority/00HY,Wiltshire Council,20/04/2012,5106096836,1140.98,1ST OFFICE EQUIPMENT LTD ,110000,BA2 ,Resources,DesignPrintTrowbridg,Printing External,Supplies and Services,REVENUE
http://statistics.data.gov.uk/id/local-authority/00HY,Wiltshire Council,11/04/2012,5106100464,2264.84,2 Care UK Ltd ,110002,BH7 ,Community Services,MH AOWA South,Adult Residential Placements - Spot Purchase,Third Party Payments,REVENUE
http://statistics.data.gov.uk/id/local-authority/00HY,Wiltshire Council,11/04/2012,5106104638,1180.00,2 Care UK Ltd ,110002,BH7 ,Community Services,MH OP North Locality,Adult Residential Placements - Spot Purchase,Third Party Payments,REVENUE
http://statistics.data.gov.uk/id/local-authority/00HY,Wiltshire Council,11/04/2012,5106104639,1180.00,2 Care UK Ltd ,110002,BH7 ,Community Services,Section 117-PCT Clnt,Adult Residential Placements - Spot Purchase,Third Party Payments,REVENUE
http://statistics.data.gov.uk/id/local-authority/00HY,Wiltshire Council,11/04/2012,5106102019,4898.00,22 Wingfield ,129621,BA14,Community Services,OP West Locality,Adult Residential Placements - Spot Purchase,Third Party Payments,REVENUE
http://statistics.data.gov.uk/id/local-authority/00HY,Wiltshire Council,11/04/2012,5106102025,7052.00,22 Wingfield ,129621,BA14,Community Services,CTPLD County CIC U65,Adult Residential Placements - Spot Purchase,Third Party Payments,REVENUE
http://statistics.data.gov.uk/id/local-authority/00HY,Wiltshire Council,11/04/2012,5106102031,5400.00,22 Wingfield ,129621,BA14,Community Services,MH AOWA West,Adult Residential Placements - Spot Purchase,Third Party Payments,REVENUE
http://statistics.data.gov.uk/id/local-authority/00HY,Wiltshire Council,11/04/2012,5106102900,5929.60,22 Wingfield ,129621,BA14,Community Services,CTPLD County CIC U65,Adult Residential Placements - Spot Purchase,Third Party Payments,REVENUE
http://statistics.data.gov.uk/id/local-authority/00HY,Wiltshire Council,02/04/2012,5106098423,6500.00,225 Degrees Ltd ,133606,SW15,Neighbourhood & Planning,SWUKBRUSSELS OFFICE,Consultants� Fees,Supplies and Services,REVENUE
http://statistics.data.gov.uk/id/local-authority/00HY,Wiltshire Council,05/04/2012,1900810576,506.55,24/7 Taxis Corsham ,101308,SN13,Neighbourhood & Planning,SEN Primary,Transport Contracts,Third Party Payments,REVENUE
http://statistics.data.gov.uk/id/local-authority/00HY,Wiltshire Council,10/04/2012,1900811031,1200.00,24-7 Taxis ,101087,BA12,Neighbourhood & Planning,SEN Secondary,Transport Contracts,Third Party Payments,REVENUE
http://statistics.data.gov.uk/id/local-authority/00HY,Wiltshire Council,18.04.2012,1900820760,630.00,2get2 Taxi Services Ltd ,101102,.,Neighbourhood & Planning,SEN Primary,Transport Contracts,Third Party Payments,REVENUE
http://statistics.data.gov.uk/id/local-authority/00HY,Wiltshire Council,12/04/2012,5106097787,624.53,3663 ,113090,L40 ,Children & Education,PDCMelksham,Catering,Supplies and Services,REVENUE
http://statistics.data.gov.uk/id/local-authority/00HY,Wiltshire Council,16/04/2012,5106093674,3818.25,3p Learning Ltd ,113119,BS1 ,Children & Education,STNDRDS&CURRC ACTV,Hardware Consumables IT,Supplies and Services,REVENUE
http://statistics.data.gov.uk/id/local-authority/00HY,Wiltshire Council,02/04/2012,5106093675,33114.75,3p Learning Ltd ,113119,BS1 ,Children & Education,STNDRDS&CURRC ACTV,Software Purchases,Supplies and Services,REVENUE
http://statistics.data.gov.uk/id/local-authority/00HY,Wiltshire Council,30/04/2012,5106111708,515238.40,4 Children ,113122,E14 ,Children & Education,EYChildCentreTm,Grants Paid to individuals for Tangible Benefits,Supplies and Services,REVENUE
http://statistics.data.gov.uk/id/local-authority/00HY,Wiltshire Council,05/04/2012,1900810534,1980.00,A  and  S Private Hire ,101115,SN15,Neighbourhood & Planning,SEN Primary,Transport Contracts,Third Party Payments,REVENUE
http://statistics.data.gov.uk/id/local-authority/00HY,Wiltshire Council,19/04/2012,1900821167,543.64,A B Taxis Ltd ,100945,SN12,Neighbourhood & Planning,Mainstream 16+ Sec,Transport Contracts,Third Party Payments,REVENUE
http://statistics.data.gov.uk/id/local-authority/00HY,Wiltshire Council,19/04/2012,1900821167,1359.14,A B Taxis Ltd ,100945,SN12,Neighbourhood & Planning,Mainstream Secondary,Transport Contracts,Third Party Payments,REVENUE
http://statistics.data.gov.uk/id/local-authority/00HY,Wiltshire Council,17/04/2012,5106109018,845.85,A E Smith   Son ,110014,SN3 ,Resources,CoronerGeneral,Body Removals,Supplies and Services,REVENUE
http://statistics.data.gov.uk/id/local-authority/00HY,Wiltshire Council,12/04/2012,1900811587,4105.26,A G Builders ,100936,SN9 ,Wiltshire Council,Wiltshire Council,Buildings Minor Alterations,Premises Related,CAPITAL
http://statistics.data.gov.uk/id/local-authority/00HY,Wiltshire Council,19/04/2012,1900821161,925.67,A G Minibuses ,100878,BA12,Neighbourhood & Planning,SEN Primary,Transport Contracts,Third Party Payments,REVENUE
http://statistics.data.gov.uk/id/local-authority/00HY,Wiltshire Council,19/04/2012,1900821161,1018.25,A G Minibuses ,100878,BA12,Neighbourhood & Planning,SEN Secondary,Transport Contracts,Third Party Payments,REVENUE
http://statistics.data.gov.uk/id/local-authority/00HY,Wiltshire Council,19/04/2012,1900821163,1342.00,A G Minibuses ,100878,BA12,Neighbourhood & Planning,Mainstream Primary,Transport Contracts,Third Party Payments,REVENUE
http://statistics.data.gov.uk/id/local-authority/00HY,Wiltshire Council,19/04/2012,1900821169,679.95,A G Minibuses ,100878,BA12,Neighbourhood & Planning,DCS East Locality OP,Transport Contracts,Third Party Payments,REVENUE
http://statistics.data.gov.uk/id/local-authority/00HY,Wiltshire Council,19/04/2012,1900821169,1359.89,A G Minibuses ,100878,BA12,Neighbourhood & Planning,DCS Kennet MenHthO65,Transport Contracts,Third Party Payments,REVENUE
http://statistics.data.gov.uk/id/local-authority/00HY,Wiltshire Council,19/04/2012,1900821170,1168.20,A G Minibuses ,100878,BA12,Neighbourhood & Planning,Mainstream Secondary,Transport Contracts,Third Party Payments,REVENUE
http://statistics.data.gov.uk/id/local-authority/00HY,Wiltshire Council,19/04/2012,1900821171,594.52,A G Minibuses ,100878,BA12,Neighbourhood & Planning,SEN Rechargable Exp,Transport Contracts,Third Party Payments,REVENUE
http://statistics.data.gov.uk/id/local-authority/00HY,Wiltshire Council,19/04/2012,1900821171,891.78,A G Minibuses ,100878,BA12,Neighbourhood & Planning,SEN 16+ Secondary,Transport Contracts,Third Party Payments,REVENUE
http://statistics.data.gov.uk/id/local-authority/00HY,Wiltshire Council,19/04/2012,1900821172,690.43,A G Minibuses ,100878,BA12,Neighbourhood & Planning,SEN 16+ Secondary,Transport Contracts,Third Party Payments,REVENUE
http://statistics.data.gov.uk/id/local-authority/00HY,Wiltshire Council,19/04/2012,1900821172,979.98,A G Minibuses ,100878,BA12,Neighbourhood & Planning,SEN Secondary,Transport Contracts,Third Party Payments,REVENUE
http://statistics.data.gov.uk/id/local-authority/00HY,Wiltshire Council,19/04/2012,1900821173,601.15,A G Minibuses ,100878,BA12,Neighbourhood & Planning,SEN Primary,Transport Contracts,Third Party Payments,REVENUE
http://statistics.data.gov.uk/id/local-authority/00HY,Wiltshire Council,19/04/2012,1900821173,601.15,A G Minibuses ,100878,BA12,Neighbourhood & Planning,SEN 16+ Secondary,Transport Contracts,Third Party Payments,REVENUE
http://statistics.data.gov.uk/id/local-authority/00HY,Wiltshire Council,19/04/2012,1900821173,1202.30,A G Minibuses ,100878,BA12,Neighbourhood & Planning,SEN Secondary,Transport Contracts,Third Party Payments,REVENUE
http://statistics.data.gov.uk/id/local-authority/00HY,Wiltshire Council,19/04/2012,1900821174,767.00,A G Minibuses ,100878,BA12,Neighbourhood & Planning,Ref&Assess Devizes,Transport Contracts,Third Party Payments,REVENUE
http://statistics.data.gov.uk/id/local-authority/00HY,Wiltshire Council,19/04/2012,1900821179,1700.78,A G Minibuses ,100878,BA12,Neighbourhood & Planning,Mainstream Primary,Transport Contracts,Third Party Payments,REVENUE
http://statistics.data.gov.uk/id/local-authority/00HY,Wiltshire Council,19/04/2012,1900821186,1118.33,A G Minibuses ,100878,BA12,Neighbourhood & Planning,SEN Primary,Transport Contracts,Third Party Payments,REVENUE
http://statistics.data.gov.uk/id/local-authority/00HY,Wiltshire Council,19/04/2012,1900821186,1118.33,A G Minibuses ,100878,BA12,Neighbourhood & Planning,SEN Secondary,Transport Contracts,Third Party Payments,REVENUE
http://statistics.data.gov.uk/id/local-authority/00HY,Wiltshire Council,19/04/2012,1900821186,1118.34,A G Minibuses ,100878,BA12,Neighbourhood & Planning,SEN 16+ Secondary,Transport Contracts,Third Party Payments,REVENUE
http://statistics.data.gov.uk/id/local-authority/00HY,Wiltshire Council,19/04/2012,1900821189,684.00,A G Minibuses ,100878,BA12,Neighbourhood & Planning,RES 16+ Secondary,Transport Contracts,Third Party Payments,REVENUE
http://statistics.data.gov.uk/id/local-authority/00HY,Wiltshire Council,25/04/2012,1900822765,608.74,A G Minibuses ,100878,BA12,Neighbourhood & Planning,DCS CTPLD U65,Transport Contracts,Third Party Payments,REVENUE
http://statistics.data.gov.uk/id/local-authority/00HY,Wiltshire Council,25/04/2012,1900822765,867.46,A G Minibuses ,100878,BA12,Neighbourhood & Planning,DCS East Locality PI,Transport Contracts,Third Party Payments,REVENUE
http://statistics.data.gov.uk/id/local-authority/00HY,Wiltshire Council,25/04/2012,1900822766,511.55,A G Minibuses ,100878,BA12,Neighbourhood & Planning,DCS East Locality PI,Transport Contracts,Third Party Payments,REVENUE
http://statistics.data.gov.uk/id/local-authority/00HY,Wiltshire Council,25/04/2012,1900822770,2112.10,A G Minibuses ,100878,BA12,Neighbourhood & Planning,DCS CTPLD U65,Transport Contracts,Third Party Payments,REVENUE
http://statistics.data.gov.uk/id/local-authority/00HY,Wiltshire Council,25/04/2012,1900822793,740.52,A G Minibuses ,100878,BA12,Neighbourhood & Planning,Mainstream Primary,Transport Contracts,Third Party Payments,REVENUE
http://statistics.data.gov.uk/id/local-authority/00HY,Wiltshire Council,25/04/2012,1900822793,740.52,A G Minibuses ,100878,BA12,Neighbourhood & Planning,SEN Primary,Transport Contracts,Third Party Payments,REVENUE
http://statistics.data.gov.uk/id/local-authority/00HY,Wiltshire Council,25/04/2012,1900822793,740.52,A G Minibuses ,100878,BA12,Neighbourhood & Planning,SEN Secondary,Transport Contracts,Third Party Payments,REVENUE
http://statistics.data.gov.uk/id/local-authority/00HY,Wiltshire Council,25/04/2012,1900822793,740.52,A G Minibuses ,100878,BA12,Neighbourhood & Planning,SEN 16+ Secondary,Transport Contracts,Third Party Payments,REVENUE
http://statistics.data.gov.uk/id/local-authority/00HY,Wiltshire Council,25/04/2012,1900822840,2127.65,A G Minibuses ,100878,BA12,Neighbourhood & Planning,Mainstream Primary,Transport Contracts,Third Party Payments,REVENUE
http://statistics.data.gov.uk/id/local-authority/00HY,Wiltshire Council,26/04/2012,1900823325,1438.25,A G Minibuses ,100878,BA12,Neighbourhood & Planning,DCS CTPLD U65,Transport Contracts,Third Party Payments,REVENUE
http://statistics.data.gov.uk/id/local-authority/00HY,Wiltshire Council,27/04/2012,1900823524,12069.32,A G Minibuses ,100878,BA12,Neighbourhood & Planning,Connect 2 Wiltshire,Transport Contracts,Third Party Payments,REVENUE
http://statistics.data.gov.uk/id/local-authority/00HY,Wiltshire Council,27/04/2012,1900823525,997.50,A G Minibuses ,100878,BA12,Neighbourhood & Planning,Mainstream Primary,Transport Contracts,Third Party Payments,REVENUE
http://statistics.data.gov.uk/id/local-authority/00HY,Wiltshire Council,27/04/2012,1900823525,1588.52,A G Minibuses ,100878,BA12,Neighbourhood & Planning,Public Transport,Transport Contracts,Third Party Payments,REVENUE
http://statistics.data.gov.uk/id/local-authority/00HY,Wiltshire Council,27/04/2012,1900823525,4334.13,A G Minibuses ,100878,BA12,Neighbourhood & Planning,Connect 2 Wiltshire,Transport Contracts,Third Party Payments,REVENUE
http://statistics.data.gov.uk/id/local-authority/00HY,Wiltshire Council,04/04/2012,1900809977,1313.84,A M S Taxis ,100839,BA14,Neighbourhood & Planning,SEN Secondary,Transport Contracts,Third Party Payments,REVENUE
http://statistics.data.gov.uk/id/local-authority/00HY,Wiltshire Council,04/04/2012,1900809987,649.00,A M S Taxis ,100839,BA14,Neighbourhood & Planning,SEN Primary,Transport Contracts,Third Party Payments,REVENUE
http://statistics.data.gov.uk/id/local-authority/00HY,Wiltshire Council,04/04/2012,1900809987,649.00,A M S Taxis ,100839,BA14,Neighbourhood & Planning,SEN Secondary,Transport Contracts,Third Party Payments,REVENUE
http://statistics.data.gov.uk/id/local-authority/00HY,Wiltshire Council,04/04/2012,1900809987,649.00,A M S Taxis ,100839,BA14,Neighbourhood & Planning,SEN 16+ Secondary,Transport Contracts,Third Party Payments,REVENUE
http://statistics.data.gov.uk/id/local-authority/00HY,Wiltshire Council,10/04/2012,1900810935,1958.00,A M S Taxis ,100839,BA14,Neighbourhood & Planning,SEN Primary,Transport Contracts,Third Party Payments,REVENUE
http://statistics.data.gov.uk/id/local-authority/00HY,Wiltshire Council,10/04/2012,1900810961,1626.40,A M S Taxis ,100839,BA14,Neighbourhood & Planning,SEN Primary,Transport Contracts,Third Party Payments,REVENUE
http://statistics.data.gov.uk/id/local-authority/00HY,Wiltshire Council,05/04/2012,1900810550,3071.22,A P Taxis ,100628,SN12,Neighbourhood & Planning,SEN Primary,Transport Contracts,Third Party Payments,REVENUE
http://statistics.data.gov.uk/id/local-authority/00HY,Wiltshire Council,05/04/2012,1900810557,1465.34,A P Taxis ,100628,SN12,Neighbourhood & Planning,Community Team East,Transport Contracts,Third Party Payments,REVENUE
http://statistics.data.gov.uk/id/local-authority/00HY,Wiltshire Council,05/04/2012,1900810622,866.67,A P Taxis ,100628,SN12,Neighbourhood & Planning,SEN Secondary,Transport Contracts,Third Party Payments,REVENUE
http://statistics.data.gov.uk/id/local-authority/00HY,Wiltshire Council,17/04/2012,5106109067,1018.27,A S A Awards Scheme ,110020,B98 ,Neighbourhood & Planning,Tidworth,Equipment Purchase,Supplies and Services,REVENUE
http://statistics.data.gov.uk/id/local-authority/00HY,Wiltshire Council,05/04/2012,1900810585,858.00,A1 Cab Company ,101233,SP4 ,Neighbourhood & Planning,YPSS Kennet,Transport Contracts,Third Party Payments,REVENUE
http://statistics.data.gov.uk/id/local-authority/00HY,Wiltshire Council,05/04/2012,1900810587,600.00,A1 Cab Company ,101233,SP4 ,Neighbourhood & Planning,SEN Primary,Transport Contracts,Third Party Payments,REVENUE
http://statistics.data.gov.uk/id/local-authority/00HY,Wiltshire Council,05/04/2012,1900810592,1749.00,A1 Cab Company ,101233,SP4 ,Neighbourhood & Planning,SEN Secondary,Transport Contracts,Third Party Payments,REVENUE
http://statistics.data.gov.uk/id/local-authority/00HY,Wiltshire Council,05/04/2012,1900810593,3520.00,A1 Cab Company ,101233,SP4 ,Neighbourhood & Planning,SEN Secondary,Transport Contracts,Third Party Payments,REVENUE
http://statistics.data.gov.uk/id/local-authority/00HY,Wiltshire Council,05/04/2012,1900810594,1199.00,A1 Cab Company ,101233,SP4 ,Neighbourhood & Planning,Mainstream Primary,Transport Contracts,Third Party Payments,REVENUE
http://statistics.data.gov.uk/id/local-authority/00HY,Wiltshire Council,12/04/2012,1900811896,940.50,A1 Cab Company ,101233,SP4 ,Neighbourhood & Planning,YPSS Salisbury,Transport Contracts,Third Party Payments,REVENUE
http://statistics.data.gov.uk/id/local-authority/00HY,Wiltshire Council,05/04/2012,1900810672,691.07,Abbey Taxis (Malmesbury) Ltd ,101333,SN16,Neighbourhood & Planning,Mainstream Primary,Transport Contracts,Third Party Payments,REVENUE
http://statistics.data.gov.uk/id/local-authority/00HY,Wiltshire Council,04/04/2012,1900809960,672.00,Abbey Taxis (Swindon) Ltd ,100920,SN2 ,Neighbourhood & Planning,SEN Secondary,Transport Contracts,Third Party Payments,REVENUE
http://statistics.data.gov.uk/id/local-authority/00HY,Wiltshire Council,04/04/2012,1900809960,672.00,Abbey Taxis (Swindon) Ltd ,100920,SN2 ,Neighbourhood & Planning,SEN 16+ Secondary,Transport Contracts,Third Party Payments,REVENUE
http://statistics.data.gov.uk/id/local-authority/00HY,Wiltshire Council,04/04/2012,1900809968,659.50,Abbey Taxis (Swindon) Ltd ,100920,SN2 ,Neighbourhood & Planning,SEN Primary,Transport Contracts,Third Party Payments,REVENUE
http://statistics.data.gov.uk/id/local-authority/00HY,Wiltshire Council,05/04/2012,1900810538,1038.40,Abbey Taxis (Swindon) Ltd ,100920,SN2 ,Neighbourhood & Planning,SEN 16+ Secondary,Transport Contracts,Third Party Payments,REVENUE
http://statistics.data.gov.uk/id/local-authority/00HY,Wiltshire Council,05/04/2012,1900810641,1584.00,Abbey Taxis (Swindon) Ltd ,100920,SN2 ,Neighbourhood & Planning,SEN Secondary,Transport Contracts,Third Party Payments,REVENUE
http://statistics.data.gov.uk/id/local-authority/00HY,Wiltshire Council,05/04/2012,1900810642,1408.00,Abbey Taxis (Swindon) Ltd ,100920,SN2 ,Neighbourhood & Planning,SEN Secondary,Transport Contracts,Third Party Payments,REVENUE
http://statistics.data.gov.uk/id/local-authority/00HY,Wiltshire Council,19/04/2012,1900821226,1368.00,Abbey Taxis (Swindon) Ltd ,100920,SN2 ,Neighbourhood & Planning,N&E Children w/Dis,Transport Contracts,Third Party Payments,REVENUE
http://statistics.data.gov.uk/id/local-authority/00HY,Wiltshire Council,25/04/2012,1900822768,968.00,Abbey Taxis (Swindon) Ltd ,100920,SN2 ,Neighbourhood & Planning,Mainstream Primary,Transport Contracts,Third Party Payments,REVENUE
http://statistics.data.gov.uk/id/local-authority/00HY,Wiltshire Council,25/04/2012,1900822790,704.00,Abbey Taxis (Swindon) Ltd ,100920,SN2 ,Neighbourhood & Planning,SEN Primary,Transport Contracts,Third Party Payments,REVENUE
http://statistics.data.gov.uk/id/local-authority/00HY,Wiltshire Council,25/04/2012,1900822790,1056.00,Abbey Taxis (Swindon) Ltd ,100920,SN2 ,Neighbourhood & Planning,SEN Secondary,Transport Contracts,Third Party Payments,REVENUE
http://statistics.data.gov.uk/id/local-authority/00HY,Wiltshire Council,25/04/2012,1900822796,1386.00,Abbey Taxis (Swindon) Ltd ,100920,SN2 ,Neighbourhood & Planning,Mainstream Secondary,Transport Contracts,Third Party Payments,REVENUE
http://statistics.data.gov.uk/id/local-authority/00HY,Wiltshire Council,25/04/2012,1900822797,2156.00,Abbey Taxis (Swindon) Ltd ,100920,SN2 ,Neighbourhood & Planning,SEN Primary,Transport Contracts,Third Party Payments,REVENUE
http://statistics.data.gov.uk/id/local-authority/00HY,Wiltshire Council,26/04/2012,1900823323,1281.00,Abbey Taxis (Swindon) Ltd ,100920,SN2 ,Neighbourhood & Planning,SEN Primary,Transport Contracts,Third Party Payments,REVENUE
http://statistics.data.gov.uk/id/local-authority/00HY,Wiltshire Council,26/04/2012,1900823328,786.64,Abbey Taxis (Swindon) Ltd ,100920,SN2 ,Neighbourhood & Planning,SEN Primary,Transport Contracts,Third Party Payments,REVENUE
http://statistics.data.gov.uk/id/local-authority/00HY,Wiltshire Council,26/04/2012,1900823328,1966.63,Abbey Taxis (Swindon) Ltd ,100920,SN2 ,Neighbourhood & Planning,Mainstream Primary,Transport Contracts,Third Party Payments,REVENUE
http://statistics.data.gov.uk/id/local-authority/00HY,Wiltshire Council,27/04/2012,1900823536,675.00,Abbey Taxis (Swindon) Ltd ,100920,SN2 ,Neighbourhood & Planning,Mainstream Secondary,Transport Contracts,Third Party Payments,REVENUE
http://statistics.data.gov.uk/id/local-authority/00HY,Wiltshire Council,27/04/2012,1900823537,514.28,Abbey Taxis (Swindon) Ltd ,100920,SN2 ,Neighbourhood & Planning,Mainstream Secondary,Transport Contracts,Third Party Payments,REVENUE
http://statistics.data.gov.uk/id/local-authority/00HY,Wiltshire Council,27/04/2012,1900823538,619.27,Abbey Taxis (Swindon) Ltd ,100920,SN2 ,Neighbourhood & Planning,SEN Primary,Transport Contracts,Third Party Payments,REVENUE
http://statistics.data.gov.uk/id/local-authority/00HY,Wiltshire Council,27/04/2012,1900823538,1585.94,Abbey Taxis (Swindon) Ltd ,100920,SN2 ,Neighbourhood & Planning,Mainstream Primary,Transport Contracts,Third Party Payments,REVENUE
http://statistics.data.gov.uk/id/local-authority/00HY,Wiltshire Council,12/04/2012,1900811982,1290.20,Abbey Taxis Ltd ,101080,BA2 ,Neighbourhood & Planning,Mainstream Primary,Transport Contracts,Third Party Payments,REVENUE
http://statistics.data.gov.uk/id/local-authority/00HY,Wiltshire Council,12/04/2012,1900811983,1971.20,Abbey Taxis Ltd ,101080,BA2 ,Neighbourhood & Planning,SEN Primary,Transport Contracts,Third Party Payments,REVENUE
http://statistics.data.gov.uk/id/local-authority/00HY,Wiltshire Council,12/04/2012,1900811996,588.00,Abbey Taxis Ltd ,101080,BA2 ,Neighbourhood & Planning,Mainstream Secondary,Transport Contracts,Third Party Payments,REVENUE
http://statistics.data.gov.uk/id/local-authority/00HY,Wiltshire Council,12/04/2012,1900811999,1012.00,Abbey Taxis Ltd ,101080,BA2 ,Neighbourhood & Planning,SEN Secondary,Transport Contracts,Third Party Payments,REVENUE
http://statistics.data.gov.uk/id/local-authority/00HY,Wiltshire Council,12/04/2012,1900812000,1560.00,Abbey Taxis Ltd ,101080,BA2 ,Neighbourhood & Planning,SEN Secondary,Transport Contracts,Third Party Payments,REVENUE
http://statistics.data.gov.uk/id/local-authority/00HY,Wiltshire Council,12/04/2012,1900812003,507.00,Abbey Taxis Ltd ,101080,BA2 ,Neighbourhood & Planning,Mainstream Primary,Transport Contracts,Third Party Payments,REVENUE
http://statistics.data.gov.uk/id/local-authority/00HY,Wiltshire Council,12/04/2012,1900812003,507.00,Abbey Taxis Ltd ,101080,BA2 ,Neighbourhood & Planning,Mainstream Secondary,Transport Contracts,Third Party Payments,REVENUE
http://statistics.data.gov.uk/id/local-authority/00HY,Wiltshire Council,18.04.2012,1900820717,990.00,Abbey Taxis Ltd ,101080,.,Neighbourhood & Planning,YPSS North,Transport Contracts,Third Party Payments,REVENUE
http://statistics.data.gov.uk/id/local-authority/00HY,Wiltshire Council,05/04/2012,5106096918,704.32,Abicare Services Ltd Homecare ,110031,SP2 ,Community Services,PI South Locality,Adult Domiciliary Care - Block Contribution,Income,REVENUE
http://statistics.data.gov.uk/id/local-authority/00HY,Wiltshire Council,05/04/2012,5106096918,2298.08,Abicare Services Ltd Homecare ,110031,SP2 ,Community Services,OP South Locality,Adult Domiciliary Care - Block Contribution,Income,REVENUE
http://statistics.data.gov.uk/id/local-authority/00HY,Wiltshire Council,13/04/2012,5106098039,1545.54,Abicare Services Ltd Homecare ,110031,SP2 ,Community Services,MH OP South Locality,Adult Domiciliary Care - Spot,Third Party Payments,REVENUE
http://statistics.data.gov.uk/id/local-authority/00HY,Wiltshire Council,05/04/2012,5106098063,1168.00,Abicare Services Ltd Homecare ,110031,SP2 ,Community Services,OP East Locality,Adult Domiciliary Care - Mileage,Third Party Payments,REVENUE
http://statistics.data.gov.uk/id/local-authority/00HY,Wiltshire Council,13/04/2012,5106098071,1060.14,Abicare Services Ltd Homecare ,110031,SP2 ,Community Services,OP East Locality,Adult Domiciliary Care - Spot Contribution,Income,REVENUE
http://statistics.data.gov.uk/id/local-authority/00HY,Wiltshire Council,02/04/2012,5106098301,1179.24,Abicare Services Ltd Homecare ,110031,SP2 ,Community Services,PI South Locality,Adult Domiciliary Care - Block,Third Party Payments,REVENUE
http://statistics.data.gov.uk/id/local-authority/00HY,Wiltshire Council,02/04/2012,5106098301,21823.23,Abicare Services Ltd Homecare ,110031,SP2 ,Community Services,OP South Locality,Adult Domiciliary Care - Block Contribution,Income,REVENUE
http://statistics.data.gov.uk/id/local-authority/00HY,Wiltshire Council,05/04/2012,5106098304,963.24,Abicare Services Ltd Homecare ,110031,SP2 ,Community Services,OP East Locality,Adult Domiciliary Care - Mileage,Third Party Payments,REVENUE
http://statistics.data.gov.uk/id/local-authority/00HY,Wiltshire Council,05/04/2012,5106099254,2170.62,Abicare Services Ltd Homecare ,110031,SP2 ,Community Services,OP West Locality,Adult Domiciliary Care - Mileage,Third Party Payments,REVENUE
http://statistics.data.gov.uk/id/local-authority/00HY,Wiltshire Council,05/04/2012,5106099275,3173.66,Abicare Services Ltd Homecare ,110031,SP2 ,Community Services,OP West Locality,Adult Domiciliary Care - Mileage,Third Party Payments,REVENUE
http://statistics.data.gov.uk/id/local-authority/00HY,Wiltshire Council,13/04/2012,5106105895,860.96,Abicare Services Ltd Homecare ,110031,SP2 ,Community Services,CTPLD County CIC U65,Adult Domiciliary Care - Spot,Third Party Payments,REVENUE
http://statistics.data.gov.uk/id/local-authority/00HY,Wiltshire Council,20/04/2012,5106110153,553.66,Abicare Services Ltd Homecare ,110031,SP2 ,Community Services,PI South Locality,Adult Domiciliary Care - Block,Third Party Payments,REVENUE
http://statistics.data.gov.uk/id/local-authority/00HY,Wiltshire Council,20/04/2012,5106110153,5772.97,Abicare Services Ltd Homecare ,110031,SP2 ,Community Services,OP South Locality,Adult Domiciliary Care - Block Contribution,Income,REVENUE
http://statistics.data.gov.uk/id/local-authority/00HY,Wiltshire Council,20/04/2012,5106110154,638.84,Abicare Services Ltd Homecare ,110031,SP2 ,Community Services,PI South Locality,Adult Domiciliary Care - Block,Third Party Payments,REVENUE
http://statistics.data.gov.uk/id/local-authority/00HY,Wiltshire Council,20/04/2012,5106110154,4475.98,Abicare Services Ltd Homecare ,110031,SP2 ,Community Services,OP South Locality,Adult Domiciliary Care - Block Contribution,Income,REVENUE
http://statistics.data.gov.uk/id/local-authority/00HY,Wiltshire Council,24/04/2012,5106110592,1142.53,Abicare Services Ltd Homecare ,110031,SP2 ,Community Services,OP East Locality,Adult Domiciliary Care - Spot Contribution,Income,REVENUE
http://statistics.data.gov.uk/id/local-authority/00HY,Wiltshire Council,13/04/2012,5106093431,2174.04,Abicare Services Ltd Live in Care. ,113071,SP2 ,Community Services,MH OP South Locality,Adult Domiciliary Care - Spot Contribution,Income,REVENUE
http://statistics.data.gov.uk/id/local-authority/00HY,Wiltshire Council,03/04/2012,5106093911,2853.20,Abicare Services Ltd Live in Care. ,113071,SP2 ,Community Services,OP South Locality,Adult Domiciliary Care - Live in Care,Third Party Payments,REVENUE
http://statistics.data.gov.uk/id/local-authority/00HY,Wiltshire Council,13/04/2012,5106098030,3084.76,Abicare Services Ltd Live in Care. ,113071,SP2 ,Community Services,MH OP South Locality,Adult Domiciliary Care - Live in Care,Third Party Payments,REVENUE
http://statistics.data.gov.uk/id/local-authority/00HY,Wiltshire Council,13/04/2012,5106099255,2963.20,Abicare Services Ltd Live in Care. ,113071,SP2 ,Community Services,OP South Locality,Adult Domiciliary Care - Live in Care,Third Party Payments,REVENUE
http://statistics.data.gov.uk/id/local-authority/00HY,Wiltshire Council,11/04/2012,5106100520,3320.72,Ability Associates Ltd ,110033,SP3 ,Community Services,CTPLD County CIC U65,Supported Living - Without SP payments,Third Party Payments,REVENUE
http://statistics.data.gov.uk/id/local-authority/00HY,Wiltshire Council,11/04/2012,5106100521,3852.04,Ability Associates Ltd ,110033,SP3 ,Community Services,CTPLD County CIC U65,Supported Living - Without SP payments,Third Party Payments,REVENUE
http://statistics.data.gov.uk/id/local-authority/00HY,Wiltshire Council,11/04/2012,5106100948,6270.12,Ability Associates Ltd ,110033,SP3 ,Community Services,CTPLD County CIC U65,Adult Residential Placements - Spot Purchase,Third Party Payments,REVENUE
http://statistics.data.gov.uk/id/local-authority/00HY,Wiltshire Council,11/04/2012,5106100951,6083.48,Ability Associates Ltd ,110033,SP3 ,Community Services,CTPLD County CIC U65,Adult Residential Placements - Spot Purchase,Third Party Payments,REVENUE
http://statistics.data.gov.uk/id/local-authority/00HY,Wiltshire Council,11/04/2012,5106100954,5403.20,Ability Associates Ltd ,110033,SP3 ,Community Services,CTPLD County CIC U65,Adult Residential Placements - Spot Purchase,Third Party Payments,REVENUE
http://statistics.data.gov.uk/id/local-authority/00HY,Wiltshire Council,11/04/2012,5106100523,685.72,ABLE ,101029,BA14,Community Services,MH AOWA North,Supported Living - Without SP payments,Third Party Payments,REVENUE
http://statistics.data.gov.uk/id/local-authority/00HY,Wiltshire Council,11/04/2012,5106100525,685.72,ABLE ,101029,BA14,Community Services,MH AOWA North,Supported Living - Without SP payments,Third Party Payments,REVENUE
http://statistics.data.gov.uk/id/local-authority/00HY,Wiltshire Council,11/04/2012,5106104712,543.52,ABLE ,101029,BA14,Community Services,MH AOWA North,Supported Living - Without SP payments,Third Party Payments,REVENUE
http://statistics.data.gov.uk/id/local-authority/00HY,Wiltshire Council,13/04/2012,5106100388,2481.88,ABLE ,110034,BA14,Community Services,MH AOWA South,Adult Residential Placements - Spot Purchase,Third Party Payments,REVENUE
http://statistics.data.gov.uk/id/local-authority/00HY,Wiltshire Council,11/04/2012,5106100467,2793.84,ABLE ,110034,BA14,Community Services,MH AOWA West,Adult Residential Placements - Spot Purchase,Third Party Payments,REVENUE
http://statistics.data.gov.uk/id/local-authority/00HY,Wiltshire Council,11/04/2012,5106100957,2502.00,ABLE ,110034,BA14,Community Services,MH PCT Section 256,Adult Residential Placements - Spot Purchase,Third Party Payments,REVENUE
http://statistics.data.gov.uk/id/local-authority/00HY,Wiltshire Council,11/04/2012,5106100960,2321.04,ABLE ,110034,BA14,Community Services,MH PCT Section 256,Adult Residential Placements - Spot Purchase,Third Party Payments,REVENUE
http://statistics.data.gov.uk/id/local-authority/00HY,Wiltshire Council,11/04/2012,5106100963,2933.80,ABLE ,110034,BA14,Community Services,MH PCT Section 256,Adult Residential Placements - Spot Purchase,Third Party Payments,REVENUE
http://statistics.data.gov.uk/id/local-authority/00HY,Wiltshire Council,11/04/2012,5106100966,2769.92,ABLE ,110034,BA14,Community Services,MH PCT Section 256,Adult Residential Placements - Spot Purchase,Third Party Payments,REVENUE
http://statistics.data.gov.uk/id/local-authority/00HY,Wiltshire Council,30/04/2012,5106114300,730.00,ABLE ,110034,BA14,Community Services,MH AOWA West,Adult Residential Placements - Spot Purchase,Third Party Payments,REVENUE
http://statistics.data.gov.uk/id/local-authority/00HY,Wiltshire Council,30/04/2012,5106114302,3650.00,ABLE ,110034,BA14,Community Services,MH AOWA West,Adult Residential Placements - Spot Purchase,Third Party Payments,REVENUE
http://statistics.data.gov.uk/id/local-authority/00HY,Wiltshire Council,11/04/2012,1900811197,3445.00,Abritas Ltd ,110036,RG1 ,Neighbourhood & Planning,ChoicedBasedLetting,ICT - Support arrangements,Supplies and Services,REVENUE
http://statistics.data.gov.uk/id/local-authority/00HY,Wiltshire Council,19/04/2012,5106096767,14880.00,Abritas Ltd ,110036,RG1 ,Neighbourhood & Planning,ChoicedBasedLetting,ICT - Support arrangements,Supplies and Services,REVENUE
http://statistics.data.gov.uk/id/local-authority/00HY,Wiltshire Council,05/04/2012,1900794605,5405.00,AC  and  MS Ltd ,101175,SS6 ,Resources,Schools - Other,Preventative Property Maintenance,Premises Related,REVENUE
http://statistics.data.gov.uk/id/local-authority/00HY,Wiltshire Council,05/04/2012,1900794683,587.50,AC  and  MS Ltd ,101175,SS6 ,Resources,Campus,Preventative Property Maintenance,Premises Related,REVENUE
http://statistics.data.gov.uk/id/local-authority/00HY,Wiltshire Council,05/04/2012,1900794685,822.50,AC  and  MS Ltd ,101175,SS6 ,Resources,Other,Preventative Property Maintenance,Premises Related,REVENUE
http://statistics.data.gov.uk/id/local-authority/00HY,Wiltshire Council,05/04/2012,1900794691,822.50,AC  and  MS Ltd ,101175,SS6 ,Resources,Campus,Preventative Property Maintenance,Premises Related,REVENUE
http://statistics.data.gov.uk/id/local-authority/00HY,Wiltshire Council,05/04/2012,1900794694,1997.50,AC  and  MS Ltd ,101175,SS6 ,Resources,Community,Preventative Property Maintenance,Premises Related,REVENUE
http://statistics.data.gov.uk/id/local-authority/00HY,Wiltshire Council,05/04/2012,1900794696,1175.00,AC  and  MS Ltd ,101175,SS6 ,Resources,Campus,Preventative Property Maintenance,Premises Related,REVENUE
http://statistics.data.gov.uk/id/local-authority/00HY,Wiltshire Council,17/04/2012,1900803809,3150.00,AC  and  MS Ltd ,101175,SS6 ,Resources,Rural Estates,Preventative Property Maintenance,Premises Related,REVENUE
http://statistics.data.gov.uk/id/local-authority/00HY,Wiltshire Council,17/04/2012,1900803812,3150.00,AC  and  MS Ltd ,101175,SS6 ,Wiltshire Council,Wiltshire Council,Buildings Minor Alterations,Premises Related,CAPITAL
http://statistics.data.gov.uk/id/local-authority/00HY,Wiltshire Council,17/04/2012,1900803813,1350.00,AC  and  MS Ltd ,101175,SS6 ,Resources,WTP Office,Preventative Property Maintenance,Premises Related,REVENUE
http://statistics.data.gov.uk/id/local-authority/00HY,Wiltshire Council,17/04/2012,1900803814,1350.00,AC  and  MS Ltd ,101175,SS6 ,Wiltshire Council,Wiltshire Council,Buildings Minor Alterations,Premises Related,CAPITAL
http://statistics.data.gov.uk/id/local-authority/00HY,Wiltshire Council,17/04/2012,1900803953,1200.00,AC  and  MS Ltd ,101175,SS6 ,Resources,Other,Preventative Property Maintenance,Premises Related,REVENUE
http://statistics.data.gov.uk/id/local-authority/00HY,Wiltshire Council,17/04/2012,1900803954,1237.50,AC  and  MS Ltd ,101175,SS6 ,Resources,Campus,Preventative Property Maintenance,Premises Related,REVENUE
http://statistics.data.gov.uk/id/local-authority/00HY,Wiltshire Council,17/04/2012,1900803960,1000.00,AC  and  MS Ltd ,101175,SS6 ,Resources,WTP Office,Preventative Property Maintenance,Premises Related,REVENUE
http://statistics.data.gov.uk/id/local-authority/00HY,Wiltshire Council,17/04/2012,1900803965,637.50,AC  and  MS Ltd ,101175,SS6 ,Wiltshire Council,Wiltshire Council,Buildings Minor Alterations,Premises Related,CAPITAL
http://statistics.data.gov.uk/id/local-authority/00HY,Wiltshire Council,17/04/2012,1900803966,1000.00,AC  and  MS Ltd ,101175,SS6 ,Resources,Special Schools,Preventative Property Maintenance,Premises Related,REVENUE
http://statistics.data.gov.uk/id/local-authority/00HY,Wiltshire Council,17/04/2012,1900804422,8400.00,AC  and  MS Ltd ,101175,SS6 ,Wiltshire Council,Wiltshire Council,Buildings Minor Alterations,Premises Related,CAPITAL
http://statistics.data.gov.uk/id/local-authority/00HY,Wiltshire Council,17/04/2012,1900805358,600.00,AC  and  MS Ltd ,101175,SS6 ,Resources,Rural Estates,Preventative Property Maintenance,Premises Related,REVENUE
http://statistics.data.gov.uk/id/local-authority/00HY,Wiltshire Council,17/04/2012,1900805417,620.00,AC  and  MS Ltd ,101175,SS6 ,Resources,Campus,Preventative Property Maintenance,Premises Related,REVENUE
http://statistics.data.gov.uk/id/local-authority/00HY,Wiltshire Council,17/04/2012,5106093960,8030.00,AC  and  MS Ltd ,101175,SS6 ,Resources,Secondary Schools,Preventative Property Maintenance,Premises Related,REVENUE
http://statistics.data.gov.uk/id/local-authority/00HY,Wiltshire Council,17/04/2012,5106097630,1375.00,AC  and  MS Ltd ,101175,SS6 ,Wiltshire Council,Wiltshire Council,Premises Related Other Maintenance Costs,Premises Related,CAPITAL
http://statistics.data.gov.uk/id/local-authority/00HY,Wiltshire Council,17/04/2012,5106097633,1550.00,AC  and  MS Ltd ,101175,SS6 ,Wiltshire Council,Wiltshire Council,Premises Related Other Maintenance Costs,Premises Related,CAPITAL
http://statistics.data.gov.uk/id/local-authority/00HY,Wiltshire Council,17/04/2012,5106097634,4950.00,AC  and  MS Ltd ,101175,SS6 ,Wiltshire Council,Wiltshire Council,Premises Related Other Maintenance Costs,Premises Related,CAPITAL
http://statistics.data.gov.uk/id/local-authority/00HY,Wiltshire Council,17/04/2012,5106097635,3300.00,AC  and  MS Ltd ,101175,SS6 ,Wiltshire Council,Wiltshire Council,Premises Related Other Maintenance Costs,Premises Related,CAPITAL
http://statistics.data.gov.uk/id/local-authority/00HY,Wiltshire Council,17/04/2012,5106097636,1900.00,AC  and  MS Ltd ,101175,SS6 ,Wiltshire Council,Wiltshire Council,Premises Related Other Maintenance Costs,Premises Related,CAPITAL
http://statistics.data.gov.uk/id/local-authority/00HY,Wiltshire Council,17/04/2012,5106098293,14310.00,AC  and  MS Ltd ,101175,SS6 ,Wiltshire Council,Wiltshire Council,Premises Related Other Maintenance Costs,Premises Related,CAPITAL
http://statistics.data.gov.uk/id/local-authority/00HY,Wiltshire Council,20/04/2012,5106109935,2375.00,AC  and  MS Ltd ,101175,SS6 ,Wiltshire Council,Wiltshire Council,Premises Related Other Maintenance Costs,Premises Related,CAPITAL
http://statistics.data.gov.uk/id/local-authority/00HY,Wiltshire Council,05/04/2012,5106099474,3685.88,Access Care Ltd ,110037,SP10,Community Services,OP West Locality,Adult Domiciliary care - Live in contribution,Income,REVENUE
http://statistics.data.gov.uk/id/local-authority/00HY,Wiltshire Council,20/04/2012,5106099690,2207.80,Access Care Ltd ,110037,SP10,Community Services,OP South Locality,Adult Domiciliary care - Live in contribution,Income,REVENUE
http://statistics.data.gov.uk/id/local-authority/00HY,Wiltshire Council,20/04/2012,5106099691,2629.52,Access Care Ltd ,110037,SP10,Community Services,PI East Locality,Adult Domiciliary care - Live in contribution,Income,REVENUE
http://statistics.data.gov.uk/id/local-authority/00HY,Wiltshire Council,02/04/2012,5106098286,674.67,Access UK Limited ,128203,CT1 ,Resources,Applications SuppLOB,ICT - Support arrangements,Supplies and Services,REVENUE
http://statistics.data.gov.uk/id/local-authority/00HY,Wiltshire Council,27/04/2012,5106109089,1800.00,Acer Tree Surgeons Ltd ,113296,BA13,Neighbourhood & Planning,Woodland & Tree Mtc,Grounds Maintenance,Premises Related,REVENUE
http://statistics.data.gov.uk/id/local-authority/00HY,Wiltshire Council,11/04/2012,5106098004,2100.00,Acoustic Consultants ltd ,125807,BS31,Wiltshire Council,Wiltshire Council,Consultants� Fees,Supplies and Services,CAPITAL
http://statistics.data.gov.uk/id/local-authority/00HY,Wiltshire Council,02/04/2012,5106098098,3252.48,Action For Children ,110045,WD18,Children & Education,S C Staff  Developme,Staff Training Course Costs,Employee Related,REVENUE
http://statistics.data.gov.uk/id/local-authority/00HY,Wiltshire Council,26/04/2012,1900823362,4620.00,Action on Addiction ,110046,SP3 ,Community Services,(9)ResPlacementsCIC,Adult Residential Placements - Substance Misuse,Third Party Payments,REVENUE
http://statistics.data.gov.uk/id/local-authority/00HY,Wiltshire Council,27/04/2012,1900823397,2200.00,Action on Addiction ,110046,SP3 ,Community Services,(9)ResPlacementsCIC,Adult Residential Placements - Substance Misuse,Third Party Payments,REVENUE
http://statistics.data.gov.uk/id/local-authority/00HY,Wiltshire Council,17/04/2012,5106093311,4073.96,Action on Hearing Loss ,112215,EC1Y,Community Services,CTPLD County CIC U65,Supported Living - Without SP payments,Third Party Payments,REVENUE
http://statistics.data.gov.uk/id/local-authority/00HY,Wiltshire Council,04/04/2012,5106093539,1607.68,Action on Hearing Loss ,112215,EC1Y,Community Services,PI North Locality,Adult Domiciliary Care - Spot,Third Party Payments,REVENUE
http://statistics.data.gov.uk/id/local-authority/00HY,Wiltshire Council,18/04/2012,5106093540,1165.96,Action on Hearing Loss ,112215,EC1Y,Community Services,PI West Locality,Adult Domiciliary Care - Spot,Third Party Payments,REVENUE
http://statistics.data.gov.uk/id/local-authority/00HY,Wiltshire Council,11/04/2012,5106101466,5793.68,Action on Hearing Loss ,112215,EC1Y,Community Services,PI South Locality,Adult Residential Placements - Spot Purchase,Third Party Payments,REVENUE
http://statistics.data.gov.uk/id/local-authority/00HY,Wiltshire Council,11/04/2012,5106102583,5009.56,Action on Hearing Loss ,112215,EC1Y,Community Services,OP North Locality,Adult Residential Placements - Spot Purchase,Third Party Payments,REVENUE
http://statistics.data.gov.uk/id/local-authority/00HY,Wiltshire Council,12/04/2012,5106105797,1875.00,Action on Hearing Loss ,112215,EC1Y,Community Services,Hearing & Vision,Client Aids and Adaptations,Third Party Payments,REVENUE
http://statistics.data.gov.uk/id/local-authority/00HY,Wiltshire Council,12/04/2012,5106105800,611.22,Action on Hearing Loss ,112215,EC1Y,Community Services,Hearing & Vision,Client Aids and Adaptations,Third Party Payments,REVENUE
http://statistics.data.gov.uk/id/local-authority/00HY,Wiltshire Council,02/04/2012,5106092754,1050.00,Active Assisstance ,131584,TN13,Community Services,PI North Locality,Adult Domiciliary Care - Live in Care,Third Party Payments,REVENUE
http://statistics.data.gov.uk/id/local-authority/00HY,Wiltshire Council,16/04/2012,5106093792,1050.00,Active Assisstance ,131584,TN13,Community Services,PI North Locality,Adult Domiciliary Care - Live in Care,Third Party Payments,REVENUE
http://statistics.data.gov.uk/id/local-authority/00HY,Wiltshire Council,05/04/2012,5106093793,1050.00,Active Assisstance ,131584,TN13,Community Services,PI North Locality,Adult Domiciliary Care - Live in Care,Third Party Payments,REVENUE
http://statistics.data.gov.uk/id/local-authority/00HY,Wiltshire Council,02/04/2012,5106094382,2740.00,Adams Integra ,113318,PO19,Neighbourhood & Planning,Wiltshire Core Strat,Consultants� Fees,Supplies and Services,REVENUE
http://statistics.data.gov.uk/id/local-authority/00HY,Wiltshire Council,05/04/2012,5106098363,666.85,Adams Morey Ltd ,110053,SP2 ,Neighbourhood & Planning,Fleet Operations,Vehicle Parts,Transport Related,REVENUE
http://statistics.data.gov.uk/id/local-authority/00HY,Wiltshire Council,20/04/2012,5106110049,3135.00,ADCS Leading childrens Services,123894,M4 3,Children & Education,SubstoPublication,Other Social & Welfare Costs,Third Party Payments,REVENUE
http://statistics.data.gov.uk/id/local-authority/00HY,Wiltshire Council,10/04/2012,1900810850,3913.20,Adiemus Care Limited - Ravenscroft ,132154,HA1 ,Community Services,FNC,Adult Care Funded Nursing Care - Out of County Cli,Third Party Payments,REVENUE
http://statistics.data.gov.uk/id/local-authority/00HY,Wiltshire Council,11/04/2012,5106102276,1947.32,Adiemus Care Limited - Ravenscroft ,132154,HA1 ,Community Services,OP West Locality,Adult Care Nursing Placements- Spot Purchase,Third Party Payments,REVENUE
http://statistics.data.gov.uk/id/local-authority/00HY,Wiltshire Council,11/04/2012,5106102279,2085.20,Adiemus Care Limited - Ravenscroft ,132154,HA1 ,Community Services,OP West Locality,Adult Care Nursing Placements- Spot Purchase,Third Party Payments,REVENUE
http://statistics.data.gov.uk/id/local-authority/00HY,Wiltshire Council,11/04/2012,5106102282,1643.96,Adiemus Care Limited - Ravenscroft ,132154,HA1 ,Community Services,OP West Locality,Adult Care Nursing Placements- Spot Purchase,Third Party Payments,REVENUE
http://statistics.data.gov.uk/id/local-authority/00HY,Wiltshire Council,11/04/2012,5106102285,1456.88,Adiemus Care Limited - Ravenscroft ,132154,HA1 ,Community Services,MH OP West Locality,Adult Care Nursing Placements- Spot Purchase,Third Party Payments,REVENUE
http://statistics.data.gov.uk/id/local-authority/00HY,Wiltshire Council,11/04/2012,5106102288,2008.40,Adiemus Care Limited - Ravenscroft ,132154,HA1 ,Community Services,OP West Locality,Adult Care Nursing Placements- Spot Purchase,Third Party Payments,REVENUE
http://statistics.data.gov.uk/id/local-authority/00HY,Wiltshire Council,11/04/2012,5106102291,1965.20,Adiemus Care Limited - Ravenscroft ,132154,HA1 ,Community Services,OP West Locality,Adult Care Nursing Placements- Spot Purchase,Third Party Payments,REVENUE
http://statistics.data.gov.uk/id/local-authority/00HY,Wiltshire Council,11/04/2012,5106102294,1456.88,Adiemus Care Limited - Ravenscroft ,132154,HA1 ,Community Services,OP West Locality,Adult Care Nursing Placements- Spot Purchase,Third Party Payments,REVENUE
http://statistics.data.gov.uk/id/local-authority/00HY,Wiltshire Council,11/04/2012,5106102297,2021.52,Adiemus Care Limited - Ravenscroft ,132154,HA1 ,Community Services,OP West Locality,Adult Care Nursing Placements- Spot Purchase,Third Party Payments,REVENUE
http://statistics.data.gov.uk/id/local-authority/00HY,Wiltshire Council,11/04/2012,5106102342,2021.52,Adiemus Care Limited - Ravenscroft ,132154,HA1 ,Community Services,OP West Locality,Adult Care Nursing Placements- Spot Purchase,Third Party Payments,REVENUE
http://statistics.data.gov.uk/id/local-authority/00HY,Wiltshire Council,11/04/2012,5106102347,2021.52,Adiemus Care Limited - Ravenscroft ,132154,HA1 ,Community Services,OP West Locality,Adult Care Nursing Placements- Spot Purchase,Third Party Payments,REVENUE
http://statistics.data.gov.uk/id/local-authority/00HY,Wiltshire Council,11/04/2012,5106102647,2008.40,Adiemus Care Limited - Ravenscroft ,132154,HA1 ,Community Services,MH OP West Locality,Adult Care Nursing Placements- Spot Purchase,Third Party Payments,REVENUE
http://statistics.data.gov.uk/id/local-authority/00HY,Wiltshire Council,11/04/2012,5106102759,2021.52,Adiemus Care Limited - Ravenscroft ,132154,HA1 ,Community Services,MH OP West Locality,Adult Care Nursing Placements- Spot Purchase,Third Party Payments,REVENUE
http://statistics.data.gov.uk/id/local-authority/00HY,Wiltshire Council,11/04/2012,5106102945,1878.60,Adiemus Care Limited - Ravenscroft ,132154,HA1 ,Community Services,OP West Locality,Adult Residential Placements - Spot Purchase,Third Party Payments,REVENUE
http://statistics.data.gov.uk/id/local-authority/00HY,Wiltshire Council,11/04/2012,5106102949,2382.12,Adiemus Care Limited - Ravenscroft ,132154,HA1 ,Community Services,OP West Locality,Adult Residential Placements - Spot Purchase,Third Party Payments,REVENUE
http://statistics.data.gov.uk/id/local-authority/00HY,Wiltshire Council,11/04/2012,5106102990,2000.00,Adiemus Care Limited - Ravenscroft ,132154,HA1 ,Community Services,OP West Locality,Adult Residential Placements - Spot Purchase,Third Party Payments,REVENUE
http://statistics.data.gov.uk/id/local-authority/00HY,Wiltshire Council,11/04/2012,5106103105,1958.84,Adiemus Care Limited - Ravenscroft ,132154,HA1 ,Community Services,MH OP West Locality,Adult Residential Placements - Spot Purchase,Third Party Payments,REVENUE
http://statistics.data.gov.uk/id/local-authority/00HY,Wiltshire Council,11/04/2012,5106103530,2021.52,Adiemus Care Limited - Ravenscroft ,132154,HA1 ,Community Services,OP West Locality,Adult Care Nursing Placements- Spot Purchase,Third Party Payments,REVENUE
http://statistics.data.gov.uk/id/local-authority/00HY,Wiltshire Council,11/04/2012,5106103534,2021.52,Adiemus Care Limited - Ravenscroft ,132154,HA1 ,Community Services,OP West Locality,Adult Care Nursing Placements- Spot Purchase,Third Party Payments,REVENUE
http://statistics.data.gov.uk/id/local-authority/00HY,Wiltshire Council,11/04/2012,5106103538,1456.88,Adiemus Care Limited - Ravenscroft ,132154,HA1 ,Community Services,OP West Locality,Adult Care Nursing Placements- Spot Purchase,Third Party Payments,REVENUE
http://statistics.data.gov.uk/id/local-authority/00HY,Wiltshire Council,11/04/2012,5106103542,2021.52,Adiemus Care Limited - Ravenscroft ,132154,HA1 ,Community Services,MH AOWA West,Adult Care Nursing Placements- Spot Purchase,Third Party Payments,REVENUE
http://statistics.data.gov.uk/id/local-authority/00HY,Wiltshire Council,11/04/2012,5106103546,2465.20,Adiemus Care Limited - Ravenscroft ,132154,HA1 ,Community Services,MH OP West Locality,Adult Care Nursing Placements- Spot Purchase,Third Party Payments,REVENUE
http://statistics.data.gov.uk/id/local-authority/00HY,Wiltshire Council,11/04/2012,5106103550,2021.52,Adiemus Care Limited - Ravenscroft ,132154,HA1 ,Community Services,OP North Locality,Adult Care Nursing Placements- Spot Purchase,Third Party Payments,REVENUE
http://statistics.data.gov.uk/id/local-authority/00HY,Wiltshire Council,11/04/2012,5106103554,2021.52,Adiemus Care Limited - Ravenscroft ,132154,HA1 ,Community Services,OP West Locality,Adult Care Nursing Placements- Spot Purchase,Third Party Payments,REVENUE
http://statistics.data.gov.uk/id/local-authority/00HY,Wiltshire Council,11/04/2012,5106104186,2265.20,Adiemus Care Limited - Ravenscroft ,132154,HA1 ,Community Services,Home Loans,Adult Care - Home Loan Costs,Capital charges and Expenditure,REVENUE
http://statistics.data.gov.uk/id/local-authority/00HY,Wiltshire Council,27/04/2012,5106113400,704.10,Adiemus Care Limited - Ravenscroft ,132154,HA1 ,Community Services,OP West Locality,Adult Residential Placements - Spot Purchase,Third Party Payments,REVENUE
http://statistics.data.gov.uk/id/local-authority/00HY,Wiltshire Council,27/04/2012,5106113402,563.28,Adiemus Care Limited - Ravenscroft ,132154,HA1 ,Community Services,OP West Locality,Adult Residential Placements - Spot Purchase,Third Party Payments,REVENUE
http://statistics.data.gov.uk/id/local-authority/00HY,Wiltshire Council,27/04/2012,5106113404,2464.40,Adiemus Care Limited - Ravenscroft ,132154,HA1 ,Community Services,OP West Locality,Adult Residential Placements - Spot Purchase,Third Party Payments,REVENUE
http://statistics.data.gov.uk/id/local-authority/00HY,Wiltshire Council,23/04/2012,5106110467,1125.00,Adoption UK ,110057,OX16,Children & Education,Adoption Services,Professional Subscriptions/Memberships,Employee Related,REVENUE
http://statistics.data.gov.uk/id/local-authority/00HY,Wiltshire Council,18.04.2012,1900820707,4917.42,Adrains Engineering Psv ,100848,.,Wiltshire Council,Wiltshire Council,Transport Contracts,Third Party Payments,REVENUE
http://statistics.data.gov.uk/id/local-authority/00HY,Wiltshire Council,18.04.2012,1900820708,4020.73,Adrains Engineering Psv ,100848,.,Wiltshire Council,Wiltshire Council,Transport Contracts,Third Party Payments,REVENUE
http://statistics.data.gov.uk/id/local-authority/00HY,Wiltshire Council,18.04.2012,1900820709,3971.76,Adrains Engineering Psv ,100848,.,Wiltshire Council,Wiltshire Council,Transport Contracts,Third Party Payments,REVENUE
http://statistics.data.gov.uk/id/local-authority/00HY,Wiltshire Council,18.04.2012,1900820712,5579.05,Adrains Engineering Psv ,100848,.,Wiltshire Council,Wiltshire Council,Transport Contracts,Third Party Payments,REVENUE
http://statistics.data.gov.uk/id/local-authority/00HY,Wiltshire Council,18.04.2012,1900820714,642.81,Adrains Engineering Psv ,100848,.,Neighbourhood & Planning,Public Transport,Transport Contracts,Third Party Payments,REVENUE
http://statistics.data.gov.uk/id/local-authority/00HY,Wiltshire Council,19/04/2012,1900821213,1157.08,Adrains Engineering Psv ,100848,SN15,Neighbourhood & Planning,Mainstream Secondary,Transport Contracts,Third Party Payments,REVENUE
http://statistics.data.gov.uk/id/local-authority/00HY,Wiltshire Council,19/04/2012,1900821213,4745.80,Adrains Engineering Psv ,100848,SN15,Neighbourhood & Planning,Mainstream Primary,Transport Contracts,Third Party Payments,REVENUE
http://statistics.data.gov.uk/id/local-authority/00HY,Wiltshire Council,19/04/2012,1900821213,8310.11,Adrains Engineering Psv ,100848,SN15,Neighbourhood & Planning,Public Transport,Transport Contracts,Third Party Payments,REVENUE
http://statistics.data.gov.uk/id/local-authority/00HY,Wiltshire Council,20/04/2012,1900821268,621.01,ADT Fire & Security Plc ,101042,M16 ,Neighbourhood & Planning,Housing Area 1,Fire Alarms maintenance,Premises Related,REVENUE
http://statistics.data.gov.uk/id/local-authority/00HY,Wiltshire Council,18/04/2012,5106099259,1400.00,AginCare Live In Care Services Ltd ,110071,DT4 ,Community Services,OP West Locality,Adult Domiciliary Care - Live in Care,Third Party Payments,REVENUE
http://statistics.data.gov.uk/id/local-authority/00HY,Wiltshire Council,18/04/2012,5106099270,1499.96,AginCare Live In Care Services Ltd ,110071,DT4 ,Community Services,PI South Locality,Adult Domiciliary Care - Live in Care,Third Party Payments,REVENUE
http://statistics.data.gov.uk/id/local-authority/00HY,Wiltshire Council,18/04/2012,5106099271,1549.94,AginCare Live In Care Services Ltd ,110071,DT4 ,Community Services,PI South Locality,Adult Domiciliary Care - Live in Care,Third Party Payments,REVENUE
http://statistics.data.gov.uk/id/local-authority/00HY,Wiltshire Council,18/04/2012,5106099272,799.96,AginCare Live In Care Services Ltd ,110071,DT4 ,Community Services,OP South Locality,Adult Domiciliary Care - Live in Care,Third Party Payments,REVENUE
http://statistics.data.gov.uk/id/local-authority/00HY,Wiltshire Council,18/04/2012,5106099273,799.96,AginCare Live In Care Services Ltd ,110071,DT4 ,Community Services,OP South Locality,Adult Domiciliary Care - Live in Care,Third Party Payments,REVENUE
http://statistics.data.gov.uk/id/local-authority/00HY,Wiltshire Council,20/04/2012,5106110068,799.96,AginCare Live In Care Services Ltd ,110071,DT4 ,Community Services,OP South Locality,Adult Domiciliary Care - Live in Care,Third Party Payments,REVENUE
http://statistics.data.gov.uk/id/local-authority/00HY,Wiltshire Council,18/04/2012,5106098043,1090.76,Agincare Ltd ,110069,DT4 ,Community Services,MH OP South Locality,Third Party Income for Social Care Package,Income,REVENUE
http://statistics.data.gov.uk/id/local-authority/00HY,Wiltshire Council,18/04/2012,5106099274,669.34,Agincare Ltd ,110069,DT4 ,Community Services,OP South Locality,Adult Domiciliary care - Live in contribution,Income,REVENUE
http://statistics.data.gov.uk/id/local-authority/00HY,Wiltshire Council,04/04/2012,5106099374,1529.92,Agincare Ltd ,110069,DT4 ,Community Services,MH AOWA West,Adult Domiciliary Care - Live in Care,Third Party Payments,REVENUE
http://statistics.data.gov.uk/id/local-authority/00HY,Wiltshire Council,17/04/2012,5106105994,1529.92,Agincare Ltd ,110069,DT4 ,Community Services,MH AOWA West,Adult Domiciliary Care - Live in Care,Third Party Payments,REVENUE
http://statistics.data.gov.uk/id/local-authority/00HY,Wiltshire Council,20/04/2012,5106109919,511.84,Agincare Ltd ,110069,DT4 ,Community Services,MH OP South Locality,Adult Domiciliary Care - Block,Third Party Payments,REVENUE
http://statistics.data.gov.uk/id/local-authority/00HY,Wiltshire Council,20/04/2012,5106109919,3280.90,Agincare Ltd ,110069,DT4 ,Community Services,OP South Locality,Adult Domiciliary Care - Block Contribution,Income,REVENUE
http://statistics.data.gov.uk/id/local-authority/00HY,Wiltshire Council,20/04/2012,5106109930,763.04,Agincare Ltd ,110069,DT4 ,Community Services,PI West Locality,Adult Domiciliary Care - Block,Third Party Payments,REVENUE
http://statistics.data.gov.uk/id/local-authority/00HY,Wiltshire Council,20/04/2012,5106109930,1529.98,Agincare Ltd ,110069,DT4 ,Community Services,MH OP South Locality,Adult Domiciliary Care - Block,Third Party Payments,REVENUE
http://statistics.data.gov.uk/id/local-authority/00HY,Wiltshire Council,20/04/2012,5106109930,5692.12,Agincare Ltd ,110069,DT4 ,Community Services,PI South Locality,Adult Domiciliary Care - Block Contribution,Income,REVENUE
http://statistics.data.gov.uk/id/local-authority/00HY,Wiltshire Council,20/04/2012,5106109930,5885.08,Agincare Ltd ,110069,DT4 ,Community Services,OP South Locality,Adult Domiciliary Care - Block Contribution,Income,REVENUE
http://statistics.data.gov.uk/id/local-authority/00HY,Wiltshire Council,20/04/2012,5106109941,790.64,Agincare Ltd ,110069,DT4 ,Community Services,MH AOWA West,Adult Domiciliary Care - Block,Third Party Payments,REVENUE
http://statistics.data.gov.uk/id/local-authority/00HY,Wiltshire Council,20/04/2012,5106109941,940.35,Agincare Ltd ,110069,DT4 ,Community Services,PI West Locality,Adult Domiciliary Care - Block Contribution,Income,REVENUE
http://statistics.data.gov.uk/id/local-authority/00HY,Wiltshire Council,20/04/2012,5106109941,1666.06,Agincare Ltd ,110069,DT4 ,Community Services,PI North Locality,Adult Domiciliary Care - Block Contribution,Income,REVENUE
http://statistics.data.gov.uk/id/local-authority/00HY,Wiltshire Council,20/04/2012,5106109941,2738.24,Agincare Ltd ,110069,DT4 ,Community Services,MH AOWA North,Adult Domiciliary Care - Block,Third Party Payments,REVENUE
http://statistics.data.gov.uk/id/local-authority/00HY,Wiltshire Council,20/04/2012,5106109941,26601.02,Agincare Ltd ,110069,DT4 ,Community Services,OP North Locality,Adult Domiciliary Care - Block Contribution,Income,REVENUE
http://statistics.data.gov.uk/id/local-authority/00HY,Wiltshire Council,19/04/2012,5106098020,2790.20,AHS Limited ,113469,TN1 ,Neighbourhood & Planning,Equipped Play Areas,Small Plant / Tools,Supplies and Services,REVENUE
http://statistics.data.gov.uk/id/local-authority/00HY,Wiltshire Council,24/04/2012,5106099261,2790.20,AHS Limited ,113469,TN1 ,Neighbourhood & Planning,Equipped Play Areas,Small Plant / Tools,Supplies and Services,REVENUE
http://statistics.data.gov.uk/id/local-authority/00HY,Wiltshire Council,24/04/2012,5106099269,2790.20,AHS Limited ,113469,TN1 ,Neighbourhood & Planning,Equipped Play Areas,Small Plant / Tools,Supplies and Services,REVENUE
http://statistics.data.gov.uk/id/local-authority/00HY,Wiltshire Council,04/04/2012,5106093231,700.00,Aid Training  and  Operations Ltd ,110075,BA12,Children & Education, ExtPDTCourse,Consultants� Fees,Supplies and Services,REVENUE
http://statistics.data.gov.uk/id/local-authority/00HY,Wiltshire Council,20/04/2012,5106098872,945.00,Aid Training  and  Operations Ltd ,110075,BA12,Children & Education, ExtPDTCourse,Consultants� Fees,Supplies and Services,REVENUE
http://statistics.data.gov.uk/id/local-authority/00HY,Wiltshire Council,23/04/2012,5106098873,2160.00,Aid Training  and  Operations Ltd ,110075,BA12,Children & Education, ExtPDTCourse,Consultants� Fees,Supplies and Services,REVENUE
http://statistics.data.gov.uk/id/local-authority/00HY,Wiltshire Council,26/04/2012,5106099626,1200.00,Aid Training  and  Operations Ltd ,110075,BA12,Children & Education, ExtPDTCourse,Consultants� Fees,Supplies and Services,REVENUE
http://statistics.data.gov.uk/id/local-authority/00HY,Wiltshire Council,18.04.2012,1900820756,885.60,Airport Connections Pewsey Ltd ,100937,.,Neighbourhood & Planning,Mainstream Primary,Transport Contracts,Third Party Payments,REVENUE
http://statistics.data.gov.uk/id/local-authority/00HY,Wiltshire Council,12/04/2012,1900811921,1279.85,Akcess Ltd ,101402,SN2 ,Neighbourhood & Planning,Mainstream Secondary,Transport Contracts,Third Party Payments,REVENUE
http://statistics.data.gov.uk/id/local-authority/00HY,Wiltshire Council,12/04/2012,1900811921,1436.50,Akcess Ltd ,101402,SN2 ,Neighbourhood & Planning,Mainstream Primary,Transport Contracts,Third Party Payments,REVENUE
http://statistics.data.gov.uk/id/local-authority/00HY,Wiltshire Council,12/04/2012,1900811922,2310.00,Akcess Ltd ,101402,SN2 ,Neighbourhood & Planning,SEN Secondary,Transport Contracts,Third Party Payments,REVENUE
http://statistics.data.gov.uk/id/local-authority/00HY,Wiltshire Council,12/04/2012,1900811923,2244.00,Akcess Ltd ,101402,SN2 ,Neighbourhood & Planning,SEN 16+ Secondary,Transport Contracts,Third Party Payments,REVENUE
http://statistics.data.gov.uk/id/local-authority/00HY,Wiltshire Council,12/04/2012,1900811926,968.00,Akcess Ltd ,101402,SN2 ,Neighbourhood & Planning,SEN Primary,Transport Contracts,Third Party Payments,REVENUE
http://statistics.data.gov.uk/id/local-authority/00HY,Wiltshire Council,12/04/2012,1900811932,611.00,Akcess Ltd ,101402,SN2 ,Neighbourhood & Planning,DCS North Locality O,Transport Contracts,Third Party Payments,REVENUE
http://statistics.data.gov.uk/id/local-authority/00HY,Wiltshire Council,12/04/2012,1900811932,799.00,Akcess Ltd ,101402,SN2 ,Neighbourhood & Planning,DCS North Locality P,Transport Contracts,Third Party Payments,REVENUE
http://statistics.data.gov.uk/id/local-authority/00HY,Wiltshire Council,12/04/2012,1900811941,1247.67,Akcess Ltd ,101402,SN2 ,Neighbourhood & Planning,Mainstream Secondary,Transport Contracts,Third Party Payments,REVENUE
http://statistics.data.gov.uk/id/local-authority/00HY,Wiltshire Council,23/04/2012,1900821550,2532.20,Akcess Ltd ,101402,SN2 ,Neighbourhood & Planning,Mainstream Secondary,Transport Contracts,Third Party Payments,REVENUE
http://statistics.data.gov.uk/id/local-authority/00HY,Wiltshire Council,11/04/2012,5106100528,1588.80,Alabare Christian Care Centre ,100837,SP1 ,Community Services,CTPLD County CIC U65,Supported Living - Without SP payments,Third Party Payments,REVENUE
http://statistics.data.gov.uk/id/local-authority/00HY,Wiltshire Council,11/04/2012,5106100529,659.04,Alabare Christian Care Centre ,100837,SP1 ,Community Services,CTPLD County CIC U65,Supported Living - Without SP payments,Third Party Payments,REVENUE
http://statistics.data.gov.uk/id/local-authority/00HY,Wiltshire Council,11/04/2012,5106100531,4085.60,Alabare Christian Care Centre ,100837,SP1 ,Community Services,CTPLD County CIC U65,Supported Living - With SP Payments (3rd Party),Third Party Payments,REVENUE
http://statistics.data.gov.uk/id/local-authority/00HY,Wiltshire Council,11/04/2012,5106100534,1306.64,Alabare Christian Care Centre ,100837,SP1 ,Community Services,CTPLD County CIC U65,Supported Living - Without SP payments,Third Party Payments,REVENUE
http://statistics.data.gov.uk/id/local-authority/00HY,Wiltshire Council,11/04/2012,5106100535,1564.92,Alabare Christian Care Centre ,100837,SP1 ,Community Services,CTPLD County CIC U65,Supported Living - Without SP payments,Third Party Payments,REVENUE
http://statistics.data.gov.uk/id/local-authority/00HY,Wiltshire Council,11/04/2012,5106100537,3219.04,Alabare Christian Care Centre ,100837,SP1 ,Community Services,CTPLD County CIC U65,Supported Living - With SP Payments (3rd Party),Third Party Payments,REVENUE
http://statistics.data.gov.uk/id/local-authority/00HY,Wiltshire Council,11/04/2012,5106100540,2208.44,Alabare Christian Care Centre ,100837,SP1 ,Community Services,CTPLD County CIC U65,Supported Living - Without SP payments,Third Party Payments,REVENUE
http://statistics.data.gov.uk/id/local-authority/00HY,Wiltshire Council,11/04/2012,5106100542,1560.96,Alabare Christian Care Centre ,100837,SP1 ,Community Services,CTPLD County S75 U65,Supported Living - Without SP payments,Third Party Payments,REVENUE
http://statistics.data.gov.uk/id/local-authority/00HY,Wiltshire Council,11/04/2012,5106104713,2107.20,Alabare Christian Care Centre ,100837,SP1 ,Community Services,CTPLD County CIC U65,Supported Living - Without SP payments,Third Party Payments,REVENUE
http://statistics.data.gov.uk/id/local-authority/00HY,Wiltshire Council,11/04/2012,5106104715,1741.80,Alabare Christian Care Centre ,100837,SP1 ,Community Services,CTPLD County CIC U65,Supported Living - Without SP payments,Third Party Payments,REVENUE
http://statistics.data.gov.uk/id/local-authority/00HY,Wiltshire Council,11/04/2012,5106104717,1751.44,Alabare Christian Care Centre ,100837,SP1 ,Community Services,CTPLD County CIC U65,Supported Living - Without SP payments,Third Party Payments,REVENUE
http://statistics.data.gov.uk/id/local-authority/00HY,Wiltshire Council,11/04/2012,5106104719,1461.36,Alabare Christian Care Centre ,100837,SP1 ,Community Services,CTPLD County CIC U65,Supported Living - Without SP payments,Third Party Payments,REVENUE
http://statistics.data.gov.uk/id/local-authority/00HY,Wiltshire Council,11/04/2012,5106104720,1313.24,Alabare Christian Care Centre ,100837,SP1 ,Community Services,CTPLD County CIC U65,Supported Living - Without SP payments,Third Party Payments,REVENUE
http://statistics.data.gov.uk/id/local-authority/00HY,Wiltshire Council,11/04/2012,5106104721,819.28,Alabare Christian Care Centre ,100837,SP1 ,Community Services,CTPLD County CIC U65,Supported Living - Without SP payments,Third Party Payments,REVENUE
http://statistics.data.gov.uk/id/local-authority/00HY,Wiltshire Council,11/04/2012,5106104723,2454.24,Alabare Christian Care Centre ,100837,SP1 ,Community Services,CTPLD County CIC U65,Supported Living - Without SP payments,Third Party Payments,REVENUE
http://statistics.data.gov.uk/id/local-authority/00HY,Wiltshire Council,11/04/2012,5106104725,4085.60,Alabare Christian Care Centre ,100837,SP1 ,Community Services,CTPLD County CIC U65,Supported Living - With SP Payments (3rd Party),Third Party Payments,REVENUE
http://statistics.data.gov.uk/id/local-authority/00HY,Wiltshire Council,11/04/2012,5106104728,1751.44,Alabare Christian Care Centre ,100837,SP1 ,Community Services,CTPLD County CIC U65,Supported Living - Without SP payments,Third Party Payments,REVENUE
http://statistics.data.gov.uk/id/local-authority/00HY,Wiltshire Council,11/04/2012,5106104729,4085.60,Alabare Christian Care Centre ,100837,SP1 ,Community Services,CTPLD County CIC U65,Supported Living - With SP Payments (3rd Party),Third Party Payments,REVENUE
http://statistics.data.gov.uk/id/local-authority/00HY,Wiltshire Council,11/04/2012,5106104731,1560.00,Alabare Christian Care Centre ,100837,SP1 ,Community Services,CTPLD County CIC U65,Supported Living - Without SP payments,Third Party Payments,REVENUE
http://statistics.data.gov.uk/id/local-authority/00HY,Wiltshire Council,10/04/2012,1900810807,6212.38,Aldbourne Nursing Home ,110090,SN8 ,Community Services,FNC,Adult Care Funded Nursing Care - Out of County Cli,Third Party Payments,REVENUE
http://statistics.data.gov.uk/id/local-authority/00HY,Wiltshire Council,11/04/2012,5106100390,1935.16,Aldbourne Nursing Home ,110090,SN8 ,Community Services,OP East Locality,Adult Residential Placements - Spot Purchase,Third Party Payments,REVENUE
http://statistics.data.gov.uk/id/local-authority/00HY,Wiltshire Council,11/04/2012,5106100979,2021.20,Aldbourne Nursing Home ,110090,SN8 ,Community Services,OP East Locality,Adult Care Nursing Placements- Spot Purchase,Third Party Payments,REVENUE
http://statistics.data.gov.uk/id/local-authority/00HY,Wiltshire Council,11/04/2012,5106100982,2045.76,Aldbourne Nursing Home ,110090,SN8 ,Community Services,MH OP East Locality,Adult Care Nursing Placements- Spot Purchase,Third Party Payments,REVENUE
http://statistics.data.gov.uk/id/local-authority/00HY,Wiltshire Council,11/04/2012,5106100985,2045.76,Aldbourne Nursing Home ,110090,SN8 ,Community Services,OP West Locality,Adult Care Nursing Placements- Spot Purchase,Third Party Payments,REVENUE
http://statistics.data.gov.uk/id/local-authority/00HY,Wiltshire Council,11/04/2012,5106102336,2465.20,Aldbourne Nursing Home ,110090,SN8 ,Community Services,MH OP East Locality,Adult Care Nursing Placements- Spot Purchase,Third Party Payments,REVENUE
http://statistics.data.gov.uk/id/local-authority/00HY,Wiltshire Council,11/04/2012,5106102440,2305.20,Aldbourne Nursing Home ,110090,SN8 ,Community Services,MH OP East Locality,Adult Care Nursing Placements- Spot Purchase,Third Party Payments,REVENUE
http://statistics.data.gov.uk/id/local-authority/00HY,Wiltshire Council,25/04/2012,5106111635,618.64,Aldbourne Nursing Home ,110090,SN8 ,Community Services,OP East Locality,Adult Care Nursing Placements - 12 Week,Third Party Payments,REVENUE
http://statistics.data.gov.uk/id/local-authority/00HY,Wiltshire Council,25/04/2012,5106111639,1391.94,Aldbourne Nursing Home ,110090,SN8 ,Community Services,OP East Locality,Adult Care Nursing Placements - 12 Week,Third Party Payments,REVENUE
http://statistics.data.gov.uk/id/local-authority/00HY,Wiltshire Council,25/04/2012,5106111643,4330.40,Aldbourne Nursing Home ,110090,SN8 ,Community Services,OP East Locality,Adult Care Nursing Placements - 12 Week,Third Party Payments,REVENUE
http://statistics.data.gov.uk/id/local-authority/00HY,Wiltshire Council,25/04/2012,5106111646,869.60,Aldbourne Nursing Home ,110090,SN8 ,Community Services,OP East FNC,Adult Care Funded Nursing Care - Loal Auth Clients,Third Party Payments,REVENUE
http://statistics.data.gov.uk/id/local-authority/00HY,Wiltshire Council,11/04/2012,5106102058,6000.00,Alexandra Homes (Bristol) Ltd ,131787,BS15,Community Services,MH AOWA West HL,Adult Residential Placements - Spot Purchase,Third Party Payments,REVENUE
http://statistics.data.gov.uk/id/local-authority/00HY,Wiltshire Council,02/04/2012,5106080760,500.00,Alistair Snow Associates and Projec ,127802,EH11,Community Services,Public Arts Project,Consultants� Fees,Supplies and Services,REVENUE
http://statistics.data.gov.uk/id/local-authority/00HY,Wiltshire Council,30/04/2012,5106105589,1200.00,Alistair Snow Associates and Projec ,127802,EH11,Community Services,Public Arts Project,Consultants� Fees,Supplies and Services,REVENUE
http://statistics.data.gov.uk/id/local-authority/00HY,Wiltshire Council,27/04/2012,5106113203,1083.12,ALLEN FORD ,110108,CV3 ,Neighbourhood & Planning,Fleet Operations,Vehicle Parts,Transport Related,REVENUE
http://statistics.data.gov.uk/id/local-authority/00HY,Wiltshire Council,11/04/2012,5106100481,3367.92,Alliance Home Care ,110986,SN15,Community Services,MH AOWA West,Adult Residential Placements - Spot Purchase,Third Party Payments,REVENUE
http://statistics.data.gov.uk/id/local-authority/00HY,Wiltshire Council,11/04/2012,5106100482,3712.40,Alliance Home Care ,110986,SN15,Community Services,MH OP East Locality,Adult Residential Placements - Spot Purchase,Third Party Payments,REVENUE
http://statistics.data.gov.uk/id/local-authority/00HY,Wiltshire Council,11/04/2012,5106102378,2683.28,Alliance Home Care ,110986,SN15,Community Services,MH AOWA North,Adult Residential Placements - Spot Purchase,Third Party Payments,REVENUE
http://statistics.data.gov.uk/id/local-authority/00HY,Wiltshire Council,11/04/2012,5106102380,3326.00,Alliance Home Care ,110986,SN15,Community Services,PI North Locality,Adult Residential Placements - Spot Purchase,Third Party Payments,REVENUE
http://statistics.data.gov.uk/id/local-authority/00HY,Wiltshire Council,11/04/2012,5106103915,3416.88,Alliance Home Care ,110986,SN15,Community Services,CTPLD County CIC 65+,Adult Residential Placements - Spot Purchase,Third Party Payments,REVENUE
http://statistics.data.gov.uk/id/local-authority/00HY,Wiltshire Council,11/04/2012,5106100969,5455.20,Allied Backup Project ,110111,EX17,Community Services,CTPLD County S75 U65,Adult Residential Placements - Spot Purchase,Third Party Payments,REVENUE
http://statistics.data.gov.uk/id/local-authority/00HY,Wiltshire Council,04/04/2012,5106098055,641.17,Allied Health Care Allied Health Care,123001,SN4 ,Community Services,OP North Locality,Adult Domiciliary Care - Mileage,Third Party Payments,REVENUE
http://statistics.data.gov.uk/id/local-authority/00HY,Wiltshire Council,11/04/2012,5106099328,622.85,Allied Health Care Allied Health Care,123001,SN4 ,Community Services,OP North Locality,Adult Domiciliary Care - Mileage,Third Party Payments,REVENUE
http://statistics.data.gov.uk/id/local-authority/00HY,Wiltshire Council,11/04/2012,5106099677,2981.97,Allied Healthcare  UK  Ltd Allied Healthcare  UK  Ltd,110113,ST15,Community Services,PI South Locality,Adult Domiciliary care - Live in contribution,Income,REVENUE
http://statistics.data.gov.uk/id/local-authority/00HY,Wiltshire Council,11/04/2012,5106099320,809.06,Allied Healthcare Group Allied Healthcare Group,113066,SP2 ,Community Services,MH AOWA South,Adult Domiciliary Care - Mileage,Third Party Payments,REVENUE
http://statistics.data.gov.uk/id/local-authority/00HY,Wiltshire Council,13/04/2012,5106105859,3929.68,Allied Healthcare Group Allied Healthcare Group,113066,SP2 ,Community Services,CTPLD County CIC U65,Adult Day Care - Spot,Third Party Payments,REVENUE
http://statistics.data.gov.uk/id/local-authority/00HY,Wiltshire Council,17/04/2012,5106109098,15280.01,Allied Healthcare Group Allied Healthcare Group,113066,SP2 ,Community Services,CTPLD County CIC U65,Adult Domiciliary Care - Spot Contribution,Income,REVENUE
http://statistics.data.gov.uk/id/local-authority/00HY,Wiltshire Council,17/04/2012,5106109099,3730.35,Allied Healthcare Group Allied Healthcare Group,113066,SP2 ,Community Services,CTPLD County CIC U65,Adult Day Care - Spot,Third Party Payments,REVENUE
http://statistics.data.gov.uk/id/local-authority/00HY,Wiltshire Council,20/04/2012,5106109978,1516.81,Allied Healthcare Group Allied Healthcare Group,113066,SP2 ,Community Services,MH AOWA East,Adult Domiciliary Care - Mileage,Third Party Payments,REVENUE
http://statistics.data.gov.uk/id/local-authority/00HY,Wiltshire Council,19/04/2012,5106099318,995.00,ALLSPARES  AUTO  LTD ,110116,CF33,Neighbourhood & Planning,Fleet Operations,Vehicle Parts,Transport Related,REVENUE
http://statistics.data.gov.uk/id/local-authority/00HY,Wiltshire Council,23/04/2012,5106105563,1040.00,ALLSPARES  AUTO  LTD ,110116,CF33,Neighbourhood & Planning,Fleet Operations,Vehicle Parts,Transport Related,REVENUE
http://statistics.data.gov.uk/id/local-authority/00HY,Wiltshire Council,03/04/2012,1900807959,760.79,Allstar Business Solutions Limited ,132643,SN5 ,Neighbourhood & Planning,Housg Mtc Trading Ac,Vehicle Fuel,Transport Related,REVENUE
http://statistics.data.gov.uk/id/local-authority/00HY,Wiltshire Council,05/04/2012,1900810703,948.91,Allstar Business Solutions Limited ,132643,SN5 ,Neighbourhood & Planning,Housg Mtc Trading Ac,Vehicle Fuel,Transport Related,REVENUE
http://statistics.data.gov.uk/id/local-authority/00HY,Wiltshire Council,17/04/2012,1900813018,676.33,Allstar Business Solutions Limited ,132643,SN5 ,Neighbourhood & Planning,Housg Mtc Trading Ac,Vehicle Fuel,Transport Related,REVENUE
http://statistics.data.gov.uk/id/local-authority/00HY,Wiltshire Council,24/04/2012,1900821647,565.53,Allstar Business Solutions Limited ,132643,SN5 ,Neighbourhood & Planning,Housg Mtc Trading Ac,Vehicle Fuel,Transport Related,REVENUE
http://statistics.data.gov.uk/id/local-authority/00HY,Wiltshire Council,26/04/2012,1900822923,530.15,Allstar Business Solutions Limited ,132643,SN5 ,Neighbourhood & Planning,Housg Mtc Trading Ac,Vehicle Fuel,Transport Related,REVENUE
http://statistics.data.gov.uk/id/local-authority/00HY,Wiltshire Council,11/04/2012,5106100766,1558.19,Allstar Business Solutions Limited ,132643,SN5 ,Neighbourhood & Planning,Fleet Operations,Vehicle Fuel,Transport Related,REVENUE
http://statistics.data.gov.uk/id/local-authority/00HY,Wiltshire Council,04/04/2012,1900809967,576.00,Alpha Taxis ,100124,BA14,Neighbourhood & Planning,Mainstream Secondary,Transport Contracts,Third Party Payments,REVENUE
http://statistics.data.gov.uk/id/local-authority/00HY,Wiltshire Council,10/04/2012,1900810944,556.60,Alpha Taxis ,100124,BA14,Neighbourhood & Planning,SEN Primary,Transport Contracts,Third Party Payments,REVENUE
http://statistics.data.gov.uk/id/local-authority/00HY,Wiltshire Council,10/04/2012,1900810958,534.00,Alpha Taxis ,100124,BA14,Neighbourhood & Planning,DCS CTPLD U65,Transport Contracts,Third Party Payments,REVENUE
http://statistics.data.gov.uk/id/local-authority/00HY,Wiltshire Council,10/04/2012,1900810962,1268.00,Alpha Taxis ,100124,BA14,Neighbourhood & Planning,DCS CTPLD U65,Transport Contracts,Third Party Payments,REVENUE
http://statistics.data.gov.uk/id/local-authority/00HY,Wiltshire Council,10/04/2012,1900810969,774.00,Alpha Taxis ,100124,BA14,Neighbourhood & Planning,Mainstream Secondary,Transport Contracts,Third Party Payments,REVENUE
http://statistics.data.gov.uk/id/local-authority/00HY,Wiltshire Council,10/04/2012,1900810970,672.00,Alpha Taxis ,100124,BA14,Neighbourhood & Planning,LAC&16+ South&West,Transport Contracts,Third Party Payments,REVENUE
http://statistics.data.gov.uk/id/local-authority/00HY,Wiltshire Council,10/04/2012,1900810971,1584.00,Alpha Taxis ,100124,BA14,Neighbourhood & Planning,Community Team West,Transport Contracts,Third Party Payments,REVENUE
http://statistics.data.gov.uk/id/local-authority/00HY,Wiltshire Council,30/04/2012,5106110927,621.30,Alzheimers Support ,113451,BA14,Community Services,MH OP West Locality,Adult Domiciliary Care - Spot,Third Party Payments,REVENUE
http://statistics.data.gov.uk/id/local-authority/00HY,Wiltshire Council,24/04/2012,5106110663,9950.00,Amaze ,127994,M15 ,Resources,Infrastructure,Hardware Maintenance,Supplies and Services,REVENUE
http://statistics.data.gov.uk/id/local-authority/00HY,Wiltshire Council,17/04/2012,5106109237,710.00,Amber Publications ,113461,B15 ,Children & Education,EYLearnDevTm,Postage,Supplies and Services,REVENUE
http://statistics.data.gov.uk/id/local-authority/00HY,Wiltshire Council,18/04/2012,5106105881,3476.34,Amicus Foster Care Limited ,126050,BS2 ,Children & Education,External Placements,Adult / Child Care Agency Placement,Third Party Payments,REVENUE
http://statistics.data.gov.uk/id/local-authority/00HY,Wiltshire Council,18/04/2012,5106109472,6171.30,Amicus Foster Care Limited ,126050,BS2 ,Children & Education,External Placements,Adult / Child Care Agency Placement,Third Party Payments,REVENUE
http://statistics.data.gov.uk/id/local-authority/00HY,Wiltshire Council,18/04/2012,5106109482,3364.20,Amicus Foster Care Limited ,126050,BS2 ,Children & Education,External Placements,Adult / Child Care Agency Placement,Third Party Payments,REVENUE
http://statistics.data.gov.uk/id/local-authority/00HY,Wiltshire Council,18/04/2012,5106109486,3364.20,Amicus Foster Care Limited ,126050,BS2 ,Children & Education,External Placements,Adult / Child Care Agency Placement,Third Party Payments,REVENUE
http://statistics.data.gov.uk/id/local-authority/00HY,Wiltshire Council,10/04/2012,1900810849,5602.55,AMS Care Wiltshire ,130764,SN4 ,Community Services,FNC,Adult Care Funded Nursing Care - Out of County Cli,Third Party Payments,REVENUE
http://statistics.data.gov.uk/id/local-authority/00HY,Wiltshire Council,10/04/2012,5106099069,1127.85,AMS Care Wiltshire ,130764,SN4 ,Community Services,OP North Locality,Adult Care Nursing Placements- Spot Purchase,Third Party Payments,REVENUE
http://statistics.data.gov.uk/id/local-authority/00HY,Wiltshire Council,11/04/2012,5106102236,2485.20,AMS Care Wiltshire ,130764,SN4 ,Community Services,OP East Locality,Adult Care Nursing Placements- Spot Purchase,Third Party Payments,REVENUE
http://statistics.data.gov.uk/id/local-authority/00HY,Wiltshire Council,11/04/2012,5106102241,2513.20,AMS Care Wiltshire ,130764,SN4 ,Community Services,OP North Locality,Adult Care Nursing Placements- Spot Purchase,Third Party Payments,REVENUE
http://statistics.data.gov.uk/id/local-authority/00HY,Wiltshire Council,11/04/2012,5106102247,2514.40,AMS Care Wiltshire ,130764,SN4 ,Community Services,MH OP North Locality,Adult Care Nursing Placements- Spot Purchase,Third Party Payments,REVENUE
http://statistics.data.gov.uk/id/local-authority/00HY,Wiltshire Council,11/04/2012,5106102252,2514.40,AMS Care Wiltshire ,130764,SN4 ,Community Services,OP North Locality,Adult Care Nursing Placements- Spot Purchase,Third Party Payments,REVENUE
http://statistics.data.gov.uk/id/local-authority/00HY,Wiltshire Council,11/04/2012,5106102257,2485.20,AMS Care Wiltshire ,130764,SN4 ,Community Services,OP North Locality,Adult Care Nursing Placements- Spot Purchase,Third Party Payments,REVENUE
http://statistics.data.gov.uk/id/local-authority/00HY,Wiltshire Council,11/04/2012,5106102264,2514.40,AMS Care Wiltshire ,130764,SN4 ,Community Services,MH OP West Locality,Adult Care Nursing Placements- Spot Purchase,Third Party Payments,REVENUE
http://statistics.data.gov.uk/id/local-authority/00HY,Wiltshire Council,11/04/2012,5106102269,2070.00,AMS Care Wiltshire ,130764,SN4 ,Community Services,OP North Locality,Adult Care Nursing Placements- Spot Purchase,Third Party Payments,REVENUE
http://statistics.data.gov.uk/id/local-authority/00HY,Wiltshire Council,11/04/2012,5106102321,2106.36,AMS Care Wiltshire ,130764,SN4 ,Community Services,OP North Locality,Adult Care Nursing Placements- Spot Purchase,Third Party Payments,REVENUE
http://statistics.data.gov.uk/id/local-authority/00HY,Wiltshire Council,11/04/2012,5106102324,2514.40,AMS Care Wiltshire ,130764,SN4 ,Community Services,OP North Locality,Adult Care Nursing Placements- Spot Purchase,Third Party Payments,REVENUE
http://statistics.data.gov.uk/id/local-authority/00HY,Wiltshire Council,11/04/2012,5106102352,2106.36,AMS Care Wiltshire ,130764,SN4 ,Community Services,OP North Locality,Adult Care Nursing Placements- Spot Purchase,Third Party Payments,REVENUE
http://statistics.data.gov.uk/id/local-authority/00HY,Wiltshire Council,11/04/2012,5106102757,2105.20,AMS Care Wiltshire ,130764,SN4 ,Community Services,OP North Locality,Adult Care Nursing Placements- Spot Purchase,Third Party Payments,REVENUE
http://statistics.data.gov.uk/id/local-authority/00HY,Wiltshire Council,11/04/2012,5106103522,2485.20,AMS Care Wiltshire ,130764,SN4 ,Community Services,OP North Locality,Adult Care Nursing Placements- Spot Purchase,Third Party Payments,REVENUE
http://statistics.data.gov.uk/id/local-authority/00HY,Wiltshire Council,11/04/2012,5106103572,2106.36,AMS Care Wiltshire ,130764,SN4 ,Community Services,OP North Locality,Adult Care Nursing Placements- Spot Purchase,Third Party Payments,REVENUE
http://statistics.data.gov.uk/id/local-authority/00HY,Wiltshire Council,11/04/2012,5106103598,2504.80,AMS Care Wiltshire ,130764,SN4 ,Community Services,OP North Locality,Adult Care Nursing Placements- Spot Purchase,Third Party Payments,REVENUE
http://statistics.data.gov.uk/id/local-authority/00HY,Wiltshire Council,11/04/2012,5106104182,2765.20,AMS Care Wiltshire ,130764,SN4 ,Community Services,Home Loans,Adult Care - Home Loan Costs,Capital charges and Expenditure,REVENUE
http://statistics.data.gov.uk/id/local-authority/00HY,Wiltshire Council,11/04/2012,5106104691,2105.20,AMS Care Wiltshire ,130764,SN4 ,Community Services,OP North Locality,Adult Care Nursing Placements- Spot Purchase,Third Party Payments,REVENUE
http://statistics.data.gov.uk/id/local-authority/00HY,Wiltshire Council,12/04/2012,5106105775,2334.80,AMS Care Wiltshire ,130764,SN4 ,Community Services,OP East Locality,Adult Care Nursing Placements - 12 Week,Third Party Payments,REVENUE
http://statistics.data.gov.uk/id/local-authority/00HY,Wiltshire Council,12/04/2012,5106105779,3085.68,AMS Care Wiltshire ,130764,SN4 ,Community Services,OP North Locality,Adult Residential Placements - 12 Week,Third Party Payments,REVENUE
http://statistics.data.gov.uk/id/local-authority/00HY,Wiltshire Council,18.04.2012,1900807913,4068.00,AMTEC Consulting PLC ,129078,.,Community Services,One Off Resources,Consultants� Fees,Supplies and Services,REVENUE
http://statistics.data.gov.uk/id/local-authority/00HY,Wiltshire Council,13/04/2012,1900810189,34346.00,AMTEC Consulting PLC ,129078,GU9 ,Community Services,One Off Resources,Consultants� Fees,Supplies and Services,REVENUE
http://statistics.data.gov.uk/id/local-authority/00HY,Wiltshire Council,25/04/2012,1900806786,3279.00,Analysys Mason Limited ,131607,M5 3,Children & Education,Digital Inclusion HQ,Consultants� Fees,Supplies and Services,REVENUE
http://statistics.data.gov.uk/id/local-authority/00HY,Wiltshire Council,11/04/2012,5106102836,3232.64,Andover Nursing Home ,110142,SP10,Community Services,OP East Locality,Adult Care Nursing Placements- Spot Purchase,Third Party Payments,REVENUE
http://statistics.data.gov.uk/id/local-authority/00HY,Wiltshire Council,11/04/2012,5106103069,1893.80,Andover Nursing Home ,110142,SP10,Community Services,OP East Locality,Adult Care Nursing Placements- Spot Purchase,Third Party Payments,REVENUE
http://statistics.data.gov.uk/id/local-authority/00HY,Wiltshire Council,11/04/2012,5106103582,3034.36,Andover Nursing Home ,110142,SP10,Community Services,MH OP East Locality,Adult Care Nursing Placements- Spot Purchase,Third Party Payments,REVENUE
http://statistics.data.gov.uk/id/local-authority/00HY,Wiltshire Council,27/04/2012,1900823489,4921.68,Andrew Sykes Hire Limited ,132793,WV1 ,Resources,Secondary Schools,Preventative Property Maintenance,Premises Related,REVENUE
http://statistics.data.gov.uk/id/local-authority/00HY,Wiltshire Council,05/04/2012,1900810686,1672.00,Andy Taxis Limited ,100874,SP4 ,Neighbourhood & Planning,SEN 16+ Secondary,Transport Contracts,Third Party Payments,REVENUE
http://statistics.data.gov.uk/id/local-authority/00HY,Wiltshire Council,05/04/2012,1900810689,825.00,Andy Taxis Limited ,100874,SP4 ,Neighbourhood & Planning,Mainstream Primary,Transport Contracts,Third Party Payments,REVENUE
http://statistics.data.gov.uk/id/local-authority/00HY,Wiltshire Council,05/04/2012,1900810689,825.00,Andy Taxis Limited ,100874,SP4 ,Neighbourhood & Planning,Mainstream Secondary,Transport Contracts,Third Party Payments,REVENUE
http://statistics.data.gov.uk/id/local-authority/00HY,Wiltshire Council,12/04/2012,1900812023,3411.92,Andybus  and  Coach Ltd ,100132,SN16,Neighbourhood & Planning,Mainstream 16+ FE,Transport Contracts,Third Party Payments,REVENUE
http://statistics.data.gov.uk/id/local-authority/00HY,Wiltshire Council,12/04/2012,1900812023,3800.00,Andybus  and  Coach Ltd ,100132,SN16,Neighbourhood & Planning,Mainstream Primary,Transport Contracts,Third Party Payments,REVENUE
http://statistics.data.gov.uk/id/local-authority/00HY,Wiltshire Council,12/04/2012,1900812023,4821.42,Andybus  and  Coach Ltd ,100132,SN16,Neighbourhood & Planning,Mainstream 16+ Sec,Transport Contracts,Third Party Payments,REVENUE
http://statistics.data.gov.uk/id/local-authority/00HY,Wiltshire Council,12/04/2012,1900812023,18846.00,Andybus  and  Coach Ltd ,100132,SN16,Neighbourhood & Planning,Mainstream Secondary,Transport Contracts,Third Party Payments,REVENUE
http://statistics.data.gov.uk/id/local-authority/00HY,Wiltshire Council,12/04/2012,1900812023,36497.46,Andybus  and  Coach Ltd ,100132,SN16,Neighbourhood & Planning,Public Transport,Transport Contracts,Third Party Payments,REVENUE
http://statistics.data.gov.uk/id/local-authority/00HY,Wiltshire Council,24/04/2012,1900821779,6444.66,Andybus  and  Coach Ltd ,100132,SN16,Neighbourhood & Planning,Concessionary Fares,Compensation for Concessionary fares,Third Party Payments,REVENUE
http://statistics.data.gov.uk/id/local-authority/00HY,Wiltshire Council,23/04/2012,5106098907,787.20,Anita Andrews - Visual Arts ,113525,SN14,Community Services,Lib Arts Dev,Consultants� Fees,Supplies and Services,REVENUE
http://statistics.data.gov.uk/id/local-authority/00HY,Wiltshire Council,20/04/2012,1900821254,2173.17,Aon Limited ,113554,LE1 ,Neighbourhood & Planning,Admin Hsg Management,Tenants� Contents Insurance,Premises Related,REVENUE
http://statistics.data.gov.uk/id/local-authority/00HY,Wiltshire Council,05/04/2012,1900810634,5442.49,APL Travel Limited ,100596,SN4 ,Neighbourhood & Planning,Mainstream Secondary,Transport Contracts,Third Party Payments,REVENUE
http://statistics.data.gov.uk/id/local-authority/00HY,Wiltshire Council,05/04/2012,1900810637,2654.93,APL Travel Limited ,100596,SN4 ,Neighbourhood & Planning,Mainstream Secondary,Transport Contracts,Third Party Payments,REVENUE
http://statistics.data.gov.uk/id/local-authority/00HY,Wiltshire Council,05/04/2012,1900810649,1511.41,APL Travel Limited ,100596,SN4 ,Neighbourhood & Planning,Mainstream Secondary,Transport Contracts,Third Party Payments,REVENUE
http://statistics.data.gov.uk/id/local-authority/00HY,Wiltshire Council,05/04/2012,1900810649,2894.71,APL Travel Limited ,100596,SN4 ,Neighbourhood & Planning,Public Transport,Transport Contracts,Third Party Payments,REVENUE
http://statistics.data.gov.uk/id/local-authority/00HY,Wiltshire Council,05/04/2012,1900810651,1375.28,APL Travel Limited ,100596,SN4 ,Neighbourhood & Planning,Mainstream Secondary,Transport Contracts,Third Party Payments,REVENUE
http://statistics.data.gov.uk/id/local-authority/00HY,Wiltshire Council,05/04/2012,1900810651,2578.19,APL Travel Limited ,100596,SN4 ,Neighbourhood & Planning,Mainstream 16+ FE,Transport Contracts,Third Party Payments,REVENUE
http://statistics.data.gov.uk/id/local-authority/00HY,Wiltshire Council,05/04/2012,1900810651,4478.98,APL Travel Limited ,100596,SN4 ,Neighbourhood & Planning,Public Transport,Transport Contracts,Third Party Payments,REVENUE
http://statistics.data.gov.uk/id/local-authority/00HY,Wiltshire Council,24/04/2012,1900821781,5546.67,APL Travel Limited ,100596,SN4 ,Neighbourhood & Planning,Concessionary Fares,Compensation for Concessionary fares,Third Party Payments,REVENUE
http://statistics.data.gov.uk/id/local-authority/00HY,Wiltshire Council,27/04/2012,1900823529,1302.22,APL Travel Limited ,100596,SN4 ,Neighbourhood & Planning,Mainstream Secondary,Transport Contracts,Third Party Payments,REVENUE
http://statistics.data.gov.uk/id/local-authority/00HY,Wiltshire Council,27/04/2012,1900823529,5030.64,APL Travel Limited ,100596,SN4 ,Neighbourhood & Planning,Public Transport,Transport Contracts,Third Party Payments,REVENUE
http://statistics.data.gov.uk/id/local-authority/00HY,Wiltshire Council,19/04/2012,1900820955,3786.23,Apse ,113577,M32 ,Neighbourhood & Planning,Head of Leisure,Staff Training Course Costs,Employee Related,REVENUE
http://statistics.data.gov.uk/id/local-authority/00HY,Wiltshire Council,11/04/2012,5106097603,17700.00,Aquila Estates Ltd ,101549,CM1 ,Resources,WTP Office,Premises Rental / Hire Charges,Premises Related,REVENUE
http://statistics.data.gov.uk/id/local-authority/00HY,Wiltshire Council,11/04/2012,5106102767,2600.00,Arbory Residential Home ,113587,SP11,Community Services,MH OP East Locality,Adult Residential Placements - Spot Purchase,Third Party Payments,REVENUE
http://statistics.data.gov.uk/id/local-authority/00HY,Wiltshire Council,11/04/2012,5106100468,2037.52,Arch Care Services Ltd ,110169,BS21,Community Services,MH AOWA West,Adult Residential Placements - Spot Purchase,Third Party Payments,REVENUE
http://statistics.data.gov.uk/id/local-authority/00HY,Wiltshire Council,20/04/2012,5106110170,970.00,Arkadin Global Conferencing ,133645,W6 7,Wiltshire Council,Wiltshire Council,ICT - Support arrangements,Supplies and Services,CAPITAL
http://statistics.data.gov.uk/id/local-authority/00HY,Wiltshire Council,10/04/2012,1900811049,588.00,Arrow Private Hire ,100574,SN8 ,Neighbourhood & Planning,Mainstream Secondary,Transport Contracts,Third Party Payments,REVENUE
http://statistics.data.gov.uk/id/local-authority/00HY,Wiltshire Council,23/04/2012,5106100843,520.00,Arthur Williams Consulting Ltd ,129581,BA14,Wiltshire Council,Wiltshire Council,Consultants� Fees,Supplies and Services,CAPITAL
http://statistics.data.gov.uk/id/local-authority/00HY,Wiltshire Council,23/04/2012,5106100846,500.00,Arthur Williams Consulting Ltd ,129581,BA14,Wiltshire Council,Wiltshire Council,Consultants� Fees,Supplies and Services,CAPITAL
http://statistics.data.gov.uk/id/local-authority/00HY,Wiltshire Council,23/04/2012,5106100849,500.00,Arthur Williams Consulting Ltd ,129581,BA14,Wiltshire Council,Wiltshire Council,Consultants� Fees,Supplies and Services,CAPITAL
http://statistics.data.gov.uk/id/local-authority/00HY,Wiltshire Council,20/04/2012,5106098398,1127.05,Articles of Faith ,133650,BL9 ,Children & Education,STNDRDS&CURRC ACTV,Educational Aids,Supplies and Services,REVENUE
http://statistics.data.gov.uk/id/local-authority/00HY,Wiltshire Council,11/04/2012,5106092664,1551.35,Asco Educational Supplies Ltd ,113627,LS11,Children & Education,WiltsLearnResources,Educational Aids,Supplies and Services,REVENUE
http://statistics.data.gov.uk/id/local-authority/00HY,Wiltshire Council,13/04/2012,5106094336,585.60,Asco Educational Supplies Ltd ,113627,LS11,Children & Education,WiltsLearnResources,Educational Aids,Supplies and Services,REVENUE
http://statistics.data.gov.uk/id/local-authority/00HY,Wiltshire Council,10/04/2012,5106093183,2780.00,ASD Metal Services ,110182,LS10,Wiltshire Council,Wiltshire Council,Highways - Other Materials,Supplies and Services,CAPITAL
http://statistics.data.gov.uk/id/local-authority/00HY,Wiltshire Council,11/04/2012,5106102843,1951.32,Ashbourne  Eton  Ltd - Mountwood ,110183,SP10,Community Services,OP East Locality,Adult Care Nursing Placements- Spot Purchase,Third Party Payments,REVENUE
http://statistics.data.gov.uk/id/local-authority/00HY,Wiltshire Council,11/04/2012,5106101875,1813.04,Ashbury Lodge ,113635,SN3 ,Community Services,OP North Locality,Adult Residential Placements - Spot Purchase,Third Party Payments,REVENUE
http://statistics.data.gov.uk/id/local-authority/00HY,Wiltshire Council,11/04/2012,5106103224,1813.04,Ashbury Lodge ,113635,SN3 ,Community Services,MH OP North Locality,Adult Residential Placements - Spot Purchase,Third Party Payments,REVENUE
http://statistics.data.gov.uk/id/local-authority/00HY,Wiltshire Council,11/04/2012,5106103227,2121.00,Ashbury Lodge ,113635,SN3 ,Community Services,MH OP East Locality,Adult Residential Placements - Spot Purchase,Third Party Payments,REVENUE
http://statistics.data.gov.uk/id/local-authority/00HY,Wiltshire Council,11/04/2012,5106104570,684.36,Ashbury Lodge ,113635,SN3 ,Community Services,MH OP East Locality,Adult Residential Placements - Spot Purchase,Third Party Payments,REVENUE
http://statistics.data.gov.uk/id/local-authority/00HY,Wiltshire Council,24/04/2012,1900821812,575.00,Ashfords ,133080,TA1 ,Children & Education,HQ Social Care,Legal Fees,Supplies and Services,REVENUE
http://statistics.data.gov.uk/id/local-authority/00HY,Wiltshire Council,24/04/2012,1900821813,663.30,Ashfords ,133080,TA1 ,Children & Education,HQ Social Care,Legal Fees,Supplies and Services,REVENUE
http://statistics.data.gov.uk/id/local-authority/00HY,Wiltshire Council,19/04/2012,1900820931,12500.00,Ashley Leisure Service Ltd ,130510,TA23,Wiltshire Council,Wiltshire Council,Buildings Minor Alterations,Premises Related,CAPITAL
http://statistics.data.gov.uk/id/local-authority/00HY,Wiltshire Council,26/04/2012,1900823332,1259.60,Ashton Cabs ,101384,BA14,Neighbourhood & Planning,FamilySuppSouth&West,Transport Contracts,Third Party Payments,REVENUE
http://statistics.data.gov.uk/id/local-authority/00HY,Wiltshire Council,11/04/2012,5106103248,3800.00,Aspects and Milestones Trust ,131150,BS23,Community Services,CTPLD County CIC U65,Adult Residential Placements - Spot Purchase,Third Party Payments,REVENUE
http://statistics.data.gov.uk/id/local-authority/00HY,Wiltshire Council,05/04/2012,1900810535,3024.00,Aspire Taxis ,101274,SP2 ,Neighbourhood & Planning,SEN Secondary,Transport Contracts,Third Party Payments,REVENUE
http://statistics.data.gov.uk/id/local-authority/00HY,Wiltshire Council,05/04/2012,1900810539,990.00,Aspire Taxis ,101274,SP2 ,Neighbourhood & Planning,SEN Secondary,Transport Contracts,Third Party Payments,REVENUE
http://statistics.data.gov.uk/id/local-authority/00HY,Wiltshire Council,11/04/2012,5106100706,582.60,Assessment  and  Qualifications All ,113665,GU2 ,Children & Education,YPSSWest,Examination Fees,Supplies and Services,REVENUE
http://statistics.data.gov.uk/id/local-authority/00HY,Wiltshire Council,17/04/2012,5106099403,932.52,Association Of Teachers Of Mathematics,113686,DE23,Children & Education,STNDRDS&CURRC ACTV,Educational Aids,Supplies and Services,REVENUE
http://statistics.data.gov.uk/id/local-authority/00HY,Wiltshire Council,20/04/2012,1900821392,3054.39,Aster Group Ltd  Ridgeway Care. ,113069,SN10,Community Services,OP East Locality,Adult Day Care - Block,Third Party Payments,REVENUE
http://statistics.data.gov.uk/id/local-authority/00HY,Wiltshire Council,02/04/2012,1900807594,500.00,Aster Living ,112275,SN10,Wiltshire Council,Wiltshire Council,Other Professional Fees,Supplies and Services,CAPITAL
http://statistics.data.gov.uk/id/local-authority/00HY,Wiltshire Council,02/04/2012,1900807596,500.00,Aster Living ,112275,SN10,Wiltshire Council,Wiltshire Council,Other Professional Fees,Supplies and Services,CAPITAL
http://statistics.data.gov.uk/id/local-authority/00HY,Wiltshire Council,02/04/2012,1900807598,500.00,Aster Living ,112275,SN10,Wiltshire Council,Wiltshire Council,Other Professional Fees,Supplies and Services,CAPITAL
http://statistics.data.gov.uk/id/local-authority/00HY,Wiltshire Council,02/04/2012,1900807602,500.00,Aster Living ,112275,SN10,Wiltshire Council,Wiltshire Council,Other Professional Fees,Supplies and Services,CAPITAL
http://statistics.data.gov.uk/id/local-authority/00HY,Wiltshire Council,02/04/2012,1900807604,500.00,Aster Living ,112275,SN10,Wiltshire Council,Wiltshire Council,Other Professional Fees,Supplies and Services,CAPITAL
http://statistics.data.gov.uk/id/local-authority/00HY,Wiltshire Council,02/04/2012,1900807606,500.00,Aster Living ,112275,SN10,Wiltshire Council,Wiltshire Council,Other Professional Fees,Supplies and Services,CAPITAL
http://statistics.data.gov.uk/id/local-authority/00HY,Wiltshire Council,02/04/2012,1900807613,500.00,Aster Living ,112275,SN10,Wiltshire Council,Wiltshire Council,Other Professional Fees,Supplies and Services,CAPITAL
http://statistics.data.gov.uk/id/local-authority/00HY,Wiltshire Council,02/04/2012,1900807620,680.30,Aster Living ,112275,SN10,Wiltshire Council,Wiltshire Council,Other Professional Fees,Supplies and Services,CAPITAL
http://statistics.data.gov.uk/id/local-authority/00HY,Wiltshire Council,05/04/2012,1900807621,500.00,Aster Living ,112275,SN10,Wiltshire Council,Wiltshire Council,Other Professional Fees,Supplies and Services,CAPITAL
http://statistics.data.gov.uk/id/local-authority/00HY,Wiltshire Council,05/04/2012,1900807622,595.00,Aster Living ,112275,SN10,Wiltshire Council,Wiltshire Council,Other Professional Fees,Supplies and Services,CAPITAL
http://statistics.data.gov.uk/id/local-authority/00HY,Wiltshire Council,02/04/2012,1900807623,500.00,Aster Living ,112275,SN10,Wiltshire Council,Wiltshire Council,Other Professional Fees,Supplies and Services,CAPITAL
http://statistics.data.gov.uk/id/local-authority/00HY,Wiltshire Council,05/04/2012,1900807624,500.00,Aster Living ,112275,SN10,Wiltshire Council,Wiltshire Council,Other Professional Fees,Supplies and Services,CAPITAL
http://statistics.data.gov.uk/id/local-authority/00HY,Wiltshire Council,11/04/2012,1900807626,500.00,Aster Living ,112275,SN10,Wiltshire Council,Wiltshire Council,Other Professional Fees,Supplies and Services,CAPITAL
http://statistics.data.gov.uk/id/local-authority/00HY,Wiltshire Council,11/04/2012,1900807627,822.50,Aster Living ,112275,SN10,Wiltshire Council,Wiltshire Council,Other Professional Fees,Supplies and Services,CAPITAL
http://statistics.data.gov.uk/id/local-authority/00HY,Wiltshire Council,11/04/2012,1900807628,1711.50,Aster Living ,112275,SN10,Wiltshire Council,Wiltshire Council,Other Professional Fees,Supplies and Services,CAPITAL
http://statistics.data.gov.uk/id/local-authority/00HY,Wiltshire Council,11/04/2012,1900807629,500.00,Aster Living ,112275,SN10,Wiltshire Council,Wiltshire Council,Other Professional Fees,Supplies and Services,CAPITAL
http://statistics.data.gov.uk/id/local-authority/00HY,Wiltshire Council,11/04/2012,1900810136,934.50,Aster Living ,112275,SN10,Wiltshire Council,Wiltshire Council,Other Professional Fees,Supplies and Services,CAPITAL
http://statistics.data.gov.uk/id/local-authority/00HY,Wiltshire Council,05/04/2012,1900810139,728.50,Aster Living ,112275,SN10,Wiltshire Council,Wiltshire Council,Other Professional Fees,Supplies and Services,CAPITAL
http://statistics.data.gov.uk/id/local-authority/00HY,Wiltshire Council,05/04/2012,1900810142,500.00,Aster Living ,112275,SN10,Wiltshire Council,Wiltshire Council,Other Professional Fees,Supplies and Services,CAPITAL
http://statistics.data.gov.uk/id/local-authority/00HY,Wiltshire Council,05/04/2012,1900810145,500.00,Aster Living ,112275,SN10,Wiltshire Council,Wiltshire Council,Other Professional Fees,Supplies and Services,CAPITAL
http://statistics.data.gov.uk/id/local-authority/00HY,Wiltshire Council,05/04/2012,1900810149,588.33,Aster Living ,112275,SN10,Wiltshire Council,Wiltshire Council,Other Professional Fees,Supplies and Services,CAPITAL
http://statistics.data.gov.uk/id/local-authority/00HY,Wiltshire Council,05/04/2012,1900810153,500.00,Aster Living ,112275,SN10,Wiltshire Council,Wiltshire Council,Other Professional Fees,Supplies and Services,CAPITAL
http://statistics.data.gov.uk/id/local-authority/00HY,Wiltshire Council,05/04/2012,1900810170,932.90,Aster Living ,112275,SN10,Wiltshire Council,Wiltshire Council,Other Professional Fees,Supplies and Services,CAPITAL
http://statistics.data.gov.uk/id/local-authority/00HY,Wiltshire Council,05/04/2012,1900810176,1044.50,Aster Living ,112275,SN10,Wiltshire Council,Wiltshire Council,Other Professional Fees,Supplies and Services,CAPITAL
http://statistics.data.gov.uk/id/local-authority/00HY,Wiltshire Council,05/04/2012,1900810180,500.00,Aster Living ,112275,SN10,Wiltshire Council,Wiltshire Council,Other Professional Fees,Supplies and Services,CAPITAL
http://statistics.data.gov.uk/id/local-authority/00HY,Wiltshire Council,05/04/2012,1900810191,500.00,Aster Living ,112275,SN10,Wiltshire Council,Wiltshire Council,Other Professional Fees,Supplies and Services,CAPITAL
http://statistics.data.gov.uk/id/local-authority/00HY,Wiltshire Council,05/04/2012,1900810195,500.00,Aster Living ,112275,SN10,Wiltshire Council,Wiltshire Council,Other Professional Fees,Supplies and Services,CAPITAL
http://statistics.data.gov.uk/id/local-authority/00HY,Wiltshire Council,05/04/2012,1900810197,500.00,Aster Living ,112275,SN10,Wiltshire Council,Wiltshire Council,Other Professional Fees,Supplies and Services,CAPITAL
http://statistics.data.gov.uk/id/local-authority/00HY,Wiltshire Council,05/04/2012,1900810199,500.00,Aster Living ,112275,SN10,Wiltshire Council,Wiltshire Council,Other Professional Fees,Supplies and Services,CAPITAL
http://statistics.data.gov.uk/id/local-authority/00HY,Wiltshire Council,05/04/2012,1900810200,650.00,Aster Living ,112275,SN10,Wiltshire Council,Wiltshire Council,Other Professional Fees,Supplies and Services,CAPITAL
http://statistics.data.gov.uk/id/local-authority/00HY,Wiltshire Council,05/04/2012,1900810211,500.00,Aster Living ,112275,SN10,Wiltshire Council,Wiltshire Council,Other Professional Fees,Supplies and Services,CAPITAL
http://statistics.data.gov.uk/id/local-authority/00HY,Wiltshire Council,05/04/2012,1900810212,500.00,Aster Living ,112275,SN10,Wiltshire Council,Wiltshire Council,Other Professional Fees,Supplies and Services,CAPITAL
http://statistics.data.gov.uk/id/local-authority/00HY,Wiltshire Council,19/04/2012,1900820937,567.60,Aster Living ,112275,SN10,Wiltshire Council,Wiltshire Council,Other Professional Fees,Supplies and Services,CAPITAL
http://statistics.data.gov.uk/id/local-authority/00HY,Wiltshire Council,11/04/2012,5106102067,2066.44,Aston House Care Home ,132321,DL3 ,Community Services,MH OP North Locality,Adult Residential Placements - Spot Purchase,Third Party Payments,REVENUE
http://statistics.data.gov.uk/id/local-authority/00HY,Wiltshire Council,11/04/2012,5106102955,2066.44,Aston House Care Home ,132321,DL3 ,Community Services,MH OP North Locality,Adult Residential Placements - Spot Purchase,Third Party Payments,REVENUE
http://statistics.data.gov.uk/id/local-authority/00HY,Wiltshire Council,11/04/2012,5106103662,6328.84,Atlas Project Team ,110199,EX2 ,Community Services,CTPLD County S75 U65,Adult Residential Placements - Spot Purchase,Third Party Payments,REVENUE
http://statistics.data.gov.uk/id/local-authority/00HY,Wiltshire Council,27/04/2012,5106107945,21199.76,Ats Euromaster Ltd ,113709,B6 5,Neighbourhood & Planning,Fleet Operations,Vehicle 3rd Party Repairs,Transport Related,REVENUE
http://statistics.data.gov.uk/id/local-authority/00HY,Wiltshire Council,02/04/2012,1900807612,619.68,AudioGO Limited ,101157,BA2 ,Community Services,Lib Book Fund,Library Service,Supplies and Services,REVENUE
http://statistics.data.gov.uk/id/local-authority/00HY,Wiltshire Council,03/04/2012,1900807948,1267.27,AudioGO Limited ,101157,BA2 ,Community Services,Lib Book Fund,Library Service,Supplies and Services,REVENUE
http://statistics.data.gov.uk/id/local-authority/00HY,Wiltshire Council,05/04/2012,1900810515,1329.20,AudioGO Limited ,101157,BA2 ,Community Services,Lib Book Fund,Library Service,Supplies and Services,REVENUE
http://statistics.data.gov.uk/id/local-authority/00HY,Wiltshire Council,20/04/2012,1900821319,513.98,AudioGO Limited ,101157,BA2 ,Community Services,Lib Book Fund,Library Service,Supplies and Services,REVENUE
http://statistics.data.gov.uk/id/local-authority/00HY,Wiltshire Council,11/04/2012,1900811261,1039.24,Audley Care White Horse ,121958,SN8 ,Community Services,Intermediate Care,Interim Support Plan - HTLAH,Third Party Payments,REVENUE
http://statistics.data.gov.uk/id/local-authority/00HY,Wiltshire Council,05/04/2012,5106092586,942.96,Audley Care White Horse ,121958,SN8 ,Community Services,MH OP East Locality,Adult Domiciliary Care - Spot,Third Party Payments,REVENUE
http://statistics.data.gov.uk/id/local-authority/00HY,Wiltshire Council,05/04/2012,5106092587,658.92,Audley Care White Horse ,121958,SN8 ,Community Services,OP East Locality,Adult Domiciliary Care - Spot,Third Party Payments,REVENUE
http://statistics.data.gov.uk/id/local-authority/00HY,Wiltshire Council,10/04/2012,5106092600,613.30,Audley Care White Horse ,121958,SN8 ,Community Services,OP East Locality,Adult Domiciliary Care - Spot,Third Party Payments,REVENUE
http://statistics.data.gov.uk/id/local-authority/00HY,Wiltshire Council,05/04/2012,5106092679,579.44,Audley Care White Horse ,121958,SN8 ,Community Services,OP East Locality,Adult Domiciliary Care - Spot Contribution,Income,REVENUE
http://statistics.data.gov.uk/id/local-authority/00HY,Wiltshire Council,05/04/2012,5106092687,1118.07,Audley Care White Horse ,121958,SN8 ,Community Services,PI East Locality,Adult Domiciliary Care - Spot,Third Party Payments,REVENUE
http://statistics.data.gov.uk/id/local-authority/00HY,Wiltshire Council,05/04/2012,5106092688,1122.33,Audley Care White Horse ,121958,SN8 ,Community Services,OP East Locality,Adult Domiciliary Care - Spot Contribution,Income,REVENUE
http://statistics.data.gov.uk/id/local-authority/00HY,Wiltshire Council,05/04/2012,5106092690,2052.20,Audley Care White Horse ,121958,SN8 ,Community Services,OP East Locality,Adult Domiciliary Care - Spot,Third Party Payments,REVENUE
http://statistics.data.gov.uk/id/local-authority/00HY,Wiltshire Council,05/04/2012,5106092699,981.83,Audley Care White Horse ,121958,SN8 ,Community Services,OP East Locality,Adult Domiciliary Care - Spot,Third Party Payments,REVENUE
http://statistics.data.gov.uk/id/local-authority/00HY,Wiltshire Council,05/04/2012,5106092712,1599.74,Audley Care White Horse ,121958,SN8 ,Community Services,OP East Locality,Adult Domiciliary Care - Spot,Third Party Payments,REVENUE
http://statistics.data.gov.uk/id/local-authority/00HY,Wiltshire Council,05/04/2012,5106092715,852.28,Audley Care White Horse ,121958,SN8 ,Community Services,OP East Locality,Adult Domiciliary Care - Spot,Third Party Payments,REVENUE
http://statistics.data.gov.uk/id/local-authority/00HY,Wiltshire Council,05/04/2012,5106092721,1922.85,Audley Care White Horse ,121958,SN8 ,Community Services,PI East Locality,Adult Domiciliary Care - Spot,Third Party Payments,REVENUE
http://statistics.data.gov.uk/id/local-authority/00HY,Wiltshire Council,05/04/2012,5106093750,1799.99,Audley Care White Horse ,121958,SN8 ,Community Services,OP East Locality,Adult Domiciliary Care - Spot,Third Party Payments,REVENUE
http://statistics.data.gov.uk/id/local-authority/00HY,Wiltshire Council,05/04/2012,5106093791,4093.75,Audley Care White Horse ,121958,SN8 ,Community Services,OP East Locality,Adult Domiciliary Care - Live in Care,Third Party Payments,REVENUE
http://statistics.data.gov.uk/id/local-authority/00HY,Wiltshire Council,13/04/2012,5106106005,581.73,Audley Care White Horse ,121958,SN8 ,Community Services,OP East Locality,Adult Domiciliary Care - Spot Contribution,Income,REVENUE
http://statistics.data.gov.uk/id/local-authority/00HY,Wiltshire Council,19/04/2012,5106109644,805.63,Audley Care White Horse ,121958,SN8 ,Community Services,OP East Locality,Adult Domiciliary Care - Spot Contribution,Income,REVENUE
http://statistics.data.gov.uk/id/local-authority/00HY,Wiltshire Council,19/04/2012,5106109645,1070.31,Audley Care White Horse ,121958,SN8 ,Community Services,OP East Locality,Adult Domiciliary Care - Spot,Third Party Payments,REVENUE
http://statistics.data.gov.uk/id/local-authority/00HY,Wiltshire Council,19/04/2012,5106109647,633.60,Audley Care White Horse ,121958,SN8 ,Community Services,OP East Locality,Adult Domiciliary Care - Spot,Third Party Payments,REVENUE
http://statistics.data.gov.uk/id/local-authority/00HY,Wiltshire Council,19/04/2012,5106109664,1965.63,Audley Care White Horse ,121958,SN8 ,Community Services,OP East Locality,Adult Domiciliary Care - Live in Care,Third Party Payments,REVENUE
http://statistics.data.gov.uk/id/local-authority/00HY,Wiltshire Council,19/04/2012,5106109665,999.85,Audley Care White Horse ,121958,SN8 ,Community Services,OP East Locality,Adult Domiciliary Care - Spot,Third Party Payments,REVENUE
http://statistics.data.gov.uk/id/local-authority/00HY,Wiltshire Council,11/04/2012,5106103665,5721.44,Autism Specialised care Homes ,110205,BS10,Community Services,CTPLD County CIC U65,Adult Residential Placements - Spot Purchase,Third Party Payments,REVENUE
http://statistics.data.gov.uk/id/local-authority/00HY,Wiltshire Council,11/04/2012,5106103668,6983.32,Autism West Midlands ,110206,WR9 ,Community Services,CTPLD County CIC U65,Adult Residential Placements - Spot Purchase,Third Party Payments,REVENUE
http://statistics.data.gov.uk/id/local-authority/00HY,Wiltshire Council,18/04/2012,5106098096,570.00,Autodata Ltd ,113724,SL6 ,Neighbourhood & Planning,Fleet Operations,Vehicle Repairs & Maintenance,Transport Related,REVENUE
http://statistics.data.gov.uk/id/local-authority/00HY,Wiltshire Council,03/04/2012,5106098706,3800.94,Automotive Leasing Ltd ,113729,SL1 ,Neighbourhood & Planning,Fleet Operations,Commercial Leased Vehicles,Transport Related,REVENUE
http://statistics.data.gov.uk/id/local-authority/00HY,Wiltshire Council,05/04/2012,5106098707,3854.60,Automotive Leasing Ltd ,113729,SL1 ,Neighbourhood & Planning,Fleet Operations,Commercial Leased Vehicles,Transport Related,REVENUE
http://statistics.data.gov.uk/id/local-authority/00HY,Wiltshire Council,03/04/2012,5106098708,3690.87,Automotive Leasing Ltd ,113729,SL1 ,Neighbourhood & Planning,Fleet Operations,Commercial Leased Vehicles,Transport Related,REVENUE
http://statistics.data.gov.uk/id/local-authority/00HY,Wiltshire Council,13/04/2012,5106105996,571.25,Autonomy Care Limited ,126128,SN10,Community Services,PI East Locality,Adult Domiciliary Care - Spot,Third Party Payments,REVENUE
http://statistics.data.gov.uk/id/local-authority/00HY,Wiltshire Council,11/04/2012,5106102227,1916.00,Avenue Care (Fareham) Ltd ,110691,SN10,Community Services,OP East Locality,Adult Residential Placements - Spot Purchase,Third Party Payments,REVENUE
http://statistics.data.gov.uk/id/local-authority/00HY,Wiltshire Council,11/04/2012,5106102232,1933.28,Avenue Care (Fareham) Ltd ,110691,SN10,Community Services,MH OP East Locality,Adult Residential Placements - Spot Purchase,Third Party Payments,REVENUE
http://statistics.data.gov.uk/id/local-authority/00HY,Wiltshire Council,11/04/2012,5106102234,1969.00,Avenue Care (Fareham) Ltd ,110691,SN10,Community Services,CTPLD County CIC 65+,Adult Residential Placements - Spot Purchase,Third Party Payments,REVENUE
http://statistics.data.gov.uk/id/local-authority/00HY,Wiltshire Council,11/04/2012,5106102239,1916.00,Avenue Care (Fareham) Ltd ,110691,SN10,Community Services,OP East Locality,Adult Residential Placements - Spot Purchase,Third Party Payments,REVENUE
http://statistics.data.gov.uk/id/local-authority/00HY,Wiltshire Council,11/04/2012,5106103776,2080.60,Avenue Care (Fareham) Ltd ,110691,SN10,Community Services,MH OP West Locality,Adult Residential Placements - Spot Purchase,Third Party Payments,REVENUE
http://statistics.data.gov.uk/id/local-authority/00HY,Wiltshire Council,05/04/2012,5106099825,664.26,Avery Healthcare Cepen Lodge ,126733,SN14,Community Services,Home Loans,Adult Care - Home Loan Costs,Capital charges and Expenditure,REVENUE
http://statistics.data.gov.uk/id/local-authority/00HY,Wiltshire Council,11/04/2012,5106101974,2165.44,Avery Healthcare Cepen Lodge ,126733,SN14,Community Services,OP North Locality,Adult Residential Placements - Spot Purchase,Third Party Payments,REVENUE
http://statistics.data.gov.uk/id/local-authority/00HY,Wiltshire Council,11/04/2012,5106101977,2302.80,Avery Healthcare Cepen Lodge ,126733,SN14,Community Services,OP West Locality,Adult Residential Placements - Spot Purchase,Third Party Payments,REVENUE
http://statistics.data.gov.uk/id/local-authority/00HY,Wiltshire Council,11/04/2012,5106101983,2060.40,Avery Healthcare Cepen Lodge ,126733,SN14,Community Services,MH OP North Locality,Adult Residential Placements - Spot Purchase,Third Party Payments,REVENUE
http://statistics.data.gov.uk/id/local-authority/00HY,Wiltshire Council,11/04/2012,5106101989,1909.60,Avery Healthcare Cepen Lodge ,126733,SN14,Community Services,OP North Locality,Adult Residential Placements - Spot Purchase,Third Party Payments,REVENUE
http://statistics.data.gov.uk/id/local-authority/00HY,Wiltshire Council,11/04/2012,5106101995,1909.60,Avery Healthcare Cepen Lodge ,126733,SN14,Community Services,OP North Locality,Adult Residential Placements - Spot Purchase,Third Party Payments,REVENUE
http://statistics.data.gov.uk/id/local-authority/00HY,Wiltshire Council,11/04/2012,5106101998,2060.40,Avery Healthcare Cepen Lodge ,126733,SN14,Community Services,OP North Locality,Adult Residential Placements - Spot Purchase,Third Party Payments,REVENUE
http://statistics.data.gov.uk/id/local-authority/00HY,Wiltshire Council,11/04/2012,5106102858,2060.40,Avery Healthcare Cepen Lodge ,126733,SN14,Community Services,MH OP West Locality,Adult Residential Placements - Spot Purchase,Third Party Payments,REVENUE
http://statistics.data.gov.uk/id/local-authority/00HY,Wiltshire Council,11/04/2012,5106102863,2151.96,Avery Healthcare Cepen Lodge ,126733,SN14,Community Services,MH OP North Locality,Adult Residential Placements - Spot Purchase,Third Party Payments,REVENUE
http://statistics.data.gov.uk/id/local-authority/00HY,Wiltshire Council,11/04/2012,5106102868,2060.40,Avery Healthcare Cepen Lodge ,126733,SN14,Community Services,MH OP North Locality,Adult Residential Placements - Spot Purchase,Third Party Payments,REVENUE
http://statistics.data.gov.uk/id/local-authority/00HY,Wiltshire Council,11/04/2012,5106102873,1909.60,Avery Healthcare Cepen Lodge ,126733,SN14,Community Services,OP North Locality,Adult Residential Placements - Spot Purchase,Third Party Payments,REVENUE
http://statistics.data.gov.uk/id/local-authority/00HY,Wiltshire Council,11/04/2012,5106102875,2060.40,Avery Healthcare Cepen Lodge ,126733,SN14,Community Services,OP North Locality,Adult Residential Placements - Spot Purchase,Third Party Payments,REVENUE
http://statistics.data.gov.uk/id/local-authority/00HY,Wiltshire Council,11/04/2012,5106102880,2165.44,Avery Healthcare Cepen Lodge ,126733,SN14,Community Services,OP North Locality,Adult Residential Placements - Spot Purchase,Third Party Payments,REVENUE
http://statistics.data.gov.uk/id/local-authority/00HY,Wiltshire Council,11/04/2012,5106102885,2302.80,Avery Healthcare Cepen Lodge ,126733,SN14,Community Services,MH OP North Locality,Adult Residential Placements - Spot Purchase,Third Party Payments,REVENUE
http://statistics.data.gov.uk/id/local-authority/00HY,Wiltshire Council,11/04/2012,5106103066,2060.40,Avery Healthcare Cepen Lodge ,126733,SN14,Community Services,OP West Locality,Adult Residential Placements - Spot Purchase,Third Party Payments,REVENUE
http://statistics.data.gov.uk/id/local-authority/00HY,Wiltshire Council,11/04/2012,5106104169,2144.00,Avery Healthcare Cepen Lodge ,126733,SN14,Community Services,Home Loans,Adult Care - Home Loan Costs,Capital charges and Expenditure,REVENUE
http://statistics.data.gov.uk/id/local-authority/00HY,Wiltshire Council,11/04/2012,5106104178,2280.00,Avery Healthcare Cepen Lodge ,126733,SN14,Community Services,Home Loans,Adult Care - Home Loan Costs,Capital charges and Expenditure,REVENUE
http://statistics.data.gov.uk/id/local-authority/00HY,Wiltshire Council,11/04/2012,5106104180,2280.00,Avery Healthcare Cepen Lodge ,126733,SN14,Community Services,Home Loans,Adult Care - Home Loan Costs,Capital charges and Expenditure,REVENUE
http://statistics.data.gov.uk/id/local-authority/00HY,Wiltshire Council,11/04/2012,5106104941,1005.42,Avery Healthcare Cepen Lodge ,126733,SN14,Community Services,OP North Locality,Adult Residential Placements - Spot Purchase,Third Party Payments,REVENUE
http://statistics.data.gov.uk/id/local-authority/00HY,Wiltshire Council,11/04/2012,5106105323,3100.00,Avery Healthcare Cepen Lodge ,126733,SN14,Community Services,Home Loans,Adult Care - Home Loan Costs,Capital charges and Expenditure,REVENUE
http://statistics.data.gov.uk/id/local-authority/00HY,Wiltshire Council,12/04/2012,5106105782,664.83,Avery Healthcare Cepen Lodge ,126733,SN14,Community Services,OP North Locality,Adult Residential Placements - 12 Week,Third Party Payments,REVENUE
http://statistics.data.gov.uk/id/local-authority/00HY,Wiltshire Council,11/04/2012,5106103100,1900.64,Avery Healthcare Group - Acorn Lodg ,131308,CV10,Community Services,OP West Locality,Adult Residential Placements - Spot Purchase,Third Party Payments,REVENUE
http://statistics.data.gov.uk/id/local-authority/00HY,Wiltshire Council,10/04/2012,1900810834,11149.51,Avery Healthcare Ltd- Langford Sali ,112676,NN4 ,Community Services,FNC,Adult Care Funded Nursing Care - Out of County Cli,Third Party Payments,REVENUE
http://statistics.data.gov.uk/id/local-authority/00HY,Wiltshire Council,11/04/2012,5106101916,2393.20,Avery Healthcare Ltd- Langford Sali ,112676,NN4 ,Community Services,MH OP South Locality,Adult Care Nursing Placements- Spot Purchase,Third Party Payments,REVENUE
http://statistics.data.gov.uk/id/local-authority/00HY,Wiltshire Council,11/04/2012,5106101922,2649.76,Avery Healthcare Ltd- Langford Sali ,112676,NN4 ,Community Services,MH OP South Locality,Adult Care Nursing Placements- Spot Purchase,Third Party Payments,REVENUE
http://statistics.data.gov.uk/id/local-authority/00HY,Wiltshire Council,11/04/2012,5106101925,2436.40,Avery Healthcare Ltd- Langford Sali ,112676,NN4 ,Community Services,MH OP South Locality,Adult Care Nursing Placements- Spot Purchase,Third Party Payments,REVENUE
http://statistics.data.gov.uk/id/local-authority/00HY,Wiltshire Council,11/04/2012,5106102318,2595.20,Avery Healthcare Ltd- Langford Sali ,112676,NN4 ,Community Services,OP South Locality,Adult Care Nursing Placements- Spot Purchase,Third Party Payments,REVENUE
http://statistics.data.gov.uk/id/local-authority/00HY,Wiltshire Council,11/04/2012,5106102476,2494.20,Avery Healthcare Ltd- Langford Sali ,112676,NN4 ,Community Services,OP South Locality,Adult Care Nursing Placements- Spot Purchase,Third Party Payments,REVENUE
http://statistics.data.gov.uk/id/local-authority/00HY,Wiltshire Council,11/04/2012,5106102483,2292.28,Avery Healthcare Ltd- Langford Sali ,112676,NN4 ,Community Services,OP South Locality,Adult Care Nursing Placements- Spot Purchase,Third Party Payments,REVENUE
http://statistics.data.gov.uk/id/local-authority/00HY,Wiltshire Council,11/04/2012,5106103450,2595.20,Avery Healthcare Ltd- Langford Sali ,112676,NN4 ,Community Services,MH OP South Locality,Adult Care Nursing Placements- Spot Purchase,Third Party Payments,REVENUE
http://statistics.data.gov.uk/id/local-authority/00HY,Wiltshire Council,11/04/2012,5106103454,2140.00,Avery Healthcare Ltd- Langford Sali ,112676,NN4 ,Community Services,MH OP South Locality,Adult Care Nursing Placements- Spot Purchase,Third Party Payments,REVENUE
http://statistics.data.gov.uk/id/local-authority/00HY,Wiltshire Council,11/04/2012,5106104086,1832.40,Avery Homes Bristol Ltd ,113742,NN4 ,Community Services,Home Loans,Adult Care - Home Loan Costs,Capital charges and Expenditure,REVENUE
http://statistics.data.gov.uk/id/local-authority/00HY,Wiltshire Council,05/04/2012,1900810120,6537.58,Avid Kitchen & Bathrooms ,133771,SN12,Children & Education,STNDRDS&CURRC ACTV,Equipment Purchase,Supplies and Services,REVENUE
http://statistics.data.gov.uk/id/local-authority/00HY,Wiltshire Council,12/04/2012,1900811609,1930.22,Avid Kitchen & Bathrooms ,133771,SN12,Children & Education,STNDRDS&CURRC ACTV,Building Fixtures and Fittings,Premises Related,REVENUE
http://statistics.data.gov.uk/id/local-authority/00HY,Wiltshire Council,12/04/2012,1900811633,1541.18,Avid Kitchen & Bathrooms ,133771,SN12,Children & Education,STNDRDS&CURRC ACTV,Building Fixtures and Fittings,Premises Related,REVENUE
http://statistics.data.gov.uk/id/local-authority/00HY,Wiltshire Council,10/04/2012,5106093823,14958.00,Avon  and  Wiltshire Mental Health Partnership Nhs Tru,113745,BA1 ,Community Services,Disabilities Dvlp Fd,Grants Paid to individuals for Tangible Benefits,Supplies and Services,REVENUE
http://statistics.data.gov.uk/id/local-authority/00HY,Wiltshire Council,05/04/2012,1900794091,16280.25,Avon and W Wilts MHC NHS Trust ,110216,BA1 ,Community Services,MH Management Fee,Contribution to Assistant Social Workers,Supplies and Services,REVENUE
http://statistics.data.gov.uk/id/local-authority/00HY,Wiltshire Council,25/04/2012,1900811210,1472.00,Avon and W Wilts MHC NHS Trust ,110216,BA1 ,Community Services,MH Management Fee,Agency Staff,Employee Related,REVENUE
http://statistics.data.gov.uk/id/local-authority/00HY,Wiltshire Council,25/04/2012,1900811212,24975.00,Avon and W Wilts MHC NHS Trust ,110216,BA1 ,Community Services,MH Management Fee,Contribution to Approved Social Workers,Supplies and Services,REVENUE
http://statistics.data.gov.uk/id/local-authority/00HY,Wiltshire Council,25/04/2012,1900811213,24975.00,Avon and W Wilts MHC NHS Trust ,110216,BA1 ,Community Services,MH Management Fee,Contribution to Approved Social Workers,Supplies and Services,REVENUE
http://statistics.data.gov.uk/id/local-authority/00HY,Wiltshire Council,10/04/2012,1900810833,3478.40,Avon Care Homes Ltd - Sutton Veny H ,112612,BA5 ,Community Services,FNC,Adult Care Funded Nursing Care - Out of County Cli,Third Party Payments,REVENUE
http://statistics.data.gov.uk/id/local-authority/00HY,Wiltshire Council,11/04/2012,5106101796,1608.48,Avon Care Homes Ltd - Sutton Veny H ,112612,BA5 ,Community Services,OP West Locality,Adult Care Nursing Placements- Spot Purchase,Third Party Payments,REVENUE
http://statistics.data.gov.uk/id/local-authority/00HY,Wiltshire Council,11/04/2012,5106101799,2021.52,Avon Care Homes Ltd - Sutton Veny H ,112612,BA5 ,Community Services,OP West Locality,Adult Care Nursing Placements- Spot Purchase,Third Party Payments,REVENUE
http://statistics.data.gov.uk/id/local-authority/00HY,Wiltshire Council,11/04/2012,5106101802,2023.28,Avon Care Homes Ltd - Sutton Veny H ,112612,BA5 ,Community Services,OP South Locality,Adult Care Nursing Placements- Spot Purchase,Third Party Payments,REVENUE
http://statistics.data.gov.uk/id/local-authority/00HY,Wiltshire Council,11/04/2012,5106101805,2021.52,Avon Care Homes Ltd - Sutton Veny H ,112612,BA5 ,Community Services,OP West Locality,Adult Care Nursing Placements- Spot Purchase,Third Party Payments,REVENUE
http://statistics.data.gov.uk/id/local-authority/00HY,Wiltshire Council,11/04/2012,5106101808,2021.52,Avon Care Homes Ltd - Sutton Veny H ,112612,BA5 ,Community Services,MH OP East Locality,Adult Care Nursing Placements- Spot Purchase,Third Party Payments,REVENUE
http://statistics.data.gov.uk/id/local-authority/00HY,Wiltshire Council,11/04/2012,5106101907,1989.20,Avon Care Homes Ltd - Sutton Veny H ,112612,BA5 ,Community Services,OP South Locality,Adult Care Nursing Placements- Spot Purchase,Third Party Payments,REVENUE
http://statistics.data.gov.uk/id/local-authority/00HY,Wiltshire Council,11/04/2012,5106102617,2213.52,Avon Care Homes Ltd - Sutton Veny H ,112612,BA5 ,Community Services,OP West Locality,Adult Care Nursing Placements- Spot Purchase,Third Party Payments,REVENUE
http://statistics.data.gov.uk/id/local-authority/00HY,Wiltshire Council,11/04/2012,5106103446,1587.56,Avon Care Homes Ltd - Sutton Veny H ,112612,BA5 ,Community Services,OP West Locality,Adult Care Nursing Placements- Spot Purchase,Third Party Payments,REVENUE
http://statistics.data.gov.uk/id/local-authority/00HY,Wiltshire Council,11/04/2012,5106100465,1965.20,Avon Lea Nursing Home (Dorset) Ltd ,129950,DT4 ,Community Services,OP West Locality,Adult Care Nursing Placements- Spot Purchase,Third Party Payments,REVENUE
http://statistics.data.gov.uk/id/local-authority/00HY,Wiltshire Council,10/04/2012,1900810841,1739.20,Avoncare Homes Ltd - Wells Nursing ,114326,BA5 ,Community Services,FNC,Adult Care Funded Nursing Care - Out of County Cli,Third Party Payments,REVENUE
http://statistics.data.gov.uk/id/local-authority/00HY,Wiltshire Council,11/04/2012,5106102054,2315.24,Avoncare Homes Ltd - Wells Nursing ,114326,BA5 ,Community Services,OP North Locality,Adult Care Nursing Placements- Spot Purchase,Third Party Payments,REVENUE
http://statistics.data.gov.uk/id/local-authority/00HY,Wiltshire Council,11/04/2012,5106102633,2565.20,Avoncare Homes Ltd - Wells Nursing ,114326,BA5 ,Community Services,OP North Locality,Adult Care Nursing Placements- Spot Purchase,Third Party Payments,REVENUE
http://statistics.data.gov.uk/id/local-authority/00HY,Wiltshire Council,10/04/2012,1900810812,4348.00,Avonpark Village (Care Homes) Limit ,110227,BA2 ,Community Services,FNC,Adult Care Funded Nursing Care - Out of County Cli,Third Party Payments,REVENUE
http://statistics.data.gov.uk/id/local-authority/00HY,Wiltshire Council,11/04/2012,5106100406,1971.52,Avonpark Village (Care Homes) Limit ,110227,BA2 ,Community Services,MH OP West Locality,Adult Residential Placements - Spot Purchase,Third Party Payments,REVENUE
http://statistics.data.gov.uk/id/local-authority/00HY,Wiltshire Council,11/04/2012,5106100408,1971.52,Avonpark Village (Care Homes) Limit ,110227,BA2 ,Community Services,MH OP West Locality,Adult Residential Placements - Spot Purchase,Third Party Payments,REVENUE
http://statistics.data.gov.uk/id/local-authority/00HY,Wiltshire Council,11/04/2012,5106100410,1971.52,Avonpark Village (Care Homes) Limit ,110227,BA2 ,Community Services,MH OP West Locality,Adult Residential Placements - Spot Purchase,Third Party Payments,REVENUE
http://statistics.data.gov.uk/id/local-authority/00HY,Wiltshire Council,11/04/2012,5106100412,1971.52,Avonpark Village (Care Homes) Limit ,110227,BA2 ,Community Services,OP West Locality,Adult Residential Placements - Spot Purchase,Third Party Payments,REVENUE
http://statistics.data.gov.uk/id/local-authority/00HY,Wiltshire Council,11/04/2012,5106100414,1971.52,Avonpark Village (Care Homes) Limit ,110227,BA2 ,Community Services,MH OP West Locality,Adult Residential Placements - Spot Purchase,Third Party Payments,REVENUE
http://statistics.data.gov.uk/id/local-authority/00HY,Wiltshire Council,11/04/2012,5106100416,2020.00,Avonpark Village (Care Homes) Limit ,110227,BA2 ,Community Services,MH OP West Locality,Adult Residential Placements - Spot Purchase,Third Party Payments,REVENUE
http://statistics.data.gov.uk/id/local-authority/00HY,Wiltshire Council,11/04/2012,5106100418,1878.60,Avonpark Village (Care Homes) Limit ,110227,BA2 ,Community Services,OP West Locality,Adult Residential Placements - Spot Purchase,Third Party Payments,REVENUE
http://statistics.data.gov.uk/id/local-authority/00HY,Wiltshire Council,11/04/2012,5106100420,1971.52,Avonpark Village (Care Homes) Limit ,110227,BA2 ,Community Services,MH OP West Locality,Adult Residential Placements - Spot Purchase,Third Party Payments,REVENUE
http://statistics.data.gov.uk/id/local-authority/00HY,Wiltshire Council,11/04/2012,5106100422,1971.52,Avonpark Village (Care Homes) Limit ,110227,BA2 ,Community Services,OP West Locality,Adult Residential Placements - Spot Purchase,Third Party Payments,REVENUE
http://statistics.data.gov.uk/id/local-authority/00HY,Wiltshire Council,11/04/2012,5106100424,1952.00,Avonpark Village (Care Homes) Limit ,110227,BA2 ,Community Services,OP West Locality,Adult Residential Placements - Spot Purchase,Third Party Payments,REVENUE
http://statistics.data.gov.uk/id/local-authority/00HY,Wiltshire Council,11/04/2012,5106100426,1878.60,Avonpark Village (Care Homes) Limit ,110227,BA2 ,Community Services,OP West Locality,Adult Residential Placements - Spot Purchase,Third Party Payments,REVENUE
http://statistics.data.gov.uk/id/local-authority/00HY,Wiltshire Council,11/04/2012,5106100428,1898.80,Avonpark Village (Care Homes) Limit ,110227,BA2 ,Community Services,OP West Locality,Adult Residential Placements - Spot Purchase,Third Party Payments,REVENUE
http://statistics.data.gov.uk/id/local-authority/00HY,Wiltshire Council,11/04/2012,5106100430,1939.20,Avonpark Village (Care Homes) Limit ,110227,BA2 ,Community Services,MH OP West Locality,Adult Residential Placements - Spot Purchase,Third Party Payments,REVENUE
http://statistics.data.gov.uk/id/local-authority/00HY,Wiltshire Council,11/04/2012,5106100432,1971.52,Avonpark Village (Care Homes) Limit ,110227,BA2 ,Community Services,OP West Locality,Adult Residential Placements - Spot Purchase,Third Party Payments,REVENUE
http://statistics.data.gov.uk/id/local-authority/00HY,Wiltshire Council,11/04/2012,5106100434,1971.52,Avonpark Village (Care Homes) Limit ,110227,BA2 ,Community Services,MH OP West Locality,Adult Residential Placements - Spot Purchase,Third Party Payments,REVENUE
http://statistics.data.gov.uk/id/local-authority/00HY,Wiltshire Council,11/04/2012,5106101063,2191.20,Avonpark Village (Care Homes) Limit ,110227,BA2 ,Community Services,OP East Locality,Adult Care Nursing Placements- Spot Purchase,Third Party Payments,REVENUE
http://statistics.data.gov.uk/id/local-authority/00HY,Wiltshire Council,11/04/2012,5106101066,2191.20,Avonpark Village (Care Homes) Limit ,110227,BA2 ,Community Services,OP West Locality,Adult Care Nursing Placements- Spot Purchase,Third Party Payments,REVENUE
http://statistics.data.gov.uk/id/local-authority/00HY,Wiltshire Council,11/04/2012,5106102549,2191.20,Avonpark Village (Care Homes) Limit ,110227,BA2 ,Community Services,OP West Locality,Adult Care Nursing Placements- Spot Purchase,Third Party Payments,REVENUE
http://statistics.data.gov.uk/id/local-authority/00HY,Wiltshire Council,11/04/2012,5106102565,2165.20,Avonpark Village (Care Homes) Limit ,110227,BA2 ,Community Services,MH OP West Locality,Adult Care Nursing Placements- Spot Purchase,Third Party Payments,REVENUE
http://statistics.data.gov.uk/id/local-authority/00HY,Wiltshire Council,11/04/2012,5106103671,1971.52,Avonpark Village (Care Homes) Limit ,110227,BA2 ,Community Services,MH OP West Locality,Adult Residential Placements - Spot Purchase,Third Party Payments,REVENUE
http://statistics.data.gov.uk/id/local-authority/00HY,Wiltshire Council,11/04/2012,5106103934,3000.00,Avonpark Village (Care Homes) Limit ,110227,BA2 ,Community Services,Home Loans,Adult Care - Home Loan Costs,Capital charges and Expenditure,REVENUE
http://statistics.data.gov.uk/id/local-authority/00HY,Wiltshire Council,27/04/2012,5106113376,1971.52,Avonpark Village (Care Homes) Limit ,110227,BA2 ,Community Services,OP West Locality,Adult Residential Placements - Spot Purchase,Third Party Payments,REVENUE
http://statistics.data.gov.uk/id/local-authority/00HY,Wiltshire Council,27/04/2012,5106113379,2745.99,Avonpark Village (Care Homes) Limit ,110227,BA2 ,Community Services,OP West Locality,Adult Residential Placements - Spot Purchase,Third Party Payments,REVENUE
http://statistics.data.gov.uk/id/local-authority/00HY,Wiltshire Council,27/04/2012,5106113381,563.28,Avonpark Village (Care Homes) Limit ,110227,BA2 ,Community Services,OP West Locality,Adult Residential Placements - Spot Purchase,Third Party Payments,REVENUE
http://statistics.data.gov.uk/id/local-authority/00HY,Wiltshire Council,27/04/2012,5106113382,2464.40,Avonpark Village (Care Homes) Limit ,110227,BA2 ,Community Services,OP West Locality,Adult Residential Placements - Spot Purchase,Third Party Payments,REVENUE
http://statistics.data.gov.uk/id/local-authority/00HY,Wiltshire Council,02/04/2012,5106098386,506.64,Aztec Chemicals ,132467,CW1 ,Neighbourhood & Planning,Nrth Ops-Public Conv,Cleaning Materials - Buildings,Premises Related,REVENUE
http://statistics.data.gov.uk/id/local-authority/00HY,Wiltshire Council,26/04/2012,5106111749,27600.00,Azzurri Communications Ltd ,101309,WS9 ,Resources,Infrastructure,Consultants� Fees,Supplies and Services,REVENUE
http://statistics.data.gov.uk/id/local-authority/00HY,Wiltshire Council,12/04/2012,1900812024,2350.00,B  and  K Cars ,101310,SN6 ,Neighbourhood & Planning,N&E Children w/Dis,Transport Contracts,Third Party Payments,REVENUE
http://statistics.data.gov.uk/id/local-authority/00HY,Wiltshire Council,13/04/2012,1900812210,650.00,B & M Windows  and  Doors Ltd ,101694,SP2 ,Neighbourhood & Planning,Housing Rprs Simdell,Non responsive repairs - General,Premises Related,REVENUE
http://statistics.data.gov.uk/id/local-authority/00HY,Wiltshire Council,26/04/2012,1900823337,750.00,B & M Windows  and  Doors Ltd ,101694,SP2 ,Neighbourhood & Planning,Housing Rprs Simdell,Non responsive repairs - General,Premises Related,REVENUE
http://statistics.data.gov.uk/id/local-authority/00HY,Wiltshire Council,12/04/2012,5106105682,810.52,B & M Windows  and  Doors Ltd ,101694,SP2 ,Neighbourhood & Planning,Housg Mtc Trading Ac,Equipment Purchase,Supplies and Services,REVENUE
http://statistics.data.gov.uk/id/local-authority/00HY,Wiltshire Council,18.04.2012,1900820785,513.08,B & M Windows and Doors Ltd ,101694,.,Neighbourhood & Planning,Housing Rprs Simdell,Premises Related Other Maintenance Costs,Premises Related,REVENUE
http://statistics.data.gov.uk/id/local-authority/00HY,Wiltshire Council,25/04/2012,1900809518,1787.90,B J Mailing Services ,110239,BH21,Neighbourhood & Planning,Admin Hsg Management,Conference Fees,Supplies and Services,REVENUE
http://statistics.data.gov.uk/id/local-authority/00HY,Wiltshire Council,27/04/2012,5106111913,3750.00,B T C V ,113828,DN4 ,Children & Education,YPSSNorth,Educational Fees,Supplies and Services,REVENUE
http://statistics.data.gov.uk/id/local-authority/00HY,Wiltshire Council,04/04/2012,1900809958,4445.49,B Y B Travel Ltd ,101145,BA15,Neighbourhood & Planning,Mainstream 16+ FE,Transport Contracts,Third Party Payments,REVENUE
http://statistics.data.gov.uk/id/local-authority/00HY,Wiltshire Council,04/04/2012,1900809965,516.04,B Y B Travel Ltd ,101145,BA15,Neighbourhood & Planning,Mainstream 16+ Sec,Transport Contracts,Third Party Payments,REVENUE
http://statistics.data.gov.uk/id/local-authority/00HY,Wiltshire Council,04/04/2012,1900809965,1922.90,B Y B Travel Ltd ,101145,BA15,Neighbourhood & Planning,Mainstream Secondary,Transport Contracts,Third Party Payments,REVENUE
http://statistics.data.gov.uk/id/local-authority/00HY,Wiltshire Council,16/04/2012,5106093664,5000.00,Balance Learning ,122812,RG2 ,Resources,Management Matters,Consultants� Fees,Supplies and Services,REVENUE
http://statistics.data.gov.uk/id/local-authority/00HY,Wiltshire Council,20/04/2012,5106100799,1750.00,Balance Learning ,122812,RG2 ,Resources,Management Matters,Consultants� Fees,Supplies and Services,REVENUE
http://statistics.data.gov.uk/id/local-authority/00HY,Wiltshire Council,26/04/2012,5106099019,5767.15,Balfour Beatty Infrastructure Ltd ,113860,RG23,Wiltshire Council,Wiltshire Council,Highways - Other Materials,Supplies and Services,CAPITAL
http://statistics.data.gov.uk/id/local-authority/00HY,Wiltshire Council,26/04/2012,5106099020,3746.27,Balfour Beatty Infrastructure Ltd ,113860,RG23,Wiltshire Council,Wiltshire Council,Highways - Other Materials,Supplies and Services,CAPITAL
http://statistics.data.gov.uk/id/local-authority/00HY,Wiltshire Council,26/04/2012,5106099021,968.57,Balfour Beatty Infrastructure Ltd ,113860,RG23,Wiltshire Council,Wiltshire Council,Highways - Other Materials,Supplies and Services,CAPITAL
http://statistics.data.gov.uk/id/local-authority/00HY,Wiltshire Council,26/04/2012,5106099022,3642.26,Balfour Beatty Infrastructure Ltd ,113860,RG23,Wiltshire Council,Wiltshire Council,Highways - Other Materials,Supplies and Services,CAPITAL
http://statistics.data.gov.uk/id/local-authority/00HY,Wiltshire Council,26/04/2012,5106099023,3978.26,Balfour Beatty Infrastructure Ltd ,113860,RG23,Wiltshire Council,Wiltshire Council,Highways - Other Materials,Supplies and Services,CAPITAL
http://statistics.data.gov.uk/id/local-authority/00HY,Wiltshire Council,26/04/2012,5106099024,1369.46,Balfour Beatty Infrastructure Ltd ,113860,RG23,Wiltshire Council,Wiltshire Council,Highways - Other Materials,Supplies and Services,CAPITAL
http://statistics.data.gov.uk/id/local-authority/00HY,Wiltshire Council,26/04/2012,5106099025,887.40,Balfour Beatty Infrastructure Ltd ,113860,RG23,Wiltshire Council,Wiltshire Council,Highways - Other Materials,Supplies and Services,CAPITAL
http://statistics.data.gov.uk/id/local-authority/00HY,Wiltshire Council,27/04/2012,5106100653,145201.26,Balfour Beatty Infrastructure Ltd ,113860,RG23,Neighbourhood & Planning,Street Lighting-Mtce,Highways - Other Materials,Supplies and Services,REVENUE
http://statistics.data.gov.uk/id/local-authority/00HY,Wiltshire Council,26/04/2012,5106105924,5065.08,Balfour Beatty Infrastructure Ltd ,113860,RG23,Wiltshire Council,Wiltshire Council,Highways - Other Materials,Supplies and Services,CAPITAL
http://statistics.data.gov.uk/id/local-authority/00HY,Wiltshire Council,11/04/2012,1900810845,1304.40,Barchester Healthcare - The White L ,121961,SN5 ,Community Services,FNC,Adult Care Funded Nursing Care - Out of County Cli,Third Party Payments,REVENUE
http://statistics.data.gov.uk/id/local-authority/00HY,Wiltshire Council,11/04/2012,5106093379,960.31,Barchester Healthcare - The White L ,121961,SN5 ,Community Services,PI East Locality,Adult Residential Placements - Spot Purchase,Third Party Payments,REVENUE
http://statistics.data.gov.uk/id/local-authority/00HY,Wiltshire Council,11/04/2012,5106093381,1108.05,Barchester Healthcare - The White L ,121961,SN5 ,Community Services,PI East Locality,Adult Residential Placements - Spot Purchase,Third Party Payments,REVENUE
http://statistics.data.gov.uk/id/local-authority/00HY,Wiltshire Council,11/04/2012,5106099572,927.20,Barchester Healthcare - The White L ,121961,SN5 ,Community Services,MH OP West Locality,Adult Care Nursing Placements- Spot Purchase,Third Party Payments,REVENUE
http://statistics.data.gov.uk/id/local-authority/00HY,Wiltshire Council,11/04/2012,5106099574,811.30,Barchester Healthcare - The White L ,121961,SN5 ,Community Services,MH OP West Locality,Adult Care Nursing Placements- Spot Purchase,Third Party Payments,REVENUE
http://statistics.data.gov.uk/id/local-authority/00HY,Wiltshire Council,11/04/2012,5106102120,1531.44,Barchester Healthcare - The White L ,121961,SN5 ,Community Services,OP North Locality,Adult Care Nursing Placements- Spot Purchase,Third Party Payments,REVENUE
http://statistics.data.gov.uk/id/local-authority/00HY,Wiltshire Council,11/04/2012,5106102123,1403.48,Barchester Healthcare - The White L ,121961,SN5 ,Community Services,OP North Locality,Adult Care Nursing Placements- Spot Purchase,Third Party Payments,REVENUE
http://statistics.data.gov.uk/id/local-authority/00HY,Wiltshire Council,11/04/2012,5106102827,1692.00,Barchester Healthcare - The White L ,121961,SN5 ,Community Services,OP North Locality,Adult Residential Placements - Spot Purchase,Third Party Payments,REVENUE
http://statistics.data.gov.uk/id/local-authority/00HY,Wiltshire Council,11/04/2012,5106103150,2514.40,Barchester Healthcare - The White L ,121961,SN5 ,Community Services,OP North Locality,Adult Care Nursing Placements- Spot Purchase,Third Party Payments,REVENUE
http://statistics.data.gov.uk/id/local-authority/00HY,Wiltshire Council,11/04/2012,5106103152,2514.40,Barchester Healthcare - The White L ,121961,SN5 ,Community Services,OP North Locality,Adult Care Nursing Placements- Spot Purchase,Third Party Payments,REVENUE
http://statistics.data.gov.uk/id/local-authority/00HY,Wiltshire Council,11/04/2012,5106103154,3025.20,Barchester Healthcare - The White L ,121961,SN5 ,Community Services,OP North Locality,Adult Care Nursing Placements- Spot Purchase,Third Party Payments,REVENUE
http://statistics.data.gov.uk/id/local-authority/00HY,Wiltshire Council,11/04/2012,5106103258,3460.00,Barchester Healthcare - The White L ,121961,SN5 ,Community Services,MH OP North Locality,Adult Residential Placements - Spot Purchase,Third Party Payments,REVENUE
http://statistics.data.gov.uk/id/local-authority/00HY,Wiltshire Council,11/04/2012,5106103597,3460.00,Barchester Healthcare - The White L ,121961,SN5 ,Community Services,MH OP East Locality,Adult Care Nursing Placements- Spot Purchase,Third Party Payments,REVENUE
http://statistics.data.gov.uk/id/local-authority/00HY,Wiltshire Council,11/04/2012,5106104135,3919.20,Barchester Healthcare - The White L ,121961,SN5 ,Community Services,Home Loans,Adult Care - Home Loan Costs,Capital charges and Expenditure,REVENUE
http://statistics.data.gov.uk/id/local-authority/00HY,Wiltshire Council,11/04/2012,5106104571,2873.00,Barchester Healthcare - The White L ,121961,SN5 ,Community Services,MH OP North Locality,Adult Care Nursing Placements- Spot Purchase,Third Party Payments,REVENUE
http://statistics.data.gov.uk/id/local-authority/00HY,Wiltshire Council,11/04/2012,5106104572,507.00,Barchester Healthcare - The White L ,121961,SN5 ,Community Services,Section 117-PCT Clnt,Adult Care Nursing Placements- Spot Purchase,Third Party Payments,REVENUE
http://statistics.data.gov.uk/id/local-authority/00HY,Wiltshire Council,11/04/2012,5106104671,3460.00,Barchester Healthcare - The White L ,121961,SN5 ,Community Services,MH OP West Locality,Adult Care Nursing Placements- Spot Purchase,Third Party Payments,REVENUE
http://statistics.data.gov.uk/id/local-authority/00HY,Wiltshire Council,11/04/2012,5106104709,3245.20,Barchester Healthcare - The White L ,121961,SN5 ,Community Services,MH OP West Locality,Adult Care Nursing Placements- Spot Purchase,Third Party Payments,REVENUE
http://statistics.data.gov.uk/id/local-authority/00HY,Wiltshire Council,11/04/2012,5106102327,4045.20,Barchester Healthcare Ltd - Rothsay Grange,127635,SP11,Community Services,MH OP South Locality,Adult Care Nursing Placements- Spot Purchase,Third Party Payments,REVENUE
http://statistics.data.gov.uk/id/local-authority/00HY,Wiltshire Council,11/04/2012,5106103171,3403.20,Barchester Healthcare Ltd - Rothsay Grange,127635,SP11,Community Services,OP South Locality,Adult Care Nursing Placements- Spot Purchase,Third Party Payments,REVENUE
http://statistics.data.gov.uk/id/local-authority/00HY,Wiltshire Council,11/04/2012,5106103518,2765.20,Barchester Healthcare Ltd - Rothsay Grange,127635,SP11,Community Services,MH OP South Locality,Adult Care Nursing Placements- Spot Purchase,Third Party Payments,REVENUE
http://statistics.data.gov.uk/id/local-authority/00HY,Wiltshire Council,10/04/2012,1900810824,11304.80,Barchester Healthcare Ltd (Henford ,111113,BA12,Community Services,FNC,Adult Care Funded Nursing Care - Out of County Cli,Third Party Payments,REVENUE
http://statistics.data.gov.uk/id/local-authority/00HY,Wiltshire Council,03/04/2012,5106099080,1938.48,Barchester Healthcare Ltd (Henford ,111113,BA12,Community Services,OP South Locality,Adult Care Nursing Placements- Spot Purchase,Third Party Payments,REVENUE
http://statistics.data.gov.uk/id/local-authority/00HY,Wiltshire Council,03/04/2012,5106099087,1050.01,Barchester Healthcare Ltd (Henford ,111113,BA12,Community Services,OP South Locality,Adult Care Nursing Placements- Spot Purchase,Third Party Payments,REVENUE
http://statistics.data.gov.uk/id/local-authority/00HY,Wiltshire Council,03/04/2012,5106099091,1211.55,Barchester Healthcare Ltd (Henford ,111113,BA12,Community Services,OP South Locality,Adult Care Nursing Placements- Spot Purchase,Third Party Payments,REVENUE
http://statistics.data.gov.uk/id/local-authority/00HY,Wiltshire Council,11/04/2012,5106101231,1489.80,Barchester Healthcare Ltd (Henford ,111113,BA12,Community Services,OP West Locality,Adult Care Nursing Placements- Spot Purchase,Third Party Payments,REVENUE
http://statistics.data.gov.uk/id/local-authority/00HY,Wiltshire Council,11/04/2012,5106101237,2999.20,Barchester Healthcare Ltd (Henford ,111113,BA12,Community Services,OP West Locality,Adult Care Nursing Placements- Spot Purchase,Third Party Payments,REVENUE
http://statistics.data.gov.uk/id/local-authority/00HY,Wiltshire Council,11/04/2012,5106101243,2191.20,Barchester Healthcare Ltd (Henford ,111113,BA12,Community Services,MH OP West Locality,Adult Care Nursing Placements- Spot Purchase,Third Party Payments,REVENUE
http://statistics.data.gov.uk/id/local-authority/00HY,Wiltshire Council,11/04/2012,5106101252,2021.52,Barchester Healthcare Ltd (Henford ,111113,BA12,Community Services,OP West Locality,Adult Care Nursing Placements- Spot Purchase,Third Party Payments,REVENUE
http://statistics.data.gov.uk/id/local-authority/00HY,Wiltshire Council,11/04/2012,5106101258,2021.52,Barchester Healthcare Ltd (Henford ,111113,BA12,Community Services,OP West Locality,Adult Care Nursing Placements- Spot Purchase,Third Party Payments,REVENUE
http://statistics.data.gov.uk/id/local-authority/00HY,Wiltshire Council,11/04/2012,5106101264,2021.52,Barchester Healthcare Ltd (Henford ,111113,BA12,Community Services,OP West Locality,Adult Care Nursing Placements- Spot Purchase,Third Party Payments,REVENUE
http://statistics.data.gov.uk/id/local-authority/00HY,Wiltshire Council,11/04/2012,5106101273,7443.20,Barchester Healthcare Ltd (Henford ,111113,BA12,Community Services,CTPLD County CIC U65,Adult Care Nursing Placements- Spot Purchase,Third Party Payments,REVENUE
http://statistics.data.gov.uk/id/local-authority/00HY,Wiltshire Council,11/04/2012,5106102467,2494.20,Barchester Healthcare Ltd (Henford ,111113,BA12,Community Services,OP South Locality,Adult Care Nursing Placements- Spot Purchase,Third Party Payments,REVENUE
http://statistics.data.gov.uk/id/local-authority/00HY,Wiltshire Council,11/04/2012,5106102741,2009.40,Barchester Healthcare Ltd (Henford ,111113,BA12,Community Services,OP West Locality,Adult Care Nursing Placements- Spot Purchase,Third Party Payments,REVENUE
http://statistics.data.gov.uk/id/local-authority/00HY,Wiltshire Council,11/04/2012,5106102743,2797.20,Barchester Healthcare Ltd (Henford ,111113,BA12,Community Services,MH AOWA West,Adult Care Nursing Placements- Spot Purchase,Third Party Payments,REVENUE
http://statistics.data.gov.uk/id/local-authority/00HY,Wiltshire Council,11/04/2012,5106103360,2021.52,Barchester Healthcare Ltd (Henford ,111113,BA12,Community Services,OP West Locality,Adult Care Nursing Placements- Spot Purchase,Third Party Payments,REVENUE
http://statistics.data.gov.uk/id/local-authority/00HY,Wiltshire Council,11/04/2012,5106103364,2021.52,Barchester Healthcare Ltd (Henford ,111113,BA12,Community Services,MH OP West Locality,Adult Care Nursing Placements- Spot Purchase,Third Party Payments,REVENUE
http://statistics.data.gov.uk/id/local-authority/00HY,Wiltshire Council,11/04/2012,5106103368,2032.84,Barchester Healthcare Ltd (Henford ,111113,BA12,Community Services,MH OP West Locality,Adult Care Nursing Placements- Spot Purchase,Third Party Payments,REVENUE
http://statistics.data.gov.uk/id/local-authority/00HY,Wiltshire Council,11/04/2012,5106103372,2494.20,Barchester Healthcare Ltd (Henford ,111113,BA12,Community Services,MH OP West Locality,Adult Care Nursing Placements- Spot Purchase,Third Party Payments,REVENUE
http://statistics.data.gov.uk/id/local-authority/00HY,Wiltshire Council,11/04/2012,5106103558,2021.52,Barchester Healthcare Ltd (Henford ,111113,BA12,Community Services,OP West Locality,Adult Care Nursing Placements- Spot Purchase,Third Party Payments,REVENUE
http://statistics.data.gov.uk/id/local-authority/00HY,Wiltshire Council,11/04/2012,5106103981,4165.20,Barchester Healthcare Ltd (Henford ,111113,BA12,Community Services,Home Loans,Adult Care - Home Loan Costs,Capital charges and Expenditure,REVENUE
http://statistics.data.gov.uk/id/local-authority/00HY,Wiltshire Council,11/04/2012,5106104698,2261.52,Barchester Healthcare Ltd (Henford ,111113,BA12,Community Services,OP South Locality,Adult Care Nursing Placements- Spot Purchase,Third Party Payments,REVENUE
http://statistics.data.gov.uk/id/local-authority/00HY,Wiltshire Council,11/04/2012,5106105477,3400.00,Barchester Healthcare Ltd (Henford ,111113,BA12,Community Services,Home Loans,Adult Care - Home Loan Costs,Capital charges and Expenditure,REVENUE
http://statistics.data.gov.uk/id/local-authority/00HY,Wiltshire Council,30/04/2012,5106114310,663.84,Barchester Healthcare Ltd (Henford ,111113,BA12,Community Services,OP West Locality,Adult Care Nursing Placements- Spot Purchase,Third Party Payments,REVENUE
http://statistics.data.gov.uk/id/local-authority/00HY,Wiltshire Council,30/04/2012,5106114315,590.08,Barchester Healthcare Ltd (Henford ,111113,BA12,Community Services,OP West Locality,Adult Care Nursing Placements- Spot Purchase,Third Party Payments,REVENUE
http://statistics.data.gov.uk/id/local-authority/00HY,Wiltshire Council,30/04/2012,5106114318,2581.50,Barchester Healthcare Ltd (Henford ,111113,BA12,Community Services,OP West Locality,Adult Care Nursing Placements- Spot Purchase,Third Party Payments,REVENUE
http://statistics.data.gov.uk/id/local-authority/00HY,Wiltshire Council,30/04/2012,5106114319,543.50,Barchester Healthcare Ltd (Henford ,111113,BA12,Community Services,OP West Locality,Adult Care Funded Nursing Care - Loal Auth Clients,Third Party Payments,REVENUE
http://statistics.data.gov.uk/id/local-authority/00HY,Wiltshire Council,10/04/2012,1900808355,1437.52,Barchester Healthcare Ltd (Milford ,111597,SP1 ,Community Services,OP South Locality,Adult Care Nursing Placements- Spot Purchase,Third Party Payments,REVENUE
http://statistics.data.gov.uk/id/local-authority/00HY,Wiltshire Council,10/04/2012,1900810827,17392.00,Barchester Healthcare Ltd (Milford ,111597,SP1 ,Community Services,FNC,Adult Care Funded Nursing Care - Out of County Cli,Third Party Payments,REVENUE
http://statistics.data.gov.uk/id/local-authority/00HY,Wiltshire Council,11/04/2012,5106101577,1431.72,Barchester Healthcare Ltd (Milford ,111597,SP1 ,Community Services,OP South Locality,Adult Care Nursing Placements- Spot Purchase,Third Party Payments,REVENUE
http://statistics.data.gov.uk/id/local-authority/00HY,Wiltshire Council,11/04/2012,5106101586,2527.44,Barchester Healthcare Ltd (Milford ,111597,SP1 ,Community Services,OP South Locality,Adult Care Nursing Placements- Spot Purchase,Third Party Payments,REVENUE
http://statistics.data.gov.uk/id/local-authority/00HY,Wiltshire Council,11/04/2012,5106101592,2485.60,Barchester Healthcare Ltd (Milford ,111597,SP1 ,Community Services,OP South Locality,Adult Care Nursing Placements- Spot Purchase,Third Party Payments,REVENUE
http://statistics.data.gov.uk/id/local-authority/00HY,Wiltshire Council,11/04/2012,5106101598,2103.16,Barchester Healthcare Ltd (Milford ,111597,SP1 ,Community Services,OP South Locality,Adult Care Nursing Placements- Spot Purchase,Third Party Payments,REVENUE
http://statistics.data.gov.uk/id/local-authority/00HY,Wiltshire Council,11/04/2012,5106101607,2238.48,Barchester Healthcare Ltd (Milford ,111597,SP1 ,Community Services,MH OP South Locality,Adult Care Nursing Placements- Spot Purchase,Third Party Payments,REVENUE
http://statistics.data.gov.uk/id/local-authority/00HY,Wiltshire Council,11/04/2012,5106101613,2203.32,Barchester Healthcare Ltd (Milford ,111597,SP1 ,Community Services,MH OP South Locality,Adult Care Nursing Placements- Spot Purchase,Third Party Payments,REVENUE
http://statistics.data.gov.uk/id/local-authority/00HY,Wiltshire Council,11/04/2012,5106101619,2807.32,Barchester Healthcare Ltd (Milford ,111597,SP1 ,Community Services,OP South Locality,Adult Care Nursing Placements- Spot Purchase,Third Party Payments,REVENUE
http://statistics.data.gov.uk/id/local-authority/00HY,Wiltshire Council,11/04/2012,5106101628,2581.52,Barchester Healthcare Ltd (Milford ,111597,SP1 ,Community Services,OP South Locality,Adult Care Nursing Placements- Spot Purchase,Third Party Payments,REVENUE
http://statistics.data.gov.uk/id/local-authority/00HY,Wiltshire Council,11/04/2012,5106101634,2314.68,Barchester Healthcare Ltd (Milford ,111597,SP1 ,Community Services,OP South Locality,Adult Care Nursing Placements- Spot Purchase,Third Party Payments,REVENUE
http://statistics.data.gov.uk/id/local-authority/00HY,Wiltshire Council,11/04/2012,5106101640,2649.76,Barchester Healthcare Ltd (Milford ,111597,SP1 ,Community Services,OP South Locality,Adult Care Nursing Placements- Spot Purchase,Third Party Payments,REVENUE
http://statistics.data.gov.uk/id/local-authority/00HY,Wiltshire Council,11/04/2012,5106101649,2649.76,Barchester Healthcare Ltd (Milford ,111597,SP1 ,Community Services,OP South Locality,Adult Care Nursing Placements- Spot Purchase,Third Party Payments,REVENUE
http://statistics.data.gov.uk/id/local-authority/00HY,Wiltshire Council,11/04/2012,5106101655,2203.32,Barchester Healthcare Ltd (Milford ,111597,SP1 ,Community Services,MH OP South Locality,Adult Care Nursing Placements- Spot Purchase,Third Party Payments,REVENUE
http://statistics.data.gov.uk/id/local-authority/00HY,Wiltshire Council,11/04/2012,5106101661,2595.20,Barchester Healthcare Ltd (Milford ,111597,SP1 ,Community Services,OP South Locality,Adult Care Nursing Placements- Spot Purchase,Third Party Payments,REVENUE
http://statistics.data.gov.uk/id/local-authority/00HY,Wiltshire Council,11/04/2012,5106101670,2191.20,Barchester Healthcare Ltd (Milford ,111597,SP1 ,Community Services,OP South Locality,Adult Care Nursing Placements- Spot Purchase,Third Party Payments,REVENUE
http://statistics.data.gov.uk/id/local-authority/00HY,Wiltshire Council,11/04/2012,5106101676,2191.20,Barchester Healthcare Ltd (Milford ,111597,SP1 ,Community Services,OP South Locality,Adult Care Nursing Placements- Spot Purchase,Third Party Payments,REVENUE
http://statistics.data.gov.uk/id/local-authority/00HY,Wiltshire Council,11/04/2012,5106102611,2965.20,Barchester Healthcare Ltd (Milford ,111597,SP1 ,Community Services,MH OP South Locality,Adult Care Nursing Placements- Spot Purchase,Third Party Payments,REVENUE
http://statistics.data.gov.uk/id/local-authority/00HY,Wiltshire Council,11/04/2012,5106102871,3551.60,Barchester Healthcare Ltd (Milford ,111597,SP1 ,Community Services,CTPLD County S75 65+,Adult Care Nursing Placements- Spot Purchase,Third Party Payments,REVENUE
http://statistics.data.gov.uk/id/local-authority/00HY,Wiltshire Council,11/04/2012,5106103392,2191.20,Barchester Healthcare Ltd (Milford ,111597,SP1 ,Community Services,OP North Locality,Adult Care Nursing Placements- Spot Purchase,Third Party Payments,REVENUE
http://statistics.data.gov.uk/id/local-authority/00HY,Wiltshire Council,11/04/2012,5106103989,2965.20,Barchester Healthcare Ltd (Milford ,111597,SP1 ,Community Services,Home Loans,Adult Care - Home Loan Costs,Capital charges and Expenditure,REVENUE
http://statistics.data.gov.uk/id/local-authority/00HY,Wiltshire Council,11/04/2012,5106103991,2165.20,Barchester Healthcare Ltd (Milford ,111597,SP1 ,Community Services,Home Loans,Adult Care - Home Loan Costs,Capital charges and Expenditure,REVENUE
http://statistics.data.gov.uk/id/local-authority/00HY,Wiltshire Council,11/04/2012,5106103993,3600.00,Barchester Healthcare Ltd (Milford ,111597,SP1 ,Community Services,Home Loans,Adult Care - Home Loan Costs,Capital charges and Expenditure,REVENUE
http://statistics.data.gov.uk/id/local-authority/00HY,Wiltshire Council,11/04/2012,5106103995,3165.20,Barchester Healthcare Ltd (Milford ,111597,SP1 ,Community Services,Home Loans,Adult Care - Home Loan Costs,Capital charges and Expenditure,REVENUE
http://statistics.data.gov.uk/id/local-authority/00HY,Wiltshire Council,11/04/2012,5106104212,3365.20,Barchester Healthcare Ltd (Milford ,111597,SP1 ,Community Services,Home Loans,Adult Care - Home Loan Costs,Capital charges and Expenditure,REVENUE
http://statistics.data.gov.uk/id/local-authority/00HY,Wiltshire Council,11/04/2012,5106104217,2285.20,Barchester Healthcare Ltd (Milford ,111597,SP1 ,Community Services,Home Loans,Adult Care - Home Loan Costs,Capital charges and Expenditure,REVENUE
http://statistics.data.gov.uk/id/local-authority/00HY,Wiltshire Council,11/04/2012,5106100438,2649.76,Barchester Healthcare Ltd- The Wing ,121969,BA14,Community Services,MH OP West Locality,Adult Care Nursing Placements- Spot Purchase,Third Party Payments,REVENUE
http://statistics.data.gov.uk/id/local-authority/00HY,Wiltshire Council,11/04/2012,5106102126,2494.20,Barchester Healthcare Ltd- The Wing ,121969,BA14,Community Services,OP West Locality,Adult Care Nursing Placements- Spot Purchase,Third Party Payments,REVENUE
http://statistics.data.gov.uk/id/local-authority/00HY,Wiltshire Council,11/04/2012,5106102129,1997.20,Barchester Healthcare Ltd- The Wing ,121969,BA14,Community Services,OP West Locality,Adult Care Nursing Placements- Spot Purchase,Third Party Payments,REVENUE
http://statistics.data.gov.uk/id/local-authority/00HY,Wiltshire Council,11/04/2012,5106102132,2494.20,Barchester Healthcare Ltd- The Wing ,121969,BA14,Community Services,MH OP West Locality,Adult Care Nursing Placements- Spot Purchase,Third Party Payments,REVENUE
http://statistics.data.gov.uk/id/local-authority/00HY,Wiltshire Council,11/04/2012,5106102135,2494.20,Barchester Healthcare Ltd- The Wing ,121969,BA14,Community Services,MH OP West Locality,Adult Care Nursing Placements- Spot Purchase,Third Party Payments,REVENUE
http://statistics.data.gov.uk/id/local-authority/00HY,Wiltshire Council,11/04/2012,5106102138,2494.20,Barchester Healthcare Ltd- The Wing ,121969,BA14,Community Services,OP West Locality,Adult Care Nursing Placements- Spot Purchase,Third Party Payments,REVENUE
http://statistics.data.gov.uk/id/local-authority/00HY,Wiltshire Council,11/04/2012,5106102141,3002.28,Barchester Healthcare Ltd- The Wing ,121969,BA14,Community Services,MH OP South Locality,Adult Care Nursing Placements- Spot Purchase,Third Party Payments,REVENUE
http://statistics.data.gov.uk/id/local-authority/00HY,Wiltshire Council,11/04/2012,5106102144,1680.20,Barchester Healthcare Ltd- The Wing ,121969,BA14,Community Services,OP West Locality,Adult Care Nursing Placements- Spot Purchase,Third Party Payments,REVENUE
http://statistics.data.gov.uk/id/local-authority/00HY,Wiltshire Council,11/04/2012,5106102147,2595.20,Barchester Healthcare Ltd- The Wing ,121969,BA14,Community Services,MH OP West Locality,Adult Care Nursing Placements- Spot Purchase,Third Party Payments,REVENUE
http://statistics.data.gov.uk/id/local-authority/00HY,Wiltshire Council,11/04/2012,5106102150,2021.52,Barchester Healthcare Ltd- The Wing ,121969,BA14,Community Services,OP West Locality,Adult Care Nursing Placements- Spot Purchase,Third Party Payments,REVENUE
http://statistics.data.gov.uk/id/local-authority/00HY,Wiltshire Council,11/04/2012,5106102153,2494.20,Barchester Healthcare Ltd- The Wing ,121969,BA14,Community Services,MH OP West Locality,Adult Care Nursing Placements- Spot Purchase,Third Party Payments,REVENUE
http://statistics.data.gov.uk/id/local-authority/00HY,Wiltshire Council,11/04/2012,5106102156,3403.20,Barchester Healthcare Ltd- The Wing ,121969,BA14,Community Services,MH OP West Locality,Adult Care Nursing Placements- Spot Purchase,Third Party Payments,REVENUE
http://statistics.data.gov.uk/id/local-authority/00HY,Wiltshire Council,11/04/2012,5106102501,2444.12,Barchester Healthcare Ltd- The Wing ,121969,BA14,Community Services,OP West Locality,Adult Care Nursing Placements- Spot Purchase,Third Party Payments,REVENUE
http://statistics.data.gov.uk/id/local-authority/00HY,Wiltshire Council,11/04/2012,5106102639,2595.20,Barchester Healthcare Ltd- The Wing ,121969,BA14,Community Services,OP West Locality,Adult Care Nursing Placements- Spot Purchase,Third Party Payments,REVENUE
http://statistics.data.gov.uk/id/local-authority/00HY,Wiltshire Council,11/04/2012,5106103486,2579.52,Barchester Healthcare Ltd- The Wing ,121969,BA14,Community Services,CTPLD County CIC 65+,Adult Care Nursing Placements- Spot Purchase,Third Party Payments,REVENUE
http://statistics.data.gov.uk/id/local-authority/00HY,Wiltshire Council,11/04/2012,5106103490,2393.20,Barchester Healthcare Ltd- The Wing ,121969,BA14,Community Services,MH OP West Locality,Adult Care Nursing Placements- Spot Purchase,Third Party Payments,REVENUE
http://statistics.data.gov.uk/id/local-authority/00HY,Wiltshire Council,11/04/2012,5106103494,2494.20,Barchester Healthcare Ltd- The Wing ,121969,BA14,Community Services,MH OP West Locality,Adult Care Nursing Placements- Spot Purchase,Third Party Payments,REVENUE
http://statistics.data.gov.uk/id/local-authority/00HY,Wiltshire Council,11/04/2012,5106103565,2495.00,Barchester Healthcare Ltd- The Wing ,121969,BA14,Community Services,MH OP West Locality,Adult Care Nursing Placements- Spot Purchase,Third Party Payments,REVENUE
http://statistics.data.gov.uk/id/local-authority/00HY,Wiltshire Council,11/04/2012,5106103579,2530.20,Barchester Healthcare Ltd- The Wing ,121969,BA14,Community Services,OP West Locality,Adult Care Nursing Placements- Spot Purchase,Third Party Payments,REVENUE
http://statistics.data.gov.uk/id/local-authority/00HY,Wiltshire Council,11/04/2012,5106104208,3000.00,Barchester Healthcare Ltd- The Wing ,121969,BA14,Community Services,Home Loans,Adult Care - Home Loan Costs,Capital charges and Expenditure,REVENUE
http://statistics.data.gov.uk/id/local-authority/00HY,Wiltshire Council,12/04/2012,5106105832,890.80,Barchester Healthcare Ltd- The Wing ,121969,BA14,Community Services,OP West Locality,Adult Care Nursing Placements - 12 Week,Third Party Payments,REVENUE
http://statistics.data.gov.uk/id/local-authority/00HY,Wiltshire Council,12/04/2012,5106105835,712.64,Barchester Healthcare Ltd- The Wing ,121969,BA14,Community Services,OP West Locality,Adult Care Nursing Placements - 12 Week,Third Party Payments,REVENUE
http://statistics.data.gov.uk/id/local-authority/00HY,Wiltshire Council,12/04/2012,5106105838,5879.28,Barchester Healthcare Ltd- The Wing ,121969,BA14,Community Services,OP West Locality,Adult Care Nursing Placements - 12 Week,Third Party Payments,REVENUE
http://statistics.data.gov.uk/id/local-authority/00HY,Wiltshire Council,12/04/2012,5106105840,1024.98,Barchester Healthcare Ltd- The Wing ,121969,BA14,Community Services,OP West FNC,Adult Care Funded Nursing Care - Loal Auth Clients,Third Party Payments,REVENUE
http://statistics.data.gov.uk/id/local-authority/00HY,Wiltshire Council,25/04/2012,5106111625,712.64,Barchester Healthcare Ltd- The Wing ,121969,BA14,Community Services,MH OP West Locality,Adult Care Nursing Placements - 12 Week,Third Party Payments,REVENUE
http://statistics.data.gov.uk/id/local-authority/00HY,Wiltshire Council,25/04/2012,5106111628,6770.08,Barchester Healthcare Ltd- The Wing ,121969,BA14,Community Services,MH OP West Locality,Adult Care Nursing Placements - 12 Week,Third Party Payments,REVENUE
http://statistics.data.gov.uk/id/local-authority/00HY,Wiltshire Council,25/04/2012,5106111630,1180.28,Barchester Healthcare Ltd- The Wing ,121969,BA14,Community Services,MH OA West FNC,Adult Care Funded Nursing Care - Loal Auth Clients,Third Party Payments,REVENUE
http://statistics.data.gov.uk/id/local-authority/00HY,Wiltshire Council,30/04/2012,5106114307,2850.56,Barchester Healthcare Ltd- The Wing ,121969,BA14,Community Services,MH OP West Locality,Adult Care Nursing Placements- Spot Purchase,Third Party Payments,REVENUE
http://statistics.data.gov.uk/id/local-authority/00HY,Wiltshire Council,26/04/2012,5106111930,102660.97,Barclays Bank Plc ,126156,E14 ,Resources,Monkton Pk Off Accom,PFI & PPP Schemes,Supplies and Services,REVENUE
http://statistics.data.gov.uk/id/local-authority/00HY,Wiltshire Council,02/04/2012,5106098636,2200.00,Barford Settled Estate ,110256,SP2 ,Neighbourhood & Planning,PrivateSectorLeasing,Premises Rental / Hire Charges,Premises Related,REVENUE
http://statistics.data.gov.uk/id/local-authority/00HY,Wiltshire Council,04/04/2012,1900809959,2332.07,Barnes Coaches Ltd ,100190,SN3 ,Neighbourhood & Planning,Mainstream Secondary,Transport Contracts,Third Party Payments,REVENUE
http://statistics.data.gov.uk/id/local-authority/00HY,Wiltshire Council,04/04/2012,1900809961,1313.85,Barnes Coaches Ltd ,100190,SN3 ,Neighbourhood & Planning,Mainstream 16+ FE,Transport Contracts,Third Party Payments,REVENUE
http://statistics.data.gov.uk/id/local-authority/00HY,Wiltshire Council,04/04/2012,1900809961,11824.65,Barnes Coaches Ltd ,100190,SN3 ,Neighbourhood & Planning,Mainstream Secondary,Transport Contracts,Third Party Payments,REVENUE
http://statistics.data.gov.uk/id/local-authority/00HY,Wiltshire Council,04/04/2012,1900809962,2567.46,Barnes Coaches Ltd ,100190,SN3 ,Neighbourhood & Planning,Mainstream Secondary,Transport Contracts,Third Party Payments,REVENUE
http://statistics.data.gov.uk/id/local-authority/00HY,Wiltshire Council,10/04/2012,5106099856,9039.03,Bath   North East Somerset Council ,100635,BA1 ,Children & Education,External Placements,Adult / Child Care Agency Placement,Third Party Payments,REVENUE
http://statistics.data.gov.uk/id/local-authority/00HY,Wiltshire Council,13/04/2012,5106105971,501524.12,Bath   North East Somerset Council ,100635,BA1 ,Children & Education,Recoupment Expenditu,Educational Fees,Supplies and Services,REVENUE
http://statistics.data.gov.uk/id/local-authority/00HY,Wiltshire Council,11/04/2012,5106103249,2843.52,Bath Mind ,131679,BA2 ,Community Services,MH AOWA East,Adult Residential Placements - Spot Purchase,Third Party Payments,REVENUE
http://statistics.data.gov.uk/id/local-authority/00HY,Wiltshire Council,03/04/2012,1900809711,511.44,Batmink Limited ,113929,BA6 ,Children & Education,Salisbury YDC,Materials & Consumables (Non-Educational),Supplies and Services,REVENUE
http://statistics.data.gov.uk/id/local-authority/00HY,Wiltshire Council,10/04/2012,1900810800,3782.00,Baydon Young Peoples Association ,113944,SN8 ,Community Services,Area Board Marlboro,Area Board Grants,Supplies and Services,REVENUE
http://statistics.data.gov.uk/id/local-authority/00HY,Wiltshire Council,11/04/2012,5106102404,1813.88,BCVS Homes ,111047,BA2 ,Community Services,OP East Locality,Adult Residential Placements - Spot Purchase,Third Party Payments,REVENUE
http://statistics.data.gov.uk/id/local-authority/00HY,Wiltshire Council,11/04/2012,5106101505,3242.80,Beach Lawns Care Home ,112383,BS23,Community Services,CTPLD County CIC U65,Adult Residential Placements - Spot Purchase,Third Party Payments,REVENUE
http://statistics.data.gov.uk/id/local-authority/00HY,Wiltshire Council,11/04/2012,5106101508,4270.12,Beach Lawns Care Home ,112383,BS23,Community Services,PI West Locality,Adult Residential Placements - Spot Purchase,Third Party Payments,REVENUE
http://statistics.data.gov.uk/id/local-authority/00HY,Wiltshire Council,11/04/2012,5106101511,2720.00,Beach Lawns Care Home ,112383,BS23,Community Services,PI West Locality,Adult Residential Placements - Spot Purchase,Third Party Payments,REVENUE
http://statistics.data.gov.uk/id/local-authority/00HY,Wiltshire Council,11/04/2012,5106101514,5416.92,Beach Lawns Care Home ,112383,BS23,Community Services,PI South Locality,Adult Residential Placements - Spot Purchase,Third Party Payments,REVENUE
http://statistics.data.gov.uk/id/local-authority/00HY,Wiltshire Council,11/04/2012,5106101517,3125.60,Beach Lawns Care Home ,112383,BS23,Community Services,CTPLD County CIC U65,Adult Residential Placements - Spot Purchase,Third Party Payments,REVENUE
http://statistics.data.gov.uk/id/local-authority/00HY,Wiltshire Council,11/04/2012,5106101520,3393.92,Beach Lawns Care Home ,112383,BS23,Community Services,PI North Locality,Adult Residential Placements - Spot Purchase,Third Party Payments,REVENUE
http://statistics.data.gov.uk/id/local-authority/00HY,Wiltshire Council,11/04/2012,5106101523,2663.92,Beach Lawns Care Home ,112383,BS23,Community Services,PI South Locality,Adult Residential Placements - Spot Purchase,Third Party Payments,REVENUE
http://statistics.data.gov.uk/id/local-authority/00HY,Wiltshire Council,11/04/2012,5106101526,4174.68,Beach Lawns Care Home ,112383,BS23,Community Services,PI South Locality,Adult Residential Placements - Spot Purchase,Third Party Payments,REVENUE
http://statistics.data.gov.uk/id/local-authority/00HY,Wiltshire Council,11/04/2012,5106101529,6317.92,Beach Lawns Care Home ,112383,BS23,Community Services,PI West Locality,Adult Residential Placements - Spot Purchase,Third Party Payments,REVENUE
http://statistics.data.gov.uk/id/local-authority/00HY,Wiltshire Council,11/04/2012,5106101539,3539.48,Beach Lawns Care Home ,112383,BS23,Community Services,CTPLD County CIC U65,Adult Residential Placements - Spot Purchase,Third Party Payments,REVENUE
http://statistics.data.gov.uk/id/local-authority/00HY,Wiltshire Council,11/04/2012,5106101542,2720.00,Beach Lawns Care Home ,112383,BS23,Community Services,PI West Locality,Adult Residential Placements - Spot Purchase,Third Party Payments,REVENUE
http://statistics.data.gov.uk/id/local-authority/00HY,Wiltshire Council,11/04/2012,5106102623,2732.20,Beach Lawns Care Home ,112383,BS23,Community Services,CTPLD County CIC U65,Adult Residential Placements - Spot Purchase,Third Party Payments,REVENUE
http://statistics.data.gov.uk/id/local-authority/00HY,Wiltshire Council,11/04/2012,5106102629,5131.80,Beach Lawns Care Home ,112383,BS23,Community Services,PI North Locality,Adult Residential Placements - Spot Purchase,Third Party Payments,REVENUE
http://statistics.data.gov.uk/id/local-authority/00HY,Wiltshire Council,11/04/2012,5106102631,3005.08,Beach Lawns Care Home ,112383,BS23,Community Services,PI West Locality,Adult Residential Placements - Spot Purchase,Third Party Payments,REVENUE
http://statistics.data.gov.uk/id/local-authority/00HY,Wiltshire Council,11/04/2012,5106102637,3161.28,Beach Lawns Care Home ,112383,BS23,Community Services,PI North Locality,Adult Residential Placements - Spot Purchase,Third Party Payments,REVENUE
http://statistics.data.gov.uk/id/local-authority/00HY,Wiltshire Council,11/04/2012,5106101493,4048.00,Beamont Way Care Home ,112334,SP4 ,Community Services,CTPLD County CIC U65,Adult Residential Placements - Spot Purchase,Third Party Payments,REVENUE
http://statistics.data.gov.uk/id/local-authority/00HY,Wiltshire Council,11/04/2012,5106101496,4852.92,Beamont Way Care Home ,112334,SP4 ,Community Services,CTPLD County S75 U65,Adult Residential Placements - Spot Purchase,Third Party Payments,REVENUE
http://statistics.data.gov.uk/id/local-authority/00HY,Wiltshire Council,11/04/2012,5106101499,3301.24,Beamont Way Care Home ,112334,SP4 ,Community Services,CTPLD County CIC U65,Adult Residential Placements - Spot Purchase,Third Party Payments,REVENUE
http://statistics.data.gov.uk/id/local-authority/00HY,Wiltshire Council,11/04/2012,5106101502,3920.24,Beamont Way Care Home ,112334,SP4 ,Community Services,CTPLD County CIC U65,Adult Residential Placements - Spot Purchase,Third Party Payments,REVENUE
http://statistics.data.gov.uk/id/local-authority/00HY,Wiltshire Council,05/04/2012,1900810684,1567.50,Beaufort Minibus  and  Taxis Ltd ,101389,SN14,Neighbourhood & Planning,Mainstream Secondary,Transport Contracts,Third Party Payments,REVENUE
http://statistics.data.gov.uk/id/local-authority/00HY,Wiltshire Council,25/04/2012,1900810113,8253.60,Becker Creative Solutions ,133773,WD18,Children & Education,STNDRDS&CURRC ACTV,Equipment Purchase,Supplies and Services,REVENUE
http://statistics.data.gov.uk/id/local-authority/00HY,Wiltshire Council,16/04/2012,1900811245,561.88,Beeches Homecare Corsham Chippenham ,128852,SN13,Community Services,Intermediate Care,Interim Support Plan - HTLAH,Third Party Payments,REVENUE
http://statistics.data.gov.uk/id/local-authority/00HY,Wiltshire Council,16/04/2012,1900811249,784.77,Beeches Homecare Corsham Chippenham ,128852,SN13,Community Services,Intermediate Care,Interim Support Plan - HTLAH,Third Party Payments,REVENUE
http://statistics.data.gov.uk/id/local-authority/00HY,Wiltshire Council,16/04/2012,1900811250,654.96,Beeches Homecare Corsham Chippenham ,128852,SN13,Community Services,Intermediate Care,Interim Support Plan - HTLAH,Third Party Payments,REVENUE
http://statistics.data.gov.uk/id/local-authority/00HY,Wiltshire Council,16/04/2012,5106096926,1552.52,Beeches Homecare Corsham Chippenham ,128852,SN13,Community Services,PI North Locality,Adult Domiciliary Care - Block,Third Party Payments,REVENUE
http://statistics.data.gov.uk/id/local-authority/00HY,Wiltshire Council,16/04/2012,5106096927,564.72,Beeches Homecare Corsham Chippenham ,128852,SN13,Community Services,OP North Locality,Adult Domiciliary Care - Block Contribution,Income,REVENUE
http://statistics.data.gov.uk/id/local-authority/00HY,Wiltshire Council,16/04/2012,5106096928,859.86,Beeches Homecare Corsham Chippenham ,128852,SN13,Community Services,OP North Locality,Adult Domiciliary Care - Block,Third Party Payments,REVENUE
http://statistics.data.gov.uk/id/local-authority/00HY,Wiltshire Council,16/04/2012,5106096930,812.64,Beeches Homecare Corsham Chippenham ,128852,SN13,Community Services,MH AOWA North,Adult Domiciliary Care - Block,Third Party Payments,REVENUE
http://statistics.data.gov.uk/id/local-authority/00HY,Wiltshire Council,16/04/2012,5106096937,525.65,Beeches Homecare Corsham Chippenham ,128852,SN13,Community Services,OP North Locality,Adult Domiciliary Care - Block Contribution,Income,REVENUE
http://statistics.data.gov.uk/id/local-authority/00HY,Wiltshire Council,16/04/2012,5106096938,3056.86,Beeches Homecare Corsham Chippenham ,128852,SN13,Community Services,OP North Locality,Adult Domiciliary Care - Block,Third Party Payments,REVENUE
http://statistics.data.gov.uk/id/local-authority/00HY,Wiltshire Council,16/04/2012,5106096939,910.28,Beeches Homecare Corsham Chippenham ,128852,SN13,Community Services,OP North Locality,Adult Domiciliary Care - Block,Third Party Payments,REVENUE
http://statistics.data.gov.uk/id/local-authority/00HY,Wiltshire Council,24/04/2012,1900821747,660.93,Beeline Coaches ,101673,.,Neighbourhood & Planning,Public Transport,Transport Contracts,Third Party Payments,REVENUE
http://statistics.data.gov.uk/id/local-authority/00HY,Wiltshire Council,24/04/2012,1900821748,3008.33,Beeline Coaches ,101673,.,Neighbourhood & Planning,Mainstream 16+ FE,Transport Contracts,Third Party Payments,REVENUE
http://statistics.data.gov.uk/id/local-authority/00HY,Wiltshire Council,24/04/2012,1900821749,2669.55,Beeline Coaches ,101673,.,Neighbourhood & Planning,Public Transport,Transport Contracts,Third Party Payments,REVENUE
http://statistics.data.gov.uk/id/local-authority/00HY,Wiltshire Council,24/04/2012,1900821749,3437.36,Beeline Coaches ,101673,.,Neighbourhood & Planning,Mainstream 16+ FE,Transport Contracts,Third Party Payments,REVENUE
http://statistics.data.gov.uk/id/local-authority/00HY,Wiltshire Council,24/04/2012,1900821749,5156.04,Beeline Coaches ,101673,.,Neighbourhood & Planning,Mainstream Primary,Transport Contracts,Third Party Payments,REVENUE
http://statistics.data.gov.uk/id/local-authority/00HY,Wiltshire Council,24/04/2012,1900821749,25780.19,Beeline Coaches ,101673,.,Neighbourhood & Planning,Mainstream Secondary,Transport Contracts,Third Party Payments,REVENUE
http://statistics.data.gov.uk/id/local-authority/00HY,Wiltshire Council,24/04/2012,1900821751,903.28,Beeline Coaches ,101673,.,Neighbourhood & Planning,Mainstream Primary,Transport Contracts,Third Party Payments,REVENUE
http://statistics.data.gov.uk/id/local-authority/00HY,Wiltshire Council,24/04/2012,1900821751,1960.53,Beeline Coaches ,101673,.,Neighbourhood & Planning,Mainstream Secondary,Transport Contracts,Third Party Payments,REVENUE
http://statistics.data.gov.uk/id/local-authority/00HY,Wiltshire Council,24/04/2012,1900821752,2156.04,Beeline Coaches ,101673,.,Neighbourhood & Planning,Mainstream Secondary,Transport Contracts,Third Party Payments,REVENUE
http://statistics.data.gov.uk/id/local-authority/00HY,Wiltshire Council,24/04/2012,1900821754,602.80,Beeline Coaches ,101673,.,Neighbourhood & Planning,Mainstream Secondary,Transport Contracts,Third Party Payments,REVENUE
http://statistics.data.gov.uk/id/local-authority/00HY,Wiltshire Council,24/04/2012,1900821755,1108.34,Beeline Coaches ,101673,.,Neighbourhood & Planning,Mainstream Secondary,Transport Contracts,Third Party Payments,REVENUE
http://statistics.data.gov.uk/id/local-authority/00HY,Wiltshire Council,24/04/2012,1900821771,891.10,Beeline Coaches ,101673,.,Neighbourhood & Planning,Concessionary Fares,Compensation for Concessionary fares,Third Party Payments,REVENUE
http://statistics.data.gov.uk/id/local-authority/00HY,Wiltshire Council,13/04/2012,5106105849,3696.00,Beeline Coaches ,101673,.,Resources,WTP Office,Public Transport,Transport Related,REVENUE
http://statistics.data.gov.uk/id/local-authority/00HY,Wiltshire Council,23/04/2012,5106098984,662.55,Bell Brush Company ,126170,EN3 ,Wiltshire Council,Wiltshire Council,Small Plant / Tools,Supplies and Services,CAPITAL
http://statistics.data.gov.uk/id/local-authority/00HY,Wiltshire Council,27/04/2012,5106105689,671.98,Bell Brush Company ,126170,EN3 ,Wiltshire Council,Wiltshire Council,Small Plant / Tools,Supplies and Services,CAPITAL
http://statistics.data.gov.uk/id/local-authority/00HY,Wiltshire Council,27/04/2012,5106105720,662.55,Bell Brush Company ,126170,EN3 ,Wiltshire Council,Wiltshire Council,Small Plant / Tools,Supplies and Services,CAPITAL
http://statistics.data.gov.uk/id/local-authority/00HY,Wiltshire Council,05/04/2012,1900810631,675.00,Bell Private Hire ,101351,SN4 ,Neighbourhood & Planning,YPSS Kennet,Transport Contracts,Third Party Payments,REVENUE
http://statistics.data.gov.uk/id/local-authority/00HY,Wiltshire Council,10/04/2012,1900811022,792.00,Ben s Taxis ,101303,BA14,Neighbourhood & Planning,SEN Primary,Transport Contracts,Third Party Payments,REVENUE
http://statistics.data.gov.uk/id/local-authority/00HY,Wiltshire Council,23/04/2012,1900821530,5971.00,Bennett & Dean Electrical Ltd ,100214,SP2 ,Wiltshire Council,Wiltshire Council,Payments to Contractors - Other,Third Party Payments,CAPITAL
http://statistics.data.gov.uk/id/local-authority/00HY,Wiltshire Council,02/04/2012,1900807569,908.02,Bertram Library Services ,101283,NR7 ,Community Services,Lib Book Fund,Library Service,Supplies and Services,REVENUE
http://statistics.data.gov.uk/id/local-authority/00HY,Wiltshire Council,02/04/2012,1900807571,680.22,Bertram Library Services ,101283,NR7 ,Community Services,Lib Book Fund,Library Service,Supplies and Services,REVENUE
http://statistics.data.gov.uk/id/local-authority/00HY,Wiltshire Council,02/04/2012,1900807573,558.39,Bertram Library Services ,101283,NR7 ,Community Services,Lib Book Fund,Library Service,Supplies and Services,REVENUE
http://statistics.data.gov.uk/id/local-authority/00HY,Wiltshire Council,02/04/2012,1900807579,795.20,Bertram Library Services ,101283,NR7 ,Community Services,Lib Book Fund,Library Service,Supplies and Services,REVENUE
http://statistics.data.gov.uk/id/local-authority/00HY,Wiltshire Council,04/04/2012,1900807603,600.58,Bertram Library Services ,101283,NR7 ,Community Services,Lib Book Fund,Library Service,Supplies and Services,REVENUE
http://statistics.data.gov.uk/id/local-authority/00HY,Wiltshire Council,03/04/2012,1900807909,600.00,Bertram Library Services ,101283,NR7 ,Community Services,Lib Book Fund,Library Service,Supplies and Services,REVENUE
http://statistics.data.gov.uk/id/local-authority/00HY,Wiltshire Council,05/04/2012,1900810185,674.90,Bertram Library Services ,101283,NR7 ,Community Services,Lib Book Fund,Library Service,Supplies and Services,REVENUE
http://statistics.data.gov.uk/id/local-authority/00HY,Wiltshire Council,05/04/2012,1900810194,1095.28,Bertram Library Services ,101283,NR7 ,Community Services,Lib Book Fund,Library Service,Supplies and Services,REVENUE
http://statistics.data.gov.uk/id/local-authority/00HY,Wiltshire Council,05/04/2012,1900810206,741.60,Bertram Library Services ,101283,NR7 ,Community Services,Lib Book Fund,Library Service,Supplies and Services,REVENUE
http://statistics.data.gov.uk/id/local-authority/00HY,Wiltshire Council,25/04/2012,1900810705,797.45,Bertram Library Services ,101283,NR7 ,Community Services,Lib Book Fund,Library Service,Supplies and Services,REVENUE
http://statistics.data.gov.uk/id/local-authority/00HY,Wiltshire Council,10/04/2012,1900810747,824.34,Bertram Library Services ,101283,NR7 ,Community Services,Lib Book Fund,Library Service,Supplies and Services,REVENUE
http://statistics.data.gov.uk/id/local-authority/00HY,Wiltshire Council,11/04/2012,1900811140,592.53,Bertram Library Services ,101283,NR7 ,Community Services,Lib Book Fund,Library Service,Supplies and Services,REVENUE
http://statistics.data.gov.uk/id/local-authority/00HY,Wiltshire Council,11/04/2012,1900811141,906.12,Bertram Library Services ,101283,NR7 ,Community Services,Lib Book Fund,Library Service,Supplies and Services,REVENUE
http://statistics.data.gov.uk/id/local-authority/00HY,Wiltshire Council,16/04/2012,1900811576,700.23,Bertram Library Services ,101283,NR7 ,Community Services,Lib Book Fund,Library Service,Supplies and Services,REVENUE
http://statistics.data.gov.uk/id/local-authority/00HY,Wiltshire Council,17/04/2012,1900811585,579.79,Bertram Library Services ,101283,NR7 ,Community Services,Lib Book Fund,Library Service,Supplies and Services,REVENUE
http://statistics.data.gov.uk/id/local-authority/00HY,Wiltshire Council,12/04/2012,1900811595,676.14,Bertram Library Services ,101283,NR7 ,Community Services,Lib Book Fund,Library Service,Supplies and Services,REVENUE
http://statistics.data.gov.uk/id/local-authority/00HY,Wiltshire Council,18.04.2012,1900812128,536.54,Bertram Library Services ,101283,.,Community Services,Lib Book Fund,Library Service,Supplies and Services,REVENUE
http://statistics.data.gov.uk/id/local-authority/00HY,Wiltshire Council,19/04/2012,1900820859,1060.40,Bertram Library Services ,101283,NR7 ,Community Services,Lib General,Library Service,Supplies and Services,REVENUE
http://statistics.data.gov.uk/id/local-authority/00HY,Wiltshire Council,19/04/2012,1900820933,659.54,Bertram Library Services ,101283,NR7 ,Community Services,Lib General,Library Service,Supplies and Services,REVENUE
http://statistics.data.gov.uk/id/local-authority/00HY,Wiltshire Council,24/04/2012,1900821306,610.76,Bertram Library Services ,101283,NR7 ,Community Services,Lib Book Fund,Library Service,Supplies and Services,REVENUE
http://statistics.data.gov.uk/id/local-authority/00HY,Wiltshire Council,25/04/2012,1900821308,604.41,Bertram Library Services ,101283,NR7 ,Community Services,Lib Book Fund,Library Service,Supplies and Services,REVENUE
http://statistics.data.gov.uk/id/local-authority/00HY,Wiltshire Council,25/04/2012,1900821310,1231.88,Bertram Library Services ,101283,NR7 ,Community Services,Lib Book Fund,Library Service,Supplies and Services,REVENUE
http://statistics.data.gov.uk/id/local-authority/00HY,Wiltshire Council,23/04/2012,1900821344,829.26,Bertram Library Services ,101283,NR7 ,Community Services,Lib Book Fund,Library Service,Supplies and Services,REVENUE
http://statistics.data.gov.uk/id/local-authority/00HY,Wiltshire Council,24/04/2012,1900821347,544.00,Bertram Library Services ,101283,NR7 ,Community Services,Lib Book Fund,Library Service,Supplies and Services,REVENUE
http://statistics.data.gov.uk/id/local-authority/00HY,Wiltshire Council,24/04/2012,1900821350,1849.85,Bertram Library Services ,101283,NR7 ,Community Services,Lib Book Fund,Library Service,Supplies and Services,REVENUE
http://statistics.data.gov.uk/id/local-authority/00HY,Wiltshire Council,24/04/2012,1900821351,1425.29,Bertram Library Services ,101283,NR7 ,Community Services,Lib Book Fund,Library Service,Supplies and Services,REVENUE
http://statistics.data.gov.uk/id/local-authority/00HY,Wiltshire Council,25/04/2012,1900821352,1312.90,Bertram Library Services ,101283,NR7 ,Community Services,Lib Book Fund,Library Service,Supplies and Services,REVENUE
http://statistics.data.gov.uk/id/local-authority/00HY,Wiltshire Council,26/04/2012,1900821353,505.24,Bertram Library Services ,101283,NR7 ,Community Services,Lib Book Fund,Library Service,Supplies and Services,REVENUE
http://statistics.data.gov.uk/id/local-authority/00HY,Wiltshire Council,23/04/2012,1900821356,540.59,Bertram Library Services ,101283,NR7 ,Community Services,Lib Book Fund,Library Service,Supplies and Services,REVENUE
http://statistics.data.gov.uk/id/local-authority/00HY,Wiltshire Council,24/04/2012,1900821358,681.22,Bertram Library Services ,101283,NR7 ,Community Services,Lib Book Fund,Library Service,Supplies and Services,REVENUE
http://statistics.data.gov.uk/id/local-authority/00HY,Wiltshire Council,20/04/2012,1900821363,687.14,Bertram Library Services ,101283,NR7 ,Community Services,Lib Book Fund,Library Service,Supplies and Services,REVENUE
http://statistics.data.gov.uk/id/local-authority/00HY,Wiltshire Council,20/04/2012,1900821369,543.34,Bertram Library Services ,101283,NR7 ,Community Services,Lib Book Fund,Library Service,Supplies and Services,REVENUE
http://statistics.data.gov.uk/id/local-authority/00HY,Wiltshire Council,30/04/2012,1900822752,838.58,Bertram Library Services ,101283,NR7 ,Community Services,Lib General,Library Service,Supplies and Services,REVENUE
http://statistics.data.gov.uk/id/local-authority/00HY,Wiltshire Council,30/04/2012,1900823407,529.60,Bertram Library Services ,101283,NR7 ,Community Services,Lib General,Library Service,Supplies and Services,REVENUE
http://statistics.data.gov.uk/id/local-authority/00HY,Wiltshire Council,02/04/2012,5106098290,1067.50,Bevan Brittan ,101263,BS2 ,Wiltshire Council,Wiltshire Council,Premises Related Other Maintenance Costs,Premises Related,CAPITAL
http://statistics.data.gov.uk/id/local-authority/00HY,Wiltshire Council,19/04/2012,5106109610,2432.50,Bevan Brittan ,101263,BS2 ,Wiltshire Council,Wiltshire Council,Premises Related Other Maintenance Costs,Premises Related,CAPITAL
http://statistics.data.gov.uk/id/local-authority/00HY,Wiltshire Council,12/04/2012,1900807940,10565.00,Bibliographic Data Services Ltd ,114012,DG1 ,Community Services,Lib Book Fund,Library Service,Supplies and Services,REVENUE
http://statistics.data.gov.uk/id/local-authority/00HY,Wiltshire Council,04/04/2012,1900804892,553.28,Bibliotheca Intellident ,125688,SK8 ,Community Services,Lib Book Fund,Other Materials,Supplies and Services,REVENUE
http://statistics.data.gov.uk/id/local-authority/00HY,Wiltshire Council,19/04/2012,5106109595,29949.60,Bibliotheca Intellident ,125688,SK8 ,Resources,Applications SuppLOB,ICT - Support arrangements,Supplies and Services,REVENUE
http://statistics.data.gov.uk/id/local-authority/00HY,Wiltshire Council,16/04/2012,5106098496,875.00,Bikeability ,114019,SE1 ,Neighbourhood & Planning,Road Safety Bike Ab,Miscellaneous Costs,Supplies and Services,REVENUE
http://statistics.data.gov.uk/id/local-authority/00HY,Wiltshire Council,27/04/2012,1900823492,506.00,Biogas Technology Ltd ,100573,PE17,Neighbourhood & Planning,Closed Site-Rout Mtc,Preventative Property Maintenance,Premises Related,REVENUE
http://statistics.data.gov.uk/id/local-authority/00HY,Wiltshire Council,11/04/2012,5106104095,3006.04,Birds Hill Nursing Home ,114024,BH15,Community Services,Home Loans,Adult Care - Home Loan Costs,Capital charges and Expenditure,REVENUE
http://statistics.data.gov.uk/id/local-authority/00HY,Wiltshire Council,05/04/2012,1900807817,22121.92,Birmingham City Council ,110301,B4 7,Neighbourhood & Planning,BuildingControlAspir,Building Regulation Fee Income,Income,REVENUE
http://statistics.data.gov.uk/id/local-authority/00HY,Wiltshire Council,11/04/2012,5106102893,3165.20,Bloomfield Care Centre ,114064,BS39,Community Services,MH OP West Locality,Adult Care Nursing Placements- Spot Purchase,Third Party Payments,REVENUE
http://statistics.data.gov.uk/id/local-authority/00HY,Wiltshire Council,13/04/2012,5106105985,815.00,Blue Apple ,133262,RG41,Community Services,CL&G V&CS strategy,Premises Rental / Hire Charges,Premises Related,REVENUE
http://statistics.data.gov.uk/id/local-authority/00HY,Wiltshire Council,18/04/2012,5106109465,3242.10,Blue Sky Fostering ,128079,SO51,Children & Education,External Placements,Adult / Child Care Agency Placement,Third Party Payments,REVENUE
http://statistics.data.gov.uk/id/local-authority/00HY,Wiltshire Council,18/04/2012,5106109478,3242.10,Blue Sky Fostering ,128079,SO51,Children & Education,External Placements,Adult / Child Care Agency Placement,Third Party Payments,REVENUE
http://statistics.data.gov.uk/id/local-authority/00HY,Wiltshire Council,11/04/2012,5106103003,2160.00,Bluebell Lodge Residential Care Hom ,110314,SN15,Community Services,OP North Locality,Adult Residential Placements - Spot Purchase,Third Party Payments,REVENUE
http://statistics.data.gov.uk/id/local-authority/00HY,Wiltshire Council,11/04/2012,5106103695,1546.40,Bluebell Lodge Residential Care Hom ,110314,SN15,Community Services,OP North Locality,Adult Residential Placements - Spot Purchase,Third Party Payments,REVENUE
http://statistics.data.gov.uk/id/local-authority/00HY,Wiltshire Council,11/04/2012,5106103698,1920.00,Bluebell Lodge Residential Care Hom ,110314,SN15,Community Services,PI North Locality,Adult Residential Placements - Spot Purchase,Third Party Payments,REVENUE
http://statistics.data.gov.uk/id/local-authority/00HY,Wiltshire Council,11/04/2012,5106103940,1546.40,Bluebell Lodge Residential Care Hom ,110314,SN15,Community Services,Home Loans,Adult Care - Home Loan Costs,Capital charges and Expenditure,REVENUE
http://statistics.data.gov.uk/id/local-authority/00HY,Wiltshire Council,02/04/2012,1900790559,1408.59,Bluecare ,114070,EC4M,Community Services,Hosp Salis Fndtn,Agency Staff,Employee Related,REVENUE
http://statistics.data.gov.uk/id/local-authority/00HY,Wiltshire Council,16/04/2012,1900803672,1446.66,Bluecare ,114070,EC4M,Community Services,Hosp Salis Fndtn,Agency Staff,Employee Related,REVENUE
http://statistics.data.gov.uk/id/local-authority/00HY,Wiltshire Council,05/04/2012,1900803676,1018.38,Bluecare ,114070,EC4M,Community Services,Hosp Salis Fndtn,Agency Staff,Employee Related,REVENUE
http://statistics.data.gov.uk/id/local-authority/00HY,Wiltshire Council,23/04/2012,1900805966,1408.59,Bluecare ,114070,EC4M,Community Services,Hosp Salis Fndtn,Agency Staff,Employee Related,REVENUE
http://statistics.data.gov.uk/id/local-authority/00HY,Wiltshire Council,03/04/2012,5106097746,520.00,BodyTech Gym ,127752,BA15,Children & Education,YPSSWest,Educational Fees,Supplies and Services,REVENUE
http://statistics.data.gov.uk/id/local-authority/00HY,Wiltshire Council,25/04/2012,5106110932,2130.00,BodyTech Gym ,127752,BA15,Children & Education,YPSSWest,Educational Fees,Supplies and Services,REVENUE
http://statistics.data.gov.uk/id/local-authority/00HY,Wiltshire Council,27/04/2012,5106109677,1015.60,Bond International -t/a Teamspirit Software Limited,114082,CM8 ,Resources,Applications SuppLOB,ICT - Support arrangements,Supplies and Services,REVENUE
http://statistics.data.gov.uk/id/local-authority/00HY,Wiltshire Council,18/04/2012,5106097734,581.23,Booker Ltd ,131196,SP2 ,Neighbourhood & Planning,City Hall,Vending costs,Supplies and Services,REVENUE
http://statistics.data.gov.uk/id/local-authority/00HY,Wiltshire Council,27/04/2012,5106106021,1304.85,Bookscape Ltd ,114090,BA11,Children & Education,Community Team West,Agency Staff,Employee Related,REVENUE
http://statistics.data.gov.uk/id/local-authority/00HY,Wiltshire Council,10/04/2012,1900803744,1674.00,Bookseller Media Ltd ,131074,NN4 ,Community Services,Lib Book Fund,Library Service,Supplies and Services,REVENUE
http://statistics.data.gov.uk/id/local-authority/00HY,Wiltshire Council,19/04/2012,5106109705,780.00,Boson Media Ltd ,126075,BA15,Community Services,Her Proj Museum Dev,Consultants� Fees,Supplies and Services,REVENUE
http://statistics.data.gov.uk/id/local-authority/00HY,Wiltshire Council,05/04/2012,5106092601,5275.00,Boswell Bros  Salisbury  Ltd ,110331,SP4 ,Wiltshire Council,Wiltshire Council,Highways - Other Materials,Supplies and Services,CAPITAL
http://statistics.data.gov.uk/id/local-authority/00HY,Wiltshire Council,05/04/2012,5106099137,2475.00,Bournemouth University ,110335,BH8 ,Children & Education,S C Staff  Developme,Staff Training Course Costs,Employee Related,REVENUE
http://statistics.data.gov.uk/id/local-authority/00HY,Wiltshire Council,03/04/2012,1900808389,36016.59,BPHA ,127324,MK40,Community Services,OP Central Holding,Equipment Purchase,Supplies and Services,REVENUE
http://statistics.data.gov.uk/id/local-authority/00HY,Wiltshire Council,18.04.2012,1900820719,9252.99,Bradies Taxi ,100249,.,Wiltshire Council,Wiltshire Council,Transport Contracts,Third Party Payments,REVENUE
http://statistics.data.gov.uk/id/local-authority/00HY,Wiltshire Council,18.04.2012,1900820726,966.00,Bradies Taxi ,100249,.,Neighbourhood & Planning,Community Team East,Transport Contracts,Third Party Payments,REVENUE
http://statistics.data.gov.uk/id/local-authority/00HY,Wiltshire Council,18.04.2012,1900820728,1650.00,Bradies Taxi ,100249,.,Wiltshire Council,Wiltshire Council,Transport Contracts,Third Party Payments,REVENUE
http://statistics.data.gov.uk/id/local-authority/00HY,Wiltshire Council,18.04.2012,1900820730,817.92,Bradies Taxi ,100249,.,Neighbourhood & Planning,Mainstream 16+ FE,Transport Contracts,Third Party Payments,REVENUE
http://statistics.data.gov.uk/id/local-authority/00HY,Wiltshire Council,24/04/2012,1900821782,1330.69,Bradies Taxis ,100249,SN15,Neighbourhood & Planning,Concessionary Fares,Compensation for Concessionary fares,Third Party Payments,REVENUE
http://statistics.data.gov.uk/id/local-authority/00HY,Wiltshire Council,25/04/2012,5106110872,8775.00,Bradley Environmental Consultants L ,132935,B63 ,Wiltshire Council,Wiltshire Council,Premises Related Other Maintenance Costs,Premises Related,CAPITAL
http://statistics.data.gov.uk/id/local-authority/00HY,Wiltshire Council,11/04/2012,5106104654,4129.68,Brain Injury Rehabilitation Trust ,114147,WF6 ,Community Services,MH AOWA West,Adult Residential Placements - Spot Purchase,Third Party Payments,REVENUE
http://statistics.data.gov.uk/id/local-authority/00HY,Wiltshire Council,11/04/2012,5106104655,1769.84,Brain Injury Rehabilitation Trust ,114147,WF6 ,Community Services,Section 117-PCT Clnt,Adult Residential Placements - Spot Purchase,Third Party Payments,REVENUE
http://statistics.data.gov.uk/id/local-authority/00HY,Wiltshire Council,03/04/2012,5106080861,698.56,Brakes Bros Ltd ,110344,TN24,Children & Education,UrchfontManor,Catering,Supplies and Services,REVENUE
http://statistics.data.gov.uk/id/local-authority/00HY,Wiltshire Council,10/04/2012,5106093696,560.01,Brakes Bros Ltd ,110344,TN24,Children & Education,UrchfontManor,Catering,Supplies and Services,REVENUE
http://statistics.data.gov.uk/id/local-authority/00HY,Wiltshire Council,24/04/2012,5106109674,612.14,Brakes Bros Ltd ,110344,TN24,Children & Education,UrchfontManor,Catering,Supplies and Services,REVENUE
http://statistics.data.gov.uk/id/local-authority/00HY,Wiltshire Council,24/04/2012,5106110649,647.55,Brakes Bros Ltd ,110344,TN24,Children & Education,UrchfontManor,Catering,Supplies and Services,REVENUE
http://statistics.data.gov.uk/id/local-authority/00HY,Wiltshire Council,11/04/2012,5106102821,1943.24,Bramley House ,121488,DT10,Community Services,OP South Locality,Adult Residential Placements - Spot Purchase,Third Party Payments,REVENUE
http://statistics.data.gov.uk/id/local-authority/00HY,Wiltshire Council,11/04/2012,5106102823,1995.76,Bramley House ,121488,DT10,Community Services,OP South Locality,Adult Residential Placements - Spot Purchase,Third Party Payments,REVENUE
http://statistics.data.gov.uk/id/local-authority/00HY,Wiltshire Council,11/04/2012,5106102825,1909.60,Bramley House ,121488,DT10,Community Services,OP South Locality,Adult Residential Placements - Spot Purchase,Third Party Payments,REVENUE
http://statistics.data.gov.uk/id/local-authority/00HY,Wiltshire Council,11/04/2012,5106103057,2222.00,Bramley House ,121488,DT10,Community Services,OP South Locality,Adult Residential Placements - Spot Purchase,Third Party Payments,REVENUE
http://statistics.data.gov.uk/id/local-authority/00HY,Wiltshire Council,11/04/2012,5106103115,2900.00,Brampton View Nursing Care Home ,133010,NN6 ,Community Services,OP North Locality,Adult Residential Placements - Spot Purchase,Third Party Payments,REVENUE
http://statistics.data.gov.uk/id/local-authority/00HY,Wiltshire Council,18.04.2012,1900820704,754.80,Brand Addition Limited ,100346,.,Wiltshire Council,Wiltshire Council,Transport Contracts,Third Party Payments,REVENUE
http://statistics.data.gov.uk/id/local-authority/00HY,Wiltshire Council,18.04.2012,1900820718,672.00,Brand Addition Limited ,100346,.,Neighbourhood & Planning,Mainstream Secondary,Transport Contracts,Third Party Payments,REVENUE
http://statistics.data.gov.uk/id/local-authority/00HY,Wiltshire Council,04/04/2012,5106092594,500.00,Brandon Hire Plc ,110347,BS2 ,Neighbourhood & Planning,Housg Mtc Trading Ac,Equipment Purchase,Supplies and Services,REVENUE
http://statistics.data.gov.uk/id/local-authority/00HY,Wiltshire Council,10/04/2012,1900810813,10705.64,Brendoncare Foundation ,110351,SN8 ,Community Services,FNC,Adult Care Funded Nursing Care - Out of County Cli,Third Party Payments,REVENUE
http://statistics.data.gov.uk/id/local-authority/00HY,Wiltshire Council,11/04/2012,5106101069,1900.56,Brendoncare Foundation ,110351,SN8 ,Community Services,OP East Locality,Adult Care Nursing Placements- Spot Purchase,Third Party Payments,REVENUE
http://statistics.data.gov.uk/id/local-authority/00HY,Wiltshire Council,11/04/2012,5106101072,2361.84,Brendoncare Foundation ,110351,SN8 ,Community Services,OP East Locality,Adult Care Nursing Placements- Spot Purchase,Third Party Payments,REVENUE
